Workbook

Sheet Sources
A1: INT_COD_CED | B1: CLIENTS | C1: DATE_DEBUT_INTERRUPTION | D1: INT_DATE_FIN_INTERRUPTION | E1: DUREE (SEC) | F1: DUREE (HEURE) | G1: TYPE D'INTERRUPTION | H1: DESCRIPTION CAUSE DETAILLEE | I1: DESCRIPTION EQUIPEMENT | J1: GROUPECAUSE | K1: CATEGORIE
A2: Arrondissement Cote st-Luc | B2: 24 | C2: 2019-01-08T06:56:28 | D2: 2019-01-08T12:29:14 | E2: 19966 | F2: =E2/3600 -> 5.5 | G2: B | H2: Défaillance | I2: Transfo. Aérien | J2: Matériel ou équipement | K2: Panne
A3: Arrondissement Cote st-Luc | B3: 1 | C3: 2019-01-18T16:36:25 | D3: 2019-01-18T17:01:23 | E3: 1498 | F3: 0.4 | G3: B | H3: Indéterminé | I3: Conducteur MT | J3: Inconnues | K3: Panne
A4: Arrondissement Cote st-Luc | B4: 403 | C4: 2019-01-18T21:36:09 | D4: 2019-01-18T22:41:53 | E4: 3944 | F4: 1.1 | G4: M | H4: Indéterminé | I4: Aucun (Aérien) | J4: Inconnues | K4: Panne
A5: Arrondissement Cote st-Luc | B5: 351 | C5: 2019-01-18T22:42:26 | D5: 2019-01-18T23:22:27 | E5: 2401 | F5: 0.7 | G5: M | H5: Défaillance | I5: Composante sout. MT | J5: Matériel ou équipement | K5: Panne
A6: Arrondissement Cote st-Luc | B6: 52 | C6: 2019-01-18T22:42:26 | D6: 2019-01-18T22:50:03 | E6: 457 | F6: 0.1 | G6: M | H6: Défaillance | I6: Composante sout. MT | J6: Matériel ou équipement | K6: Panne
A7: Arrondissement Cote st-Luc | B7: 52 | C7: 2019-01-18T22:50:03 | D7: 2019-01-18T22:50:43 | E7: 40 | F7: 0.0 | G7: M | H7: Défaillance | I7: Composante sout. MT | J7: Matériel ou équipement | K7: Panne
A8: Arrondissement Cote st-Luc | B8: 23 | C8: 2019-01-19T23:13:52 | D8: 2019-01-20T12:07:21 | E8: 46409 | F8: 12.9 | G8: B | H8: Défaillance | I8: Transfo. Aérien | J8: Matériel ou équipement | K8: Panne
A9: Arrondissement Cote st-Luc | B9: 12 | C9: 2019-01-21T08:01:59 | D9: 2019-01-21T14:24:28 | E9: 22949 | F9: 6.4 | G9: B | H9: Défaillance | I9: Conducteur MT | J9: Matériel ou équipement | K9: Panne
A10: Arrondissement Cote st-Luc | B10: 12 | C10: 2019-01-21T14:24:28 | D10: 2019-01-21T14:24:56 | E10: 28 | F10: 0.0 | G10: M | H10: Défaillance | I10: Poteau | J10: Matériel ou équipement | K10: Panne
A11: Arrondissement Cote st-Luc | B11: 12 | C11: 2019-01-21T19:52:49 | D11: 2019-01-22T06:00:52 | E11: 36483 | F11: 10.1 | G11: B | H11: Défaillance | I11: Transfo. Aérien | J11: Matériel ou équipement | K11: Panne
A12: Arrondissement Cote st-Luc | B12: 2110 | C12: 2019-01-21T20:39:21 | D12: 2019-01-21T20:39:22 | E12: 1 | F12: 0.0 | G12: M | H12: Pannes | I12: Équipement Trans-Énergie | J12: Perte d'alimentation | K12: Perte alimentation
A13: Arrondissement Cote st-Luc | B13: 1922 | C13: 2019-01-21T20:39:36 | D13: 2019-01-21T20:46:39 | E13: 423 | F13: 0.1 | G13: M | H13: Pannes | I13: Équipement Trans-Énergie | J13: Perte d'alimentation | K13: Perte alimentation
A14: Arrondissement Cote st-Luc | B14: 923 | C14: 2019-01-21T20:39:36 | D14: 2019-01-21T21:24:57 | E14: 2721 | F14: 0.8 | G14: M | H14: Pannes | I14: Équipement Trans-Énergie | J14: Perte d'alimentation | K14: Perte alimentation
A15: Arrondissement Cote st-Luc | B15: 1922 | C15: 2019-01-21T20:59:55 | D15: 2019-01-21T21:08:31 | E15: 516 | F15: 0.1 | G15: M | H15: Pannes | I15: Équipement Trans-Énergie | J15: Perte d'alimentation | K15: Perte alimentation
A16: Arrondissement Cote st-Luc | B16: 1033 | C16: 2019-01-21T21:07:31 | D16: 2019-01-21T21:28:19 | E16: 1248 | F16: 0.3 | G16: M | H16: Pannes | I16: Équipement Trans-Énergie | J16: Perte d'alimentation | K16: Perte alimentation
A17: Arrondissement Cote st-Luc | B17: 52 | C17: 2019-01-21T21:07:46 | D17: 2019-01-21T21:28:36 | E17: 1250 | F17: 0.3 | G17: M | H17: Pannes | I17: Équipement Trans-Énergie | J17: Perte d'alimentation | K17: Perte alimentation
A18: Arrondissement Cote st-Luc | B18: 1496 | C18: 2019-01-21T21:12:46 | D18: 2019-01-21T21:23:50 | E18: 664 | F18: 0.2 | G18: M | H18: Pannes | I18: Équipement Trans-Énergie | J18: Perte d'alimentation | K18: Perte alimentation
A19: Arrondissement Cote st-Luc | B19: 1496 | C19: 2019-01-21T21:23:57 | D19: 2019-01-21T21:42:06 | E19: 1089 | F19: 0.3 | G19: M | H19: Pannes | I19: Équipement Trans-Énergie | J19: Perte d'alimentation | K19: Perte alimentation
A20: Arrondissement Cote st-Luc | B20: 923 | C20: 2019-01-21T21:27:05 | D20: 2019-01-21T22:10:07 | E20: 2582 | F20: 0.7 | G20: M | H20: Pannes | I20: Équipement Trans-Énergie | J20: Perte d'alimentation | K20: Perte alimentation
A21: Arrondissement Cote st-Luc | B21: 1496 | C21: 2019-01-21T21:42:06 | D21: 2019-01-21T21:42:16 | E21: 10 | F21: 0.0 | G21: M | H21: Pannes | I21: Équipement Trans-Énergie | J21: Perte d'alimentation | K21: Perte alimentation
A22: Arrondissement Cote st-Luc | B22: 1496 | C22: 2019-01-21T21:42:16 | D22: 2019-01-21T21:50:26 | E22: 490 | F22: 0.1 | G22: M | H22: Pannes | I22: Équipement Trans-Énergie | J22: Perte d'alimentation | K22: Perte alimentation
A23: Arrondissement Cote st-Luc | B23: 1496 | C23: 2019-01-21T21:50:32 | D23: 2019-01-21T21:51:05 | E23: 33 | F23: 0.0 | G23: M | H23: Pannes | I23: Équipement Trans-Énergie | J23: Perte d'alimentation | K23: Perte alimentation
A24: Arrondissement Cote st-Luc | B24: 1496 | C24: 2019-01-21T21:51:07 | D24: 2019-01-21T22:58:48 | E24: 4061 | F24: 1.1 | G24: M | H24: Pannes | I24: Équipement Trans-Énergie | J24: Perte d'alimentation | K24: Perte alimentation
A25: Arrondissement Cote st-Luc | B25: 1496 | C25: 2019-01-21T22:58:48 | D25: 2019-01-21T22:58:52 | E25: 4 | F25: 0.0 | G25: M | H25: Pannes | I25: Équipement Trans-Énergie | J25: Perte d'alimentation | K25: Perte alimentation
A26: Arrondissement Cote st-Luc | B26: 1496 | C26: 2019-01-21T22:58:52 | D26: 2019-01-21T23:42:59 | E26: 2647 | F26: 0.7 | G26: M | H26: Pannes | I26: Équipement Trans-Énergie | J26: Perte d'alimentation | K26: Perte alimentation
A27: Arrondissement Cote st-Luc | B27: 1033 | C27: 2019-01-21T23:12:25 | D27: 2019-01-21T23:20:40 | E27: 495 | F27: 0.1 | G27: M | H27: Pannes | I27: Équipement Trans-Énergie | J27: Perte d'alimentation | K27: Perte alimentation
A28: Arrondissement Cote st-Luc | B28: 52 | C28: 2019-01-21T23:12:32 | D28: 2019-01-21T23:20:50 | E28: 498 | F28: 0.1 | G28: M | H28: Pannes | I28: Équipement Trans-Énergie | J28: Perte d'alimentation | K28: Perte alimentation
A29: Arrondissement Cote st-Luc | B29: 1 | C29: 2019-01-22T02:27:21 | D29: 2019-01-22T02:27:29 | E29: 8 | F29: 0.0 | G29: B | H29: Indéterminé | I29: Aucun ( sout.) | J29: Inconnues | K29: Panne
A30: Arrondissement Cote st-Luc | B30: 1497 | C30: 2019-01-24T23:37:41 | D30: 2019-01-24T23:48:50 | E30: 669 | F30: 0.2 | G30: M | H30: Entretien | I30: Câble et barre MT | J30: Interruptions planifiées | K30: Interruption programmée
A31: Arrondissement Cote st-Luc | B31: 1497 | C31: 2019-01-25T06:10:28 | D31: 2019-01-25T06:15:01 | E31: 273 | F31: 0.1 | G31: M | H31: Entretien | I31: Câble et barre MT | J31: Interruptions planifiées | K31: Interruption programmée
A32: Arrondissement Cote st-Luc | B32: 1497 | C32: 2019-01-25T23:28:31 | D32: 2019-01-25T23:54:57 | E32: 1586 | F32: 0.4 | G32: M | H32: Entretien | I32: Câble et barre MT | J32: Interruptions planifiées | K32: Interruption programmée
A33: Arrondissement Cote st-Luc | B33: 1497 | C33: 2019-01-27T04:28:58 | D33: 2019-01-27T04:33:12 | E33: 254 | F33: 0.1 | G33: M | H33: Indéterminé | I33: Aucun ( sout.) | J33: Inconnues | K33: Panne
A34: Arrondissement Cote st-Luc | B34: 1497 | C34: 2019-01-27T11:50:34 | D34: 2019-01-27T11:52:24 | E34: 110 | F34: 0.0 | G34: M | H34: Info non fournie | I34: Aucun (Aérien) | J34: Inconnues | K34: Panne
A35: Arrondissement Cote st-Luc | B35: 130 | C35: 2019-02-01T14:20:35 | D35: 2019-02-01T14:32:33 | E35: 718 | F35: 0.2 | G35: M | H35: Défaillance | I35: Autre (sout.) | J35: Matériel ou équipement | K35: Panne
A36: Arrondissement Cote st-Luc | B36: 10 | C36: 2019-02-02T14:09:33 | D36: 2019-02-02T16:01:03 | E36: 6690 | F36: 1.9 | G36: B | H36: Indéterminé | I36: Aucun (Aérien) | J36: Inconnues | K36: Panne
A37: Arrondissement Cote st-Luc | B37: 1497 | C37: 2019-02-04T18:57:33 | D37: 2019-02-04T19:56:14 | E37: 3521 | F37: 1.0 | G37: M | H37: Indéterminé | I37: Conducteur MT | J37: Inconnues | K37: Panne
A38: Arrondissement Cote st-Luc | B38: 1497 | C38: 2019-02-04T19:56:40 | D38: 2019-02-04T22:56:20 | E38: 10780 | F38: 3.0 | G38: M | H38: Indéterminé | I38: Conducteur MT | J38: Inconnues | K38: Panne
A39: Arrondissement Cote st-Luc | B39: 71 | C39: 2019-02-04T21:18:48 | D39: 2019-02-05T14:01:22 | E39: 60154 | F39: 16.7 | G39: M | H39: Défaillance | I39: Transfo. Sout. | J39: Matériel ou équipement | K39: Panne
A40: Arrondissement Cote st-Luc | B40: 663 | C40: 2019-02-04T23:19:57 | D40: 2019-02-04T23:44:49 | E40: 1492 | F40: 0.4 | G40: M | H40: Indéterminé | I40: Conducteur MT | J40: Inconnues | K40: Panne
A41: Arrondissement Cote st-Luc | B41: 908 | C41: 2019-02-04T23:19:57 | D41: 2019-02-04T23:39:02 | E41: 1145 | F41: 0.3 | G41: M | H41: Indéterminé | I41: Conducteur MT | J41: Inconnues | K41: Panne
A42: Arrondissement Cote st-Luc | B42: 351 | C42: 2019-02-04T23:19:57 | D42: 2019-02-05T00:01:03 | E42: 2466 | F42: 0.7 | G42: M | H42: Indéterminé | I42: Conducteur MT | J42: Inconnues | K42: Panne
A43: Arrondissement Cote st-Luc | B43: 351 | C43: 2019-02-05T00:01:45 | D43: 2019-02-05T00:16:41 | E43: 896 | F43: 0.2 | G43: M | H43: Défaillance | I43: Conducteur MT | J43: Matériel ou équipement | K43: Panne
A44: Arrondissement Cote st-Luc | B44: 351 | C44: 2019-02-05T00:46:24 | D44: 2019-02-05T01:03:54 | E44: 1050 | F44: 0.3 | G44: M | H44: Surcharge | I44: Conducteur MT | J44: Matériel ou équipement | K44: Panne
A45: Arrondissement Cote st-Luc | B45: 351 | C45: 2019-02-05T01:03:54 | D45: 2019-02-05T01:04:26 | E45: 32 | F45: 0.0 | G45: M | H45: Surcharge | I45: Conducteur MT | J45: Matériel ou équipement | K45: Panne
A46: Arrondissement Cote st-Luc | B46: 1 | C46: 2019-02-06T20:32:29 | D46: 2019-02-06T20:38:38 | E46: 369 | F46: 0.1 | G46: M | H46: Critique | I46: Câble et barre MT | J46: Interruptions planifiées | K46: Interruption programmée
A47: Arrondissement Cote st-Luc | B47: 923 | C47: 2019-02-09T14:23:39 | D47: 2019-02-09T14:57:43 | E47: 2044 | F47: 0.6 | G47: M | H47: Manoeuvre séc. non planif. | I47: Aucun (Aérien) | J47: Autres | K47: Panne
A48: Arrondissement Cote st-Luc | B48: 1 | C48: 2019-02-09T19:49:56 | D48: 2019-02-09T19:54:37 | E48: 281 | F48: 0.1 | G48: M | H48: Défaillance | I48: Conducteur MT | J48: Matériel ou équipement | K48: Panne
A49: Arrondissement Cote st-Luc | B49: 444 | C49: 2019-02-12T08:24:25 | D49: 2019-02-12T09:56:31 | E49: 5526 | F49: 1.5 | G49: M | H49: Indéterminé | I49: Aucun ( sout.) | J49: Inconnues | K49: Panne
A50: Arrondissement Cote st-Luc | B50: 53 | C50: 2019-02-12T08:24:25 | D50: 2019-02-12T11:02:42 | E50: 9497 | F50: 2.6 | G50: M | H50: Indéterminé | I50: Aucun ( sout.) | J50: Inconnues | K50: Panne
A51: Arrondissement Cote st-Luc | B51: 1933 | C51: 2019-02-12T08:24:25 | D51: 2019-02-12T10:29:57 | E51: 7532 | F51: 2.1 | G51: M | H51: Indéterminé | I51: Aucun ( sout.) | J51: Inconnues | K51: Panne
A52: Arrondissement Cote st-Luc | B52: 99 | C52: 2019-02-12T08:24:25 | D52: 2019-02-12T10:41:05 | E52: 8200 | F52: 2.3 | G52: M | H52: Indéterminé | I52: Aucun ( sout.) | J52: Inconnues | K52: Panne
A53: Arrondissement Cote st-Luc | B53: 444 | C53: 2019-02-12T10:27:24 | D53: 2019-02-12T10:29:57 | E53: 153 | F53: 0.0 | G53: M | H53: Surcharge | I53: Aucun ( sout.) | J53: Matériel ou équipement | K53: Panne
A54: Arrondissement Cote st-Luc | B54: 2377 | C54: 2019-02-12T10:29:57 | D54: 2019-02-12T10:30:13 | E54: 16 | F54: 0.0 | G54: M | H54: Surcharge | I54: Aucun ( sout.) | J54: Matériel ou équipement | K54: Panne
A55: Arrondissement Cote st-Luc | B55: 1857 | C55: 2019-02-12T10:30:59 | D55: 2019-02-12T12:31:44 | E55: 7245 | F55: 2.0 | G55: M | H55: Indéterminé | I55: Aucun ( sout.) | J55: Inconnues | K55: Panne
A56: Arrondissement Cote st-Luc | B56: 520 | C56: 2019-02-12T10:30:59 | D56: 2019-02-12T10:41:05 | E56: 606 | F56: 0.2 | G56: M | H56: Indéterminé | I56: Aucun ( sout.) | J56: Inconnues | K56: Panne
A57: Arrondissement Cote st-Luc | B57: 619 | C57: 2019-02-12T10:41:05 | D57: 2019-02-12T10:41:42 | E57: 37 | F57: 0.0 | G57: M | H57: Indéterminé | I57: Aucun ( sout.) | J57: Inconnues | K57: Panne
A58: Arrondissement Cote st-Luc | B58: 619 | C58: 2019-02-12T10:41:42 | D58: 2019-02-12T10:42:00 | E58: 18 | F58: 0.0 | G58: M | H58: Indéterminé | I58: Aucun ( sout.) | J58: Inconnues | K58: Panne
A59: Arrondissement Cote st-Luc | B59: 1 | C59: 2019-02-12T12:08:21 | D59: 2019-02-12T12:18:24 | E59: 603 | F59: 0.2 | G59: M | H59: Indéterminé | I59: Aucun (Aérien) | J59: Inconnues | K59: Panne
A60: Arrondissement Cote st-Luc | B60: 1 | C60: 2019-02-12T12:29:57 | D60: 2019-02-12T12:31:44 | E60: 107 | F60: 0.0 | G60: M | H60: Indéterminé | I60: Aucun (Aérien) | J60: Inconnues | K60: Panne
A61: Arrondissement Cote st-Luc | B61: 975 | C61: 2019-02-12T12:31:44 | D61: 2019-02-12T13:07:22 | E61: 2138 | F61: 0.6 | G61: M | H61: Indéterminé | I61: Aucun (Aérien) | J61: Inconnues | K61: Panne
A62: Arrondissement Cote st-Luc | B62: 883 | C62: 2019-02-12T12:31:44 | D62: 2019-02-12T12:53:06 | E62: 1282 | F62: 0.4 | G62: M | H62: Indéterminé | I62: Aucun (Aérien) | J62: Inconnues | K62: Panne
A63: Arrondissement Cote st-Luc | B63: 883 | C63: 2019-02-12T12:53:31 | D63: 2019-02-12T13:07:22 | E63: 831 | F63: 0.2 | G63: M | H63: Indéterminé | I63: Aucun ( sout.) | J63: Inconnues | K63: Panne
A64: Arrondissement Cote st-Luc | B64: 361 | C64: 2019-02-12T13:07:22 | D64: 2019-02-12T13:50:06 | E64: 2564 | F64: 0.7 | G64: M | H64: Indéterminé | I64: Aucun ( sout.) | J64: Inconnues | K64: Panne
A65: Arrondissement Cote st-Luc | B65: 350 | C65: 2019-02-12T13:07:22 | D65: 2019-02-12T14:20:38 | E65: 4396 | F65: 1.2 | G65: M | H65: Indéterminé | I65: Aucun ( sout.) | J65: Inconnues | K65: Panne
A66: Arrondissement Cote st-Luc | B66: 1147 | C66: 2019-02-12T13:07:22 | D66: 2019-02-12T14:36:34 | E66: 5352 | F66: =E66/3600 -> 1.5 | G66: M | H66: Indéterminé | I66: Aucun ( sout.) | J66: Inconnues | K66: Panne
A67: Arrondissement Cote st-Luc | B67: 1 | C67: 2019-02-12T14:20:53 | D67: 2019-02-12T15:00:23 | E67: 2370 | F67: 0.7 | G67: M | H67: Indéterminé | I67: Aucun (Aérien) | J67: Inconnues | K67: Panne
A68: Arrondissement Cote st-Luc | B68: 349 | C68: 2019-02-12T14:20:53 | D68: 2019-02-12T15:09:23 | E68: 2910 | F68: 0.8 | G68: M | H68: Indéterminé | I68: Aucun (Aérien) | J68: Inconnues | K68: Panne
A69: Arrondissement Cote st-Luc | B69: 1 | C69: 2019-02-12T15:07:09 | D69: 2019-02-12T15:09:23 | E69: 134 | F69: 0.0 | G69: M | H69: Indéterminé | I69: Aucun (Aérien) | J69: Inconnues | K69: Panne
A70: Arrondissement Cote st-Luc | B70: 27 | C70: 2019-02-12T15:09:23 | D70: 2019-02-12T16:06:48 | E70: 3445 | F70: 1.0 | G70: M | H70: Indéterminé | I70: Aucun (Aérien) | J70: Inconnues | K70: Panne
A71: Arrondissement Cote st-Luc | B71: 323 | C71: 2019-02-12T15:09:23 | D71: 2019-02-12T15:43:15 | E71: 2032 | F71: 0.6 | G71: M | H71: Indéterminé | I71: Aucun (Aérien) | J71: Inconnues | K71: Panne
A72: Arrondissement Cote st-Luc | B72: 204 | C72: 2019-02-12T15:43:31 | D72: 2019-02-12T15:52:36 | E72: 545 | F72: 0.2 | G72: M | H72: Indéterminé | I72: Aucun (Aérien) | J72: Inconnues | K72: Panne
A73: Arrondissement Cote st-Luc | B73: 119 | C73: 2019-02-12T15:43:31 | D73: 2019-02-12T16:06:48 | E73: 1397 | F73: 0.4 | G73: M | H73: Indéterminé | I73: Aucun (Aérien) | J73: Inconnues | K73: Panne
A74: Arrondissement Cote st-Luc | B74: 10 | C74: 2019-02-12T15:52:53 | D74: 2019-02-12T17:15:40 | E74: 4967 | F74: 1.4 | G74: M | H74: Indéterminé | I74: Aucun ( sout.) | J74: Inconnues | K74: Panne
A75: Arrondissement Cote st-Luc | B75: 194 | C75: 2019-02-12T15:52:53 | D75: 2019-02-12T16:07:08 | E75: 855 | F75: 0.2 | G75: M | H75: Indéterminé | I75: Aucun ( sout.) | J75: Inconnues | K75: Panne
A76: Arrondissement Cote st-Luc | B76: 146 | C76: 2019-02-12T16:06:48 | D76: 2019-02-12T16:50:13 | E76: 2605 | F76: 0.7 | G76: M | H76: Indéterminé | I76: Aucun (Aérien) | J76: Inconnues | K76: Panne
A77: Arrondissement Cote st-Luc | B77: 188 | C77: 2019-02-12T16:07:21 | D77: 2019-02-12T17:05:47 | E77: 3506 | F77: 1.0 | G77: M | H77: Indéterminé | I77: Aucun ( sout.) | J77: Inconnues | K77: Panne
A78: Arrondissement Cote st-Luc | B78: 6 | C78: 2019-02-12T16:07:21 | D78: 2019-02-12T17:15:40 | E78: 4099 | F78: 1.1 | G78: M | H78: Indéterminé | I78: Aucun ( sout.) | J78: Inconnues | K78: Panne
A79: Arrondissement Cote st-Luc | B79: 16 | C79: 2019-02-12T17:15:40 | D79: 2019-02-12T17:20:19 | E79: 279 | F79: 0.1 | G79: M | H79: Indéterminé | I79: Aucun ( sout.) | J79: Inconnues | K79: Panne
A80: Arrondissement Cote st-Luc | B80: 699 | C80: 2019-02-14T11:43:34 | D80: 2019-02-14T12:47:16 | E80: 3822 | F80: 1.1 | G80: M | H80: Indéterminé | I80: Autre ( Aérien) | J80: Inconnues | K80: Panne
A81: Arrondissement Cote st-Luc | B81: 52 | C81: 2019-02-14T11:43:34 | D81: 2019-02-14T13:39:54 | E81: 6980 | F81: 1.9 | G81: M | H81: Indéterminé | I81: Autre ( Aérien) | J81: Inconnues | K81: Panne
A82: Arrondissement Cote st-Luc | B82: 488 | C82: 2019-02-14T11:43:34 | D82: 2019-02-14T13:16:04 | E82: 5550 | F82: 1.5 | G82: M | H82: Indéterminé | I82: Autre ( Aérien) | J82: Inconnues | K82: Panne
A83: Arrondissement Cote st-Luc | B83: 699 | C83: 2019-02-14T12:51:21 | D83: 2019-02-14T13:16:04 | E83: 1483 | F83: 0.4 | G83: M | H83: Indéterminé | I83: Autre ( Aérien) | J83: Inconnues | K83: Panne
A84: Arrondissement Cote st-Luc | B84: 1187 | C84: 2019-02-14T13:16:04 | D84: 2019-02-14T13:20:49 | E84: 285 | F84: 0.1 | G84: M | H84: Indéterminé | I84: Autre ( Aérien) | J84: Inconnues | K84: Panne
A85: Arrondissement Cote st-Luc | B85: 488 | C85: 2019-02-14T13:21:09 | D85: 2019-02-14T14:48:29 | E85: 5240 | F85: 1.5 | G85: M | H85: Indéterminé | I85: Autre ( Aérien) | J85: Inconnues | K85: Panne
A86: Arrondissement Cote st-Luc | B86: 699 | C86: 2019-02-14T13:21:09 | D86: 2019-02-14T14:17:18 | E86: 3369 | F86: 0.9 | G86: M | H86: Indéterminé | I86: Autre ( Aérien) | J86: Inconnues | K86: Panne
A87: Arrondissement Cote st-Luc | B87: 202 | C87: 2019-02-14T14:48:29 | D87: 2019-02-14T15:39:58 | E87: 3089 | F87: 0.9 | G87: M | H87: Indéterminé | I87: Autre ( Aérien) | J87: Inconnues | K87: Panne
A88: Arrondissement Cote st-Luc | B88: 286 | C88: 2019-02-14T14:48:29 | D88: 2019-02-14T16:33:06 | E88: 6277 | F88: 1.7 | G88: M | H88: Indéterminé | I88: Autre ( Aérien) | J88: Inconnues | K88: Panne
A89: Arrondissement Cote st-Luc | B89: 202 | C89: 2019-02-14T15:42:47 | D89: 2019-02-14T16:26:41 | E89: 2634 | F89: 0.7 | G89: M | H89: Indéterminé | I89: Aucun (Aérien) | J89: Inconnues | K89: Panne
A90: Arrondissement Cote st-Luc | B90: 202 | C90: 2019-02-14T16:26:41 | D90: 2019-02-14T16:27:51 | E90: 70 | F90: 0.0 | G90: M | H90: Indéterminé | I90: Aucun (Aérien) | J90: Inconnues | K90: Panne
A91: Arrondissement Cote st-Luc | B91: 202 | C91: 2019-02-14T16:28:14 | D91: 2019-02-14T16:33:06 | E91: 292 | F91: 0.1 | G91: M | H91: Indéterminé | I91: Autre ( Aérien) | J91: Inconnues | K91: Panne
A92: Arrondissement Cote st-Luc | B92: 488 | C92: 2019-02-14T16:33:06 | D92: 2019-02-14T16:34:40 | E92: 94 | F92: 0.0 | G92: M | H92: Indéterminé | I92: Autre ( Aérien) | J92: Inconnues | K92: Panne
A93: Arrondissement Cote st-Luc | B93: 214 | C93: 2019-02-22T00:01:26 | D93: 2019-02-22T00:35:46 | E93: 2060 | F93: 0.6 | G93: M | H93: Entretien | I93: Fusible (Boîtier à fusible) | J93: Interruptions planifiées | K93: Interruption programmée
A94: Arrondissement Cote st-Luc | B94: 30 | C94: 2019-02-25T22:24:18 | D94: 2019-02-26T00:30:07 | E94: 7549 | F94: 2.1 | G94: M | H94: Défaillance | I94: Autre (sout.) | J94: Matériel ou équipement | K94: Panne
A95: Arrondissement Cote st-Luc | B95: 188 | C95: 2019-03-03T10:36:39 | D95: 2019-03-03T12:15:36 | E95: 5937 | F95: 1.6 | G95: M | H95: Défaillance | I95: Autre (sout.) | J95: Matériel ou équipement | K95: Panne
A96: Arrondissement Cote st-Luc | B96: 923 | C96: 2019-03-11T11:03:24 | D96: 2019-03-11T12:38:08 | E96: 5684 | F96: 1.6 | G96: M | H96: Manoeuvre séc. non planif. | I96: Aucun (Aérien) | J96: Autres | K96: Panne
A97: Arrondissement Cote st-Luc | B97: 84 | C97: 2019-03-14T18:03:01 | D97: 2019-03-14T22:33:57 | E97: 16256 | F97: 4.5 | G97: M | H97: Vétusté ( Usure temps) | I97: Poteau | J97: Matériel ou équipement | K97: Panne
A98: Arrondissement Cote st-Luc | B98: 58 | C98: 2019-03-21T08:23:11 | D98: 2019-03-21T14:28:36 | E98: 21925 | F98: 6.1 | G98: M | H98: Modification réseau | I98: Conducteur MT | J98: Interruptions planifiées | K98: Interruption programmée
A99: Arrondissement Cote st-Luc | B99: 166 | C99: 2019-03-25T15:11:50 | D99: 2019-03-26T03:57:39 | E99: 45949 | F99: 12.8 | G99: M | H99: Véhicule | I99: Poteau | J99: Public | K99: Panne
A100: Arrondissement Cote st-Luc | B100: 757 | C100: 2019-03-25T15:11:50 | D100: 2019-03-25T16:43:23 | E100: 5493 | F100: 1.5 | G100: M | H100: Véhicule | I100: Poteau | J100: Public | K100: Panne
A101: Arrondissement Cote st-Luc | B101: 226 | C101: 2019-03-25T15:11:55 | D101: 2019-03-26T03:49:39 | E101: 45464 | F101: 12.6 | G101: M | H101: Incendie / Fuite de gaz | I101: Conducteur MT | J101: Public | K101: Panne
A102: Arrondissement Cote st-Luc | B102: 682 | C102: 2019-03-25T15:11:55 | D102: 2019-03-25T16:49:49 | E102: 5874 | F102: 1.6 | G102: M | H102: Incendie / Fuite de gaz | I102: Conducteur MT | J102: Public | K102: Panne
A103: Arrondissement Cote st-Luc | B103: 663 | C103: 2019-03-25T15:11:55 | D103: 2019-03-25T16:43:57 | E103: 5522 | F103: 1.5 | G103: M | H103: Incendie / Fuite de gaz | I103: Conducteur MT | J103: Public | K103: Panne
A104: Arrondissement Cote st-Luc | B104: 351 | C104: 2019-03-25T15:43:46 | D104: 2019-03-25T17:02:35 | E104: 4729 | F104: 1.3 | G104: M | H104: Indéterminé | I104: Conducteur MT | J104: Inconnues | K104: Panne
A105: Arrondissement Cote st-Luc | B105: 52 | C105: 2019-03-25T15:43:46 | D105: 2019-03-25T16:56:13 | E105: 4347 | F105: 1.2 | G105: M | H105: Indéterminé | I105: Conducteur MT | J105: Inconnues | K105: Panne
A106: Arrondissement Cote st-Luc | B106: 1025 | C106: 2019-03-26T08:04:54 | D106: 2019-03-26T08:39:17 | E106: 2063 | F106: 0.6 | G106: M | H106: Indéterminé | I106: Disjoncteur | J106: Inconnues | K106: Panne
A107: Arrondissement Cote st-Luc | B107: 351 | C107: 2019-03-26T08:04:54 | D107: 2019-03-26T08:30:32 | E107: 1538 | F107: 0.4 | G107: M | H107: Indéterminé | I107: Disjoncteur | J107: Inconnues | K107: Panne
A108: Arrondissement Cote st-Luc | B108: 488 | C108: 2019-03-26T08:39:42 | D108: 2019-03-26T11:02:23 | E108: 8561 | F108: 2.4 | G108: M | H108: Indéterminé | I108: Disjoncteur | J108: Inconnues | K108: Panne
A109: Arrondissement Cote st-Luc | B109: 537 | C109: 2019-03-26T08:39:42 | D109: 2019-03-26T10:02:18 | E109: 4956 | F109: 1.4 | G109: M | H109: Indéterminé | I109: Disjoncteur | J109: Inconnues | K109: Panne
A110: Arrondissement Cote st-Luc | B110: 488 | C110: 2019-03-26T11:02:23 | D110: 2019-03-26T11:02:53 | E110: 30 | F110: 0.0 | G110: M | H110: Indéterminé | I110: Disjoncteur | J110: Inconnues | K110: Panne
A111: Arrondissement Cote st-Luc | B111: 202 | C111: 2019-03-26T11:03:26 | D111: 2019-03-26T11:49:22 | E111: 2756 | F111: 0.8 | G111: M | H111: Indéterminé | I111: Disjoncteur | J111: Inconnues | K111: Panne
A112: Arrondissement Cote st-Luc | B112: 286 | C112: 2019-03-26T11:03:26 | D112: 2019-03-26T12:17:52 | E112: 4466 | F112: 1.2 | G112: M | H112: Indéterminé | I112: Disjoncteur | J112: Inconnues | K112: Panne
A113: Arrondissement Cote st-Luc | B113: 202 | C113: 2019-03-26T11:49:22 | D113: 2019-03-26T11:49:42 | E113: 20 | F113: 0.0 | G113: M | H113: Indéterminé | I113: Disjoncteur | J113: Inconnues | K113: Panne
A114: Arrondissement Cote st-Luc | B114: 202 | C114: 2019-03-26T11:56:50 | D114: 2019-03-26T12:17:52 | E114: 1262 | F114: 0.4 | G114: M | H114: Indéterminé | I114: Disjoncteur | J114: Inconnues | K114: Panne
A115: Arrondissement Cote st-Luc | B115: 488 | C115: 2019-03-26T12:17:52 | D115: 2019-03-26T12:18:06 | E115: 14 | F115: 0.0 | G115: M | H115: Indéterminé | I115: Disjoncteur | J115: Inconnues | K115: Panne
A116: Arrondissement Cote st-Luc | B116: 202 | C116: 2019-03-26T13:00:47 | D116: 2019-03-26T13:01:57 | E116: 70 | F116: 0.0 | G116: M | H116: Indéterminé | I116: Disjoncteur | J116: Inconnues | K116: Panne
A117: Arrondissement Cote st-Luc | B117: 488 | C117: 2019-03-26T13:01:57 | D117: 2019-03-26T13:02:11 | E117: 14 | F117: 0.0 | G117: M | H117: Indéterminé | I117: Disjoncteur | J117: Inconnues | K117: Panne
A118: Arrondissement Cote st-Luc | B118: 407 | C118: 2019-03-26T13:02:33 | D118: 2019-03-26T13:07:24 | E118: 291 | F118: 0.1 | G118: M | H118: Défaillance | I118: Autre (sout.) | J118: Matériel ou équipement | K118: Panne
A119: Arrondissement Cote st-Luc | B119: 81 | C119: 2019-03-26T13:02:33 | D119: 2019-03-26T19:39:00 | E119: 23787 | F119: 6.6 | G119: B | H119: Défaillance | I119: Infrastructure sout. | J119: Matériel ou équipement | K119: Panne
A120: Arrondissement Cote st-Luc | B120: 49 | C120: 2019-03-28T09:13:44 | D120: 2019-03-28T13:29:21 | E120: 15337 | F120: 4.3 | G120: M | H120: Entretien | I120: Conducteur MT | J120: Interruptions planifiées | K120: Interruption programmée
A121: Arrondissement Cote st-Luc | B121: 12 | C121: 2019-04-14T10:11:48 | D121: 2019-04-14T20:24:09 | E121: 36741 | F121: 10.2 | G121: M | H121: Défaillance | I121: Réseau basse tension | J121: Matériel ou équipement | K121: Panne
A122: Arrondissement Cote st-Luc | B122: 81 | C122: 2019-04-19T00:24:54 | D122: 2019-04-19T00:25:52 | E122: 58 | F122: 0.0 | G122: B | H122: Entretien | I122: Câble et barre MT | J122: Interruptions planifiées | K122: Interruption programmée
A123: Arrondissement Cote st-Luc | B123: 222 | C123: 2019-05-01T09:45:14 | D123: 2019-05-01T15:05:22 | E123: 19208 | F123: 5.3 | G123: M | H123: Interruption demande client | I123: Aucun (Aérien) | J123: Interruptions planifiées | K123: Interruption programmée
A124: Arrondissement Cote st-Luc | B124: 49 | C124: 2019-05-08T09:37:29 | D124: 2019-05-08T16:47:59 | E124: 25830 | F124: 7.2 | G124: B | H124: Travaux sécuritaires | I124: Transfo. Aérien | J124: Interruptions planifiées | K124: Interruption programmée
A125: Arrondissement Cote st-Luc | B125: 1433 | C125: 2019-05-09T06:30:43 | D125: 2019-05-09T06:40:38 | E125: 595 | F125: 0.2 | G125: M | H125: Indéterminé | I125: Aucun (Aérien) | J125: Inconnues | K125: Panne
A126: Arrondissement Cote st-Luc | B126: 384 | C126: 2019-05-12T00:29:46 | D126: 2019-05-12T01:31:27 | E126: 3701 | F126: 1.0 | G126: M | H126: Pannes | I126: Équipement Trans-Énergie | J126: Perte d'alimentation | K126: Perte alimentation
A127: Arrondissement Cote st-Luc | B127: 724 | C127: 2019-05-12T00:29:46 | D127: 2019-05-12T01:32:16 | E127: 3750 | F127: 1.0 | G127: M | H127: Pannes | I127: Équipement Trans-Énergie | J127: Perte d'alimentation | K127: Perte alimentation
A128: Arrondissement Cote st-Luc | B128: 1057 | C128: 2019-05-12T00:29:46 | D128: 2019-05-12T01:31:47 | E128: 3721 | F128: 1.0 | G128: M | H128: Pannes | I128: Équipement Trans-Énergie | J128: Perte d'alimentation | K128: Perte alimentation
A129: Arrondissement Cote st-Luc | B129: 9 | C129: 2019-05-16T08:46:59 | D129: 2019-05-16T16:55:58 | E129: 29339 | F129: 8.1 | G129: B | H129: Manoeuvres | I129: Autre (sout.) | J129: Interruptions planifiées | K129: Interruption programmée
A130: Arrondissement Cote st-Luc | B130: 923 | C130: 2019-05-20T00:34:53 | D130: 2019-05-20T00:50:00 | E130: 907 | F130: =E130/3600 -> 0.3 | G130: M | H130: Indéterminé | I130: Aucun (Aérien) | J130: Inconnues | K130: Panne
A131: Arrondissement Cote st-Luc | B131: 52 | C131: 2019-05-20T00:34:53 | D131: 2019-05-20T01:08:25 | E131: 2012 | F131: 0.6 | G131: M | H131: Indéterminé | I131: Aucun (Aérien) | J131: Inconnues | K131: Panne
A132: Arrondissement Cote st-Luc | B132: 720 | C132: 2019-05-20T00:50:30 | D132: 2019-05-20T03:32:09 | E132: 9699 | F132: 2.7 | G132: M | H132: Indéterminé | I132: Aucun (Aérien) | J132: Inconnues | K132: Panne
A133: Arrondissement Cote st-Luc | B133: 203 | C133: 2019-05-20T00:50:30 | D133: 2019-05-20T03:39:01 | E133: 10111 | F133: 2.8 | G133: M | H133: Indéterminé | I133: Aucun (Aérien) | J133: Inconnues | K133: Panne
A134: Arrondissement Cote st-Luc | B134: 720 | C134: 2019-05-20T03:32:09 | D134: 2019-05-20T03:32:56 | E134: 47 | F134: 0.0 | G134: M | H134: Indéterminé | I134: Aucun (Aérien) | J134: Inconnues | K134: Panne
A135: Arrondissement Cote st-Luc | B135: 923 | C135: 2019-06-03T12:36:13 | D135: 2019-06-03T13:34:22 | E135: 3489 | F135: 1.0 | G135: M | H135: Incendie / Fuite de gaz | I135: Aucun (Aérien) | J135: Public | K135: Panne
A136: Arrondissement Cote st-Luc | B136: 1571 | C136: 2019-06-05T14:32:12 | D136: 2019-06-05T14:33:12 | E136: 60 | F136: 0.0 | G136: M | H136: Pannes | I136: Équipement Trans-Énergie | J136: Perte d'alimentation | K136: Perte alimentation
A137: Arrondissement Cote st-Luc | B137: 923 | C137: 2019-06-05T14:33:07 | D137: 2019-06-05T14:33:34 | E137: 27 | F137: 0.0 | G137: M | H137: Pannes | I137: Équipement Trans-Énergie | J137: Perte d'alimentation | K137: Perte alimentation
A138: Arrondissement Cote st-Luc | B138: 1497 | C138: 2019-06-05T14:35:49 | D138: 2019-06-05T14:35:51 | E138: 2 | F138: 0.0 | G138: M | H138: Indéterminé | I138: Aucun (Aérien) | J138: Inconnues | K138: Panne
A139: Arrondissement Cote st-Luc | B139: 1497 | C139: 2019-06-05T14:37:15 | D139: 2019-06-05T14:37:23 | E139: 8 | F139: 0.0 | G139: M | H139: Indéterminé | I139: Aucun (Aérien) | J139: Inconnues | K139: Panne
A140: Arrondissement Cote st-Luc | B140: 261 | C140: 2019-06-05T14:48:55 | D140: 2019-06-05T14:49:02 | E140: 7 | F140: 0.0 | G140: M | H140: Indéterminé | I140: Aucun (Aérien) | J140: Inconnues | K140: Panne
A141: Arrondissement Cote st-Luc | B141: 28 | C141: 2019-06-05T14:49:50 | D141: 2019-06-05T14:50:48 | E141: 58 | F141: 0.0 | G141: M | H141: Indéterminé | I141: Aucun (Aérien) | J141: Inconnues | K141: Panne
A142: Arrondissement Cote st-Luc | B142: 3036 | C142: 2019-06-05T14:51:05 | D142: 2019-06-05T14:51:10 | E142: 5 | F142: 0.0 | G142: M | H142: Indéterminé | I142: Aucun (Aérien) | J142: Inconnues | K142: Panne
A143: Arrondissement Cote st-Luc | B143: 955 | C143: 2019-06-05T14:51:24 | D143: 2019-06-05T14:51:34 | E143: 10 | F143: 0.0 | G143: M | H143: Indéterminé | I143: Aucun (Aérien) | J143: Inconnues | K143: Panne
A144: Arrondissement Cote st-Luc | B144: 875 | C144: 2019-06-05T14:51:48 | D144: 2019-06-05T14:52:53 | E144: 65 | F144: 0.0 | G144: M | H144: Indéterminé | I144: Aucun (Aérien) | J144: Inconnues | K144: Panne
A145: Arrondissement Cote st-Luc | B145: 1442 | C145: 2019-06-05T14:53:26 | D145: 2019-06-05T14:53:31 | E145: 5 | F145: 0.0 | G145: M | H145: Indéterminé | I145: Aucun (Aérien) | J145: Inconnues | K145: Panne
A146: Arrondissement Cote st-Luc | B146: 121 | C146: 2019-06-05T14:53:50 | D146: 2019-06-05T14:54:00 | E146: 10 | F146: 0.0 | G146: M | H146: Indéterminé | I146: Aucun (Aérien) | J146: Inconnues | K146: Panne
A147: Arrondissement Cote st-Luc | B147: 68 | C147: 2019-06-05T14:54:39 | D147: 2019-06-05T14:54:44 | E147: 5 | F147: 0.0 | G147: M | H147: Indéterminé | I147: Aucun (Aérien) | J147: Inconnues | K147: Panne
A148: Arrondissement Cote st-Luc | B148: 1057 | C148: 2019-06-05T14:55:27 | D148: 2019-06-05T14:55:30 | E148: 3 | F148: 0.0 | G148: M | H148: Indéterminé | I148: Aucun (Aérien) | J148: Inconnues | K148: Panne
A149: Arrondissement Cote st-Luc | B149: 724 | C149: 2019-06-05T14:56:39 | D149: 2019-06-05T14:56:58 | E149: 19 | F149: 0.0 | G149: M | H149: Indéterminé | I149: Aucun (Aérien) | J149: Inconnues | K149: Panne
A150: Arrondissement Cote st-Luc | B150: 384 | C150: 2019-06-05T14:58:34 | D150: 2019-06-05T14:58:42 | E150: 8 | F150: 0.0 | G150: M | H150: Indéterminé | I150: Aucun (Aérien) | J150: Inconnues | K150: Panne
A151: Arrondissement Cote st-Luc | B151: 351 | C151: 2019-06-05T15:07:09 | D151: 2019-06-05T15:07:15 | E151: 6 | F151: 0.0 | G151: M | H151: Indéterminé | I151: Aucun (Aérien) | J151: Inconnues | K151: Panne
A152: Arrondissement Cote st-Luc | B152: 1025 | C152: 2019-06-05T15:07:28 | D152: 2019-06-05T15:08:50 | E152: 82 | F152: 0.0 | G152: M | H152: Indéterminé | I152: Aucun (Aérien) | J152: Inconnues | K152: Panne
A153: Arrondissement Cote st-Luc | B153: 52 | C153: 2019-06-05T15:09:47 | D153: 2019-06-05T15:09:50 | E153: 3 | F153: 0.0 | G153: M | H153: Indéterminé | I153: Aucun (Aérien) | J153: Inconnues | K153: Panne
A154: Arrondissement Cote st-Luc | B154: 2461 | C154: 2019-06-05T15:09:50 | D154: 2019-06-05T15:10:43 | E154: 53 | F154: 0.0 | G154: M | H154: Pannes | I154: Équipement Trans-Énergie | J154: Perte d'alimentation | K154: Perte alimentation
A155: Arrondissement Cote st-Luc | B155: 923 | C155: 2019-06-06T13:23:39 | D155: 2019-06-06T14:21:38 | E155: 3479 | F155: 1.0 | G155: M | H155: Pannes | I155: Équipement Trans-Énergie | J155: Perte d'alimentation | K155: Perte alimentation
A156: Arrondissement Cote st-Luc | B156: 261 | C156: 2019-06-08T20:17:37 | D156: 2019-06-08T20:29:45 | E156: 728 | F156: 0.2 | G156: M | H156: Indéterminé | I156: Disjoncteur | J156: Inconnues | K156: Panne
A157: Arrondissement Cote st-Luc | B157: 12 | C157: 2019-06-10T20:54:22 | D157: 2019-06-10T22:10:12 | E157: 4550 | F157: 1.3 | G157: M | H157: Défaillance | I157: Réseau basse tension | J157: Matériel ou équipement | K157: Panne
A158: Arrondissement Cote st-Luc | B158: 34 | C158: 2019-06-11T08:09:13 | D158: 2019-06-11T11:32:44 | E158: 12211 | F158: 3.4 | G158: B | H158: Végétation | I158: Coupe-circuit | J158: Végétation | K158: Panne
A159: Arrondissement Cote st-Luc | B159: 923 | C159: 2019-06-12T14:15:48 | D159: 2019-06-12T15:08:11 | E159: 3143 | F159: 0.9 | G159: M | H159: Incendie / Fuite de gaz | I159: Conducteur MT | J159: Public | K159: Panne
A160: Arrondissement Cote st-Luc | B160: 22 | C160: 2019-06-16T08:40:04 | D160: 2019-06-16T10:29:03 | E160: 6539 | F160: 1.8 | G160: B | H160: Animal | I160: Aucun (Aérien) | J160: Faune | K160: Panne
A161: Arrondissement Cote st-Luc | B161: 18 | C161: 2019-06-21T09:53:18 | D161: 2019-06-21T12:12:52 | E161: 8374 | F161: 2.3 | G161: B | H161: Animal | I161: Aucun (Aérien) | J161: Faune | K161: Panne
A162: Arrondissement Cote st-Luc | B162: 35 | C162: 2019-06-24T05:48:52 | D162: 2019-06-24T08:57:43 | E162: 11331 | F162: 3.1 | G162: M | H162: Oiseau | I162: Aucun (Aérien) | J162: Faune | K162: Panne
A163: Arrondissement Cote st-Luc | B163: 12 | C163: 2019-06-24T05:48:52 | D163: 2019-06-24T08:57:43 | E163: 11331 | F163: 3.1 | G163: M | H163: Oiseau | I163: Aucun (Aérien) | J163: Faune | K163: Panne
A164: Arrondissement Cote st-Luc | B164: 47 | C164: 2019-06-24T08:57:43 | D164: 2019-06-24T08:58:17 | E164: 34 | F164: 0.0 | G164: M | H164: Oiseau | I164: Aucun (Aérien) | J164: Faune | K164: Panne
A165: Arrondissement Cote st-Luc | B165: 8 | C165: 2019-06-24T18:13:11 | D165: 2019-06-24T19:19:09 | E165: 3958 | F165: 1.1 | G165: B | H165: Animal | I165: Aucun (Aérien) | J165: Faune | K165: Panne
A166: Arrondissement Cote st-Luc | B166: 923 | C166: 2019-06-25T05:22:16 | D166: 2019-06-25T05:32:47 | E166: 631 | F166: 0.2 | G166: M | H166: Indéterminé | I166: Aucun (Aérien) | J166: Inconnues | K166: Panne
A167: Arrondissement Cote st-Luc | B167: 1 | C167: 2019-06-25T07:23:07 | D167: 2019-06-25T10:19:19 | E167: 10572 | F167: 2.9 | G167: B | H167: Animal | I167: Aucun (Aérien) | J167: Faune | K167: Panne
A168: Arrondissement Cote st-Luc | B168: 121 | C168: 2019-06-26T09:36:06 | D168: 2019-06-26T09:36:17 | E168: 11 | F168: 0.0 | G168: M | H168: Pannes | I168: Équipement Trans-Énergie | J168: Perte d'alimentation | K168: Perte alimentation
A169: Arrondissement Cote st-Luc | B169: 261 | C169: 2019-06-26T09:36:06 | D169: 2019-06-26T09:36:31 | E169: 25 | F169: 0.0 | G169: M | H169: Indéterminé | I169: Aucun (Aérien) | J169: Inconnues | K169: Panne
A170: Arrondissement Cote st-Luc | B170: 1442 | C170: 2019-06-26T09:36:09 | D170: 2019-06-26T09:36:34 | E170: 25 | F170: 0.0 | G170: M | H170: Indéterminé | I170: Aucun (Aérien) | J170: Inconnues | K170: Panne
A171: Arrondissement Cote st-Luc | B171: 875 | C171: 2019-06-26T09:36:09 | D171: 2019-06-26T09:36:34 | E171: 25 | F171: 0.0 | G171: M | H171: Indéterminé | I171: Aucun (Aérien) | J171: Inconnues | K171: Panne
A172: Arrondissement Cote st-Luc | B172: 3036 | C172: 2019-06-26T09:36:09 | D172: 2019-06-26T09:36:35 | E172: 26 | F172: 0.0 | G172: M | H172: Indéterminé | I172: Aucun (Aérien) | J172: Inconnues | K172: Panne
A173: Arrondissement Cote st-Luc | B173: 955 | C173: 2019-06-26T09:36:09 | D173: 2019-06-26T09:36:34 | E173: 25 | F173: 0.0 | G173: M | H173: Indéterminé | I173: Aucun (Aérien) | J173: Inconnues | K173: Panne
A174: Arrondissement Cote st-Luc | B174: 28 | C174: 2019-06-26T09:36:09 | D174: 2019-06-26T09:36:35 | E174: 26 | F174: 0.0 | G174: M | H174: Indéterminé | I174: Aucun (Aérien) | J174: Inconnues | K174: Panne
A175: Arrondissement Cote st-Luc | B175: 68 | C175: 2019-06-26T09:36:16 | D175: 2019-06-26T09:36:17 | E175: 1 | F175: 0.0 | G175: M | H175: Indéterminé | I175: Poteau | J175: Inconnues | K175: Panne
A176: Arrondissement Cote st-Luc | B176: 189 | C176: 2019-06-26T09:36:17 | D176: 2019-06-26T09:36:22 | E176: 5 | F176: 0.0 | G176: M | H176: Indéterminé | I176: Poteau | J176: Inconnues | K176: Panne
A177: Arrondissement Cote st-Luc | B177: 121 | C177: 2019-06-26T09:36:22 | D177: 2019-06-26T09:36:24 | E177: 2 | F177: 0.0 | G177: M | H177: Indéterminé | I177: Poteau | J177: Inconnues | K177: Panne
A178: Arrondissement Cote st-Luc | B178: 68 | C178: 2019-06-26T09:36:22 | D178: 2019-06-26T09:36:24 | E178: 2 | F178: 0.0 | G178: M | H178: Indéterminé | I178: Poteau | J178: Inconnues | K178: Panne
A179: Arrondissement Cote st-Luc | B179: 189 | C179: 2019-06-26T09:36:24 | D179: 2019-06-26T09:36:32 | E179: 8 | F179: 0.0 | G179: M | H179: Indéterminé | I179: Poteau | J179: Inconnues | K179: Panne
A180: Arrondissement Cote st-Luc | B180: 121 | C180: 2019-06-26T09:36:32 | D180: 2019-06-26T09:36:33 | E180: 1 | F180: 0.0 | G180: M | H180: Indéterminé | I180: Poteau | J180: Inconnues | K180: Panne
A181: Arrondissement Cote st-Luc | B181: 68 | C181: 2019-06-26T09:36:32 | D181: 2019-06-26T09:36:33 | E181: 1 | F181: 0.0 | G181: M | H181: Indéterminé | I181: Poteau | J181: Inconnues | K181: Panne
A182: Arrondissement Cote st-Luc | B182: 189 | C182: 2019-06-26T09:36:33 | D182: 2019-06-26T09:36:35 | E182: 2 | F182: 0.0 | G182: M | H182: Indéterminé | I182: Poteau | J182: Inconnues | K182: Panne
A183: Arrondissement Cote st-Luc | B183: 121 | C183: 2019-06-26T09:36:35 | D183: 2019-06-26T09:36:36 | E183: 1 | F183: 0.0 | G183: M | H183: Indéterminé | I183: Poteau | J183: Inconnues | K183: Panne
A184: Arrondissement Cote st-Luc | B184: 68 | C184: 2019-06-26T09:36:35 | D184: 2019-06-26T09:36:36 | E184: 1 | F184: 0.0 | G184: M | H184: Indéterminé | I184: Poteau | J184: Inconnues | K184: Panne
A185: Arrondissement Cote st-Luc | B185: 189 | C185: 2019-06-26T09:36:36 | D185: 2019-06-26T09:36:38 | E185: 2 | F185: 0.0 | G185: M | H185: Indéterminé | I185: Poteau | J185: Inconnues | K185: Panne
A186: Arrondissement Cote st-Luc | B186: 351 | C186: 2019-06-26T09:39:53 | D186: 2019-06-26T09:39:57 | E186: 4 | F186: 0.0 | G186: M | H186: Indéterminé | I186: Poteau | J186: Inconnues | K186: Panne
A187: Arrondissement Cote st-Luc | B187: 1497 | C187: 2019-06-26T09:39:53 | D187: 2019-06-26T09:39:57 | E187: 4 | F187: 0.0 | G187: M | H187: Indéterminé | I187: Poteau | J187: Inconnues | K187: Panne
A188: Arrondissement Cote st-Luc | B188: 1497 | C188: 2019-06-26T09:39:57 | D188: 2019-06-26T09:40:01 | E188: 4 | F188: 0.0 | G188: M | H188: Indéterminé | I188: Poteau | J188: Inconnues | K188: Panne
A189: Arrondissement Cote st-Luc | B189: 261 | C189: 2019-06-26T09:40:05 | D189: 2019-06-26T09:40:08 | E189: 3 | F189: 0.0 | G189: M | H189: Indéterminé | I189: Poteau | J189: Inconnues | K189: Panne
A190: Arrondissement Cote st-Luc | B190: 121 | C190: 2019-06-26T09:40:15 | D190: 2019-06-26T09:40:17 | E190: 2 | F190: 0.0 | G190: M | H190: Indéterminé | I190: Poteau | J190: Inconnues | K190: Panne
A191: Arrondissement Cote st-Luc | B191: 68 | C191: 2019-06-26T09:40:15 | D191: 2019-06-26T09:40:17 | E191: 2 | F191: 0.0 | G191: M | H191: Indéterminé | I191: Poteau | J191: Inconnues | K191: Panne
A192: Arrondissement Cote st-Luc | B192: 189 | C192: 2019-06-26T09:40:17 | D192: 2019-06-26T09:40:25 | E192: 8 | F192: 0.0 | G192: M | H192: Indéterminé | I192: Poteau | J192: Inconnues | K192: Panne
A193: Arrondissement Cote st-Luc | B193: 121 | C193: 2019-06-26T09:40:25 | D193: 2019-06-26T09:40:26 | E193: 1 | F193: 0.0 | G193: M | H193: Indéterminé | I193: Poteau | J193: Inconnues | K193: Panne
A194: Arrondissement Cote st-Luc | B194: 68 | C194: 2019-06-26T09:40:25 | D194: 2019-06-26T09:40:26 | E194: 1 | F194: =E194/3600 -> 0.0 | G194: M | H194: Indéterminé | I194: Poteau | J194: Inconnues | K194: Panne
A195: Arrondissement Cote st-Luc | B195: 189 | C195: 2019-06-26T09:40:26 | D195: 2019-06-26T09:40:28 | E195: 2 | F195: 0.0 | G195: M | H195: Indéterminé | I195: Poteau | J195: Inconnues | K195: Panne
A196: Arrondissement Cote st-Luc | B196: 261 | C196: 2019-06-26T13:58:28 | D196: 2019-06-26T17:09:28 | E196: 11460 | F196: 3.2 | G196: M | H196: Pannes | I196: Équipement Trans-Énergie | J196: Perte d'alimentation | K196: Perte alimentation
A197: Arrondissement Cote st-Luc | B197: 2165 | C197: 2019-06-26T13:58:33 | D197: 2019-06-26T17:09:35 | E197: 11462 | F197: 3.2 | G197: M | H197: Pannes | I197: Équipement Trans-Énergie | J197: Perte d'alimentation | K197: Perte alimentation
A198: Arrondissement Cote st-Luc | B198: 6336 | C198: 2019-06-26T13:58:33 | D198: 2019-06-26T17:09:31 | E198: 11458 | F198: 3.2 | G198: M | H198: Pannes | I198: Équipement Trans-Énergie | J198: Perte d'alimentation | K198: Perte alimentation
A199: Arrondissement Cote st-Luc | B199: 189 | C199: 2019-06-26T13:58:33 | D199: 2019-06-26T17:15:24 | E199: 11811 | F199: 3.3 | G199: M | H199: Pannes | I199: Équipement Trans-Énergie | J199: Perte d'alimentation | K199: Perte alimentation
A200: Arrondissement Cote st-Luc | B200: 1033 | C200: 2019-06-26T13:58:37 | D200: 2019-06-26T16:58:11 | E200: 10774 | F200: 3.0 | G200: M | H200: Pannes | I200: Équipement Trans-Énergie | J200: Perte d'alimentation | K200: Perte alimentation
... 654 more rows

Sheet Détails_Année_2020
A1: INT_COD_CED | B1: NOMBRE_CLIENTS | C1: DATE_DEBUT_INTERRUPTION | D1: INT_DATE_FIN_INTERRUPTION | E1: DUREE (SEC) | F1: DUREE (HEURE) | G1: TYPE D'INTERRUPTION | H1: DESCRIPTION CAUSE DETAILLEE | I1: DESCRIPTION EQUIPEMENT | J1: GROUPECAUSE | K1: CATEGORIE
A2: Arrondissement Cote st-Luc | B2: 7 | C2: 2020-01-01T17:12:43 | D2: 2020-01-02T02:13:00 | E2: 32417 | F2: =E2/3600 -> 9.0 | G2: Basse Tension | H2: Défaillance | I2: Transfo. Aérien | J2: Matériel ou équipement | K2: Panne
A3: Arrondissement Cote st-Luc | B3: 36 | C3: 2020-01-09T17:24:55 | D3: 2020-01-09T18:55:04 | E3: 5409 | F3: 1.5 | G3: Moyenne Tension | H3: Défaillance | I3: Fusible | J3: Matériel ou équipement | K3: Panne
A4: Arrondissement Cote st-Luc | B4: 7 | C4: 2020-01-09T19:26:12 | D4: 2020-01-10T02:09:50 | E4: 24218 | F4: 6.7 | G4: Basse Tension | H4: Surcharge | I4: Transfo. Aérien | J4: Matériel ou équipement | K4: Panne
A5: Arrondissement Cote st-Luc | B5: 19 | C5: 2020-01-10T03:01:44 | D5: 2020-01-10T03:59:59 | E5: 3495 | F5: 1.0 | G5: Moyenne Tension | H5: Contact accidentel | I5: Poteau | J5: Autres | K5: Panne
A6: Arrondissement Cote st-Luc | B6: 180 | C6: 2020-01-12T01:05:47 | D6: 2020-01-12T06:26:24 | E6: 19237 | F6: 5.3 | G6: Moyenne Tension | H6: Défaillance | I6: Transfo. Sout. | J6: Matériel ou équipement | K6: Panne
A7: Arrondissement Cote st-Luc | B7: 923 | C7: 2020-01-13T23:01:01 | D7: 2020-01-13T23:12:27 | E7: 686 | F7: 0.2 | G7: Moyenne Tension | H7: Indéterminé | I7: Disjoncteur | J7: Inconnues | K7: Panne
A8: Arrondissement Cote st-Luc | B8: 923 | C8: 2020-01-13T23:12:41 | D8: 2020-01-14T01:15:19 | E8: 7358 | F8: 2.0 | G8: Moyenne Tension | H8: Défaillance | I8: Infrastructure sout. | J8: Matériel ou équipement | K8: Panne
A9: Arrondissement Cote st-Luc | B9: 49 | C9: 2020-01-22T00:05:08 | D9: 2020-01-22T01:23:19 | E9: 4691 | F9: 1.3 | G9: Moyenne Tension | H9: Entretien | I9: Transfo. Sout. | J9: Interruptions planifiées | K9: Interruption programmée
A10: Arrondissement Cote st-Luc | B10: 49 | C10: 2020-01-22T01:55:25 | D10: 2020-01-22T02:09:17 | E10: 832 | F10: 0.2 | G10: Moyenne Tension | H10: Entretien | I10: Transfo. Sout. | J10: Interruptions planifiées | K10: Interruption programmée
A11: Arrondissement Cote st-Luc | B11: 261 | C11: 2020-01-22T01:59:46 | D11: 2020-01-22T03:03:39 | E11: 3833 | F11: 1.1 | G11: Moyenne Tension | H11: Manoeuvre séc. non planif. | I11: Aucun (Aérien) | J11: Autres | K11: Panne
A12: Arrondissement Cote st-Luc | B12: 17 | C12: 2020-01-24T08:34:11 | D12: 2020-01-24T11:08:19 | E12: 9248 | F12: 2.6 | G12: Basse Tension | H12: Modification réseau | I12: Transfo. Aérien | J12: Interruptions planifiées | K12: Interruption programmée
A13: Arrondissement Cote st-Luc | B13: 53 | C13: 2020-02-03T08:33:23 | D13: 2020-02-03T15:06:56 | E13: 23613 | F13: 6.6 | G13: Moyenne Tension | H13: Entretien | I13: Transfo. Sout. | J13: Interruptions planifiées | K13: Interruption programmée
A14: Arrondissement Cote st-Luc | B14: 36 | C14: 2020-02-04T08:06:23 | D14: 2020-02-04T11:59:25 | E14: 13982 | F14: 3.9 | G14: Moyenne Tension | H14: Entretien | I14: Poteau | J14: Interruptions planifiées | K14: Interruption programmée
A15: Arrondissement Cote st-Luc | B15: 15 | C15: 2020-02-09T07:21:06 | D15: 2020-02-09T11:11:31 | E15: 13825 | F15: 3.8 | G15: Basse Tension | H15: Défaillance | I15: Réseau basse tension | J15: Matériel ou équipement | K15: Panne
A16: Arrondissement Cote st-Luc | B16: 21 | C16: 2020-02-19T00:12:08 | D16: 2020-02-19T04:06:50 | E16: 14082 | F16: 3.9 | G16: Moyenne Tension | H16: Entretien | I16: Composante sout. MT | J16: Interruptions planifiées | K16: Interruption programmée
A17: Arrondissement Cote st-Luc | B17: 41 | C17: 2020-02-19T00:17:21 | D17: 2020-02-19T04:06:37 | E17: 13756 | F17: 3.8 | G17: Moyenne Tension | H17: Entretien | I17: Composante sout. MT | J17: Interruptions planifiées | K17: Interruption programmée
A18: Arrondissement Cote st-Luc | B18: 41 | C18: 2020-02-19T04:06:37 | D18: 2020-02-19T04:06:50 | E18: 13 | F18: 0.0 | G18: Moyenne Tension | H18: Entretien | I18: Composante sout. MT | J18: Interruptions planifiées | K18: Interruption programmée
A19: Arrondissement Cote st-Luc | B19: 62 | C19: 2020-02-19T04:06:50 | D19: 2020-02-19T04:14:12 | E19: 442 | F19: 0.1 | G19: Moyenne Tension | H19: Entretien | I19: Composante sout. MT | J19: Interruptions planifiées | K19: Interruption programmée
A20: Arrondissement Cote st-Luc | B20: 62 | C20: 2020-02-19T04:45:37 | D20: 2020-02-19T05:22:37 | E20: 2220 | F20: 0.6 | G20: Moyenne Tension | H20: Entretien | I20: Composante sout. MT | J20: Interruptions planifiées | K20: Interruption programmée
A21: Arrondissement Cote st-Luc | B21: 21 | C21: 2020-02-19T05:22:37 | D21: 2020-02-19T05:26:29 | E21: 232 | F21: 0.1 | G21: Moyenne Tension | H21: Entretien | I21: Composante sout. MT | J21: Interruptions planifiées | K21: Interruption programmée
A22: Arrondissement Cote st-Luc | B22: 41 | C22: 2020-02-19T05:22:37 | D22: 2020-02-19T05:27:08 | E22: 271 | F22: 0.1 | G22: Moyenne Tension | H22: Entretien | I22: Composante sout. MT | J22: Interruptions planifiées | K22: Interruption programmée
A23: Arrondissement Cote st-Luc | B23: 13 | C23: 2020-02-21T00:04:28 | D23: 2020-02-21T05:59:59 | E23: 21331 | F23: 5.9 | G23: Basse Tension | H23: Défaillance | I23: Transfo. Aérien | J23: Matériel ou équipement | K23: Panne
A24: Arrondissement Cote st-Luc | B24: 61 | C24: 2020-02-24T08:30:53 | D24: 2020-02-24T15:32:02 | E24: 25269 | F24: 7.0 | G24: Moyenne Tension | H24: Entretien | I24: Autre ( Aérien) | J24: Interruptions planifiées | K24: Interruption programmée
A25: Arrondissement Cote st-Luc | B25: 1614 | C25: 2020-02-29T20:58:04 | D25: 2020-02-29T21:26:24 | E25: 1700 | F25: 0.5 | G25: Moyenne Tension | H25: Manoeuvre séc. non planif. | I25: Aucun (Aérien) | J25: Autres | K25: Panne
A26: Arrondissement Cote st-Luc | B26: 1 | C26: 2020-03-04T14:41:16 | D26: 2020-03-04T19:27:37 | E26: 17181 | F26: 4.8 | G26: Moyenne Tension | H26: Défaillance | I26: Transfo. Sout. | J26: Matériel ou équipement | K26: Panne
A27: Arrondissement Cote st-Luc | B27: 80 | C27: 2020-03-13T15:30:05 | D27: 2020-03-13T21:10:52 | E27: 20447 | F27: 5.7 | G27: Moyenne Tension | H27: Défaillance | I27: Réseau basse tension | J27: Matériel ou équipement | K27: Panne
A28: Arrondissement Cote st-Luc | B28: 261 | C28: 2020-03-27T19:05:40 | D28: 2020-03-27T20:27:47 | E28: 4927 | F28: 1.4 | G28: Moyenne Tension | H28: Manoeuvre séc. non planif. | I28: Aucun (Aérien) | J28: Autres | K28: Panne
A29: Arrondissement Cote st-Luc | B29: 1571 | C29: 2020-03-28T15:54:48 | D29: 2020-03-28T16:59:55 | E29: 3907 | F29: 1.1 | G29: Moyenne Tension | H29: Incendie / Fuite de gaz | I29: Aucun (Aérien) | J29: Public | K29: Panne
A30: Arrondissement Cote st-Luc | B30: 17 | C30: 2020-04-25T22:27:54 | D30: 2020-04-26T00:01:48 | E30: 5634 | F30: 1.6 | G30: Basse Tension | H30: Défaillance | I30: Réseau basse tension | J30: Matériel ou équipement | K30: Panne
A31: Arrondissement Cote st-Luc | B31: 7 | C31: 2020-05-02T08:28:13 | D31: 2020-05-02T09:06:52 | E31: 2319 | F31: 0.6 | G31: Basse Tension | H31: Animal | I31: Fusible | J31: Faune | K31: Panne
A32: Arrondissement Cote st-Luc | B32: 17 | C32: 2020-05-03T05:52:54 | D32: 2020-05-03T08:59:47 | E32: 11213 | F32: 3.1 | G32: Moyenne Tension | H32: Animal | I32: Aucun (Aérien) | J32: Faune | K32: Panne
A33: Arrondissement Cote st-Luc | B33: 47 | C33: 2020-05-04T11:48:16 | D33: 2020-05-04T13:27:10 | E33: 5934 | F33: 1.6 | G33: Moyenne Tension | H33: Animal | I33: Isolateur | J33: Faune | K33: Panne
A34: Arrondissement Cote st-Luc | B34: 261 | C34: 2020-05-15T09:40:56 | D34: 2020-05-15T10:45:09 | E34: 3853 | F34: =E34/3600 -> 1.1 | G34: Moyenne Tension | H34: Animal | I34: Interrupteur tripolaire | J34: Faune | K34: Panne
A35: Arrondissement Cote st-Luc | B35: 40 | C35: 2020-05-19T12:03:23 | D35: 2020-05-19T15:11:39 | E35: 11296 | F35: 3.1 | G35: Moyenne Tension | H35: Incendie / Fuite de gaz | I35: Autre ( Aérien) | J35: Public | K35: Panne
A36: Arrondissement Cote st-Luc | B36: 525 | C36: 2020-05-19T12:03:23 | D36: 2020-05-19T16:52:26 | E36: 17343 | F36: 4.8 | G36: Moyenne Tension | H36: Incendie / Fuite de gaz | I36: Autre ( Aérien) | J36: Public | K36: Panne
A37: Arrondissement Cote st-Luc | B37: 719 | C37: 2020-05-19T12:03:23 | D37: 2020-05-19T15:05:11 | E37: 10908 | F37: 3.0 | G37: Moyenne Tension | H37: Incendie / Fuite de gaz | I37: Autre ( Aérien) | J37: Public | K37: Panne
A38: Arrondissement Cote st-Luc | B38: 13 | C38: 2020-05-25T08:31:45 | D38: 2020-05-25T09:19:28 | E38: 2863 | F38: 0.8 | G38: Basse Tension | H38: Modification réseau | I38: Transfo. Aérien | J38: Interruptions planifiées | K38: Interruption programmée
A39: Arrondissement Cote st-Luc | B39: 724 | C39: 2020-06-08T05:15:37 | D39: 2020-06-08T05:27:33 | E39: 716 | F39: 0.2 | G39: Moyenne Tension | H39: Indéterminé | I39: Aucun (Aérien) | J39: Inconnues | K39: Panne
A40: Arrondissement Cote st-Luc | B40: 1059 | C40: 2020-06-08T05:15:37 | D40: 2020-06-08T05:26:41 | E40: 664 | F40: 0.2 | G40: Moyenne Tension | H40: Indéterminé | I40: Aucun (Aérien) | J40: Inconnues | K40: Panne
A41: Arrondissement Cote st-Luc | B41: 17 | C41: 2020-06-08T05:29:17 | D41: 2020-06-08T06:25:06 | E41: 3349 | F41: 0.9 | G41: Moyenne Tension | H41: Animal | I41: Aucun (Aérien) | J41: Faune | K41: Panne
A42: Arrondissement Cote st-Luc | B42: 152 | C42: 2020-06-16T00:55:42 | D42: 2020-06-16T03:12:14 | E42: 8192 | F42: 2.3 | G42: Moyenne Tension | H42: Entretien | I42: Câble et barre MT | J42: Interruptions planifiées | K42: Interruption programmée
A43: Arrondissement Cote st-Luc | B43: 1571 | C43: 2020-06-16T07:10:26 | D43: 2020-06-16T07:20:56 | E43: 630 | F43: 0.2 | G43: Moyenne Tension | H43: Pannes | I43: Équipement Trans-Énergie | J43: Perte d'alimentation | K43: Perte alimentation
A44: Arrondissement Cote st-Luc | B44: 923 | C44: 2020-06-16T07:10:26 | D44: 2020-06-16T07:22:23 | E44: 717 | F44: 0.2 | G44: Moyenne Tension | H44: Pannes | I44: Équipement Trans-Énergie | J44: Perte d'alimentation | K44: Perte alimentation
A45: Arrondissement Cote st-Luc | B45: 4 | C45: 2020-07-01T16:40:59 | D45: 2020-07-01T18:14:00 | E45: 5581 | F45: 1.6 | G45: Basse Tension | H45: Végétation | I45: Réseau basse tension | J45: Végétation | K45: Panne
A46: Arrondissement Cote st-Luc | B46: 17 | C46: 2020-07-04T05:42:40 | D46: 2020-07-04T09:53:52 | E46: 15072 | F46: 4.2 | G46: Basse Tension | H46: Animal | I46: Fusible | J46: Faune | K46: Panne
A47: Arrondissement Cote st-Luc | B47: 12 | C47: 2020-07-06T05:49:11 | D47: 2020-07-06T08:51:17 | E47: 10926 | F47: 3.0 | G47: Basse Tension | H47: Animal | I47: Aucun (Aérien) | J47: Faune | K47: Panne
A48: Arrondissement Cote st-Luc | B48: 1 | C48: 2020-07-15T07:55:39 | D48: 2020-07-15T15:29:31 | E48: 27232 | F48: 7.6 | G48: Basse Tension | H48: Entretien | I48: Poteau | J48: Interruptions planifiées | K48: Interruption programmée
A49: Arrondissement Cote st-Luc | B49: 923 | C49: 2020-07-18T06:44:38 | D49: 2020-07-18T06:51:22 | E49: 404 | F49: 0.1 | G49: Moyenne Tension | H49: Pannes | I49: Équipement Trans-Énergie | J49: Perte d'alimentation | K49: Perte alimentation
A50: Arrondissement Cote st-Luc | B50: 1571 | C50: 2020-07-18T06:44:38 | D50: 2020-07-18T06:51:48 | E50: 430 | F50: 0.1 | G50: Moyenne Tension | H50: Pannes | I50: Équipement Trans-Énergie | J50: Perte d'alimentation | K50: Perte alimentation
A51: Arrondissement Cote st-Luc | B51: 6 | C51: 2020-07-23T08:54:36 | D51: 2020-07-23T16:09:09 | E51: 26073 | F51: 7.2 | G51: Basse Tension | H51: Défaillance | I51: Autre (sout.) | J51: Matériel ou équipement | K51: Panne
A52: Arrondissement Cote st-Luc | B52: 42 | C52: 2020-07-24T19:42:13 | D52: 2020-07-24T20:41:18 | E52: 3545 | F52: 1.0 | G52: Basse Tension | H52: Animal | I52: Réseau basse tension | J52: Faune | K52: Panne
A53: Arrondissement Cote st-Luc | B53: 403 | C53: 2020-07-26T07:53:29 | D53: 2020-07-26T08:06:40 | E53: 791 | F53: 0.2 | G53: Moyenne Tension | H53: Défaillance | I53: Composante sout. MT | J53: Matériel ou équipement | K53: Panne
A54: Arrondissement Cote st-Luc | B54: 27 | C54: 2020-07-29T17:36:46 | D54: 2020-07-29T18:41:31 | E54: 3885 | F54: 1.1 | G54: Basse Tension | H54: Animal | I54: Aucun (Aérien) | J54: Faune | K54: Panne
A55: Arrondissement Cote st-Luc | B55: 1496 | C55: 2020-07-30T19:57:56 | D55: 2020-07-30T20:08:05 | E55: 609 | F55: 0.2 | G55: Moyenne Tension | H55: Végétation | I55: Conducteur MT | J55: Végétation | K55: Panne
A56: Arrondissement Cote st-Luc | B56: 6 | C56: 2020-08-03T16:01:54 | D56: 2020-08-03T17:36:34 | E56: 5680 | F56: 1.6 | G56: Basse Tension | H56: Véhicule | I56: Réseau basse tension | J56: Public | K56: Panne
A57: Arrondissement Cote st-Luc | B57: 48 | C57: 2020-08-08T05:17:36 | D57: 2020-08-08T06:57:39 | E57: 6003 | F57: 1.7 | G57: Basse Tension | H57: Défaillance | I57: Fusible | J57: Matériel ou équipement | K57: Panne
A58: Arrondissement Cote st-Luc | B58: 8 | C58: 2020-08-10T00:11:40 | D58: 2020-08-10T01:41:21 | E58: 5381 | F58: 1.5 | G58: Basse Tension | H58: Animal | I58: Fusible | J58: Faune | K58: Panne
A59: Arrondissement Cote st-Luc | B59: 1025 | C59: 2020-08-23T09:03:57 | D59: 2020-08-23T09:14:37 | E59: 640 | F59: 0.2 | G59: Moyenne Tension | H59: Pannes | I59: Équipement Trans-Énergie | J59: Perte d'alimentation | K59: Perte alimentation
A60: Arrondissement Cote st-Luc | B60: 1321 | C60: 2020-08-23T09:03:57 | D60: 2020-08-23T09:14:27 | E60: 630 | F60: 0.2 | G60: Moyenne Tension | H60: Pannes | I60: Équipement Trans-Énergie | J60: Perte d'alimentation | K60: Perte alimentation
A61: Arrondissement Cote st-Luc | B61: 403 | C61: 2020-08-23T09:03:57 | D61: 2020-08-23T09:14:17 | E61: 620 | F61: 0.2 | G61: Moyenne Tension | H61: Pannes | I61: Équipement Trans-Énergie | J61: Perte d'alimentation | K61: Perte alimentation
A62: Arrondissement Cote st-Luc | B62: 10 | C62: 2020-08-25T06:11:42 | D62: 2020-08-25T08:09:28 | E62: 7066 | F62: 2.0 | G62: Basse Tension | H62: Végétation | I62: Réseau basse tension | J62: Végétation | K62: Panne
A63: Arrondissement Cote st-Luc | B63: 85 | C63: 2020-08-26T00:05:14 | D63: 2020-08-26T03:14:00 | E63: 11326 | F63: 3.1 | G63: Moyenne Tension | H63: Entretien | I63: Interrupteur sout. | J63: Interruptions planifiées | K63: Interruption programmée
A64: Arrondissement Cote st-Luc | B64: 136 | C64: 2020-08-26T00:10:32 | D64: 2020-08-26T03:18:47 | E64: 11295 | F64: 3.1 | G64: Moyenne Tension | H64: Entretien | I64: Interrupteur sout. | J64: Interruptions planifiées | K64: Interruption programmée
A65: Arrondissement Cote st-Luc | B65: 21 | C65: 2020-08-26T00:43:57 | D65: 2020-08-26T03:13:41 | E65: 8984 | F65: 2.5 | G65: Moyenne Tension | H65: Entretien | I65: Interrupteur sout. | J65: Interruptions planifiées | K65: Interruption programmée
A66: Arrondissement Cote st-Luc | B66: 21 | C66: 2020-08-26T03:13:41 | D66: 2020-08-26T03:14:00 | E66: 19 | F66: =E66/3600 -> 0.0 | G66: Moyenne Tension | H66: Entretien | I66: Interrupteur sout. | J66: Interruptions planifiées | K66: Interruption programmée
A67: Arrondissement Cote st-Luc | B67: 32 | C67: 2020-08-26T03:14:00 | D67: 2020-08-26T03:14:48 | E67: 48 | F67: 0.0 | G67: Moyenne Tension | H67: Entretien | I67: Interrupteur sout. | J67: Interruptions planifiées | K67: Interruption programmée
A68: Arrondissement Cote st-Luc | B68: 2 | C68: 2020-08-26T03:14:00 | D68: 2020-08-26T03:14:48 | E68: 48 | F68: 0.0 | G68: Moyenne Tension | H68: Entretien | I68: Interrupteur sout. | J68: Interruptions planifiées | K68: Interruption programmée
A69: Arrondissement Cote st-Luc | B69: 72 | C69: 2020-08-26T03:14:00 | D69: 2020-08-26T03:19:07 | E69: 307 | F69: 0.1 | G69: Moyenne Tension | H69: Entretien | I69: Interrupteur sout. | J69: Interruptions planifiées | K69: Interruption programmée
A70: Arrondissement Cote st-Luc | B70: 34 | C70: 2020-08-26T03:14:48 | D70: 2020-08-26T03:19:08 | E70: 260 | F70: 0.1 | G70: Moyenne Tension | H70: Entretien | I70: Interrupteur sout. | J70: Interruptions planifiées | K70: Interruption programmée
A71: Arrondissement Cote st-Luc | B71: 5 | C71: 2020-09-03T17:49:12 | D71: 2020-09-03T20:18:49 | E71: 8977 | F71: 2.5 | G71: Basse Tension | H71: Animal | I71: Fusible | J71: Faune | K71: Panne
A72: Arrondissement Cote st-Luc | B72: 923 | C72: 2020-09-07T14:30:34 | D72: 2020-09-07T15:28:59 | E72: 3505 | F72: 1.0 | G72: Moyenne Tension | H72: Végétation | I72: Aucun (Aérien) | J72: Végétation | K72: Panne
A73: Arrondissement Cote st-Luc | B73: 82 | C73: 2020-09-08T08:07:33 | D73: 2020-09-08T14:42:20 | E73: 23687 | F73: 6.6 | G73: Moyenne Tension | H73: Entretien | I73: Poteau | J73: Interruptions planifiées | K73: Interruption programmée
A74: Arrondissement Cote st-Luc | B74: 17 | C74: 2020-09-10T06:31:17 | D74: 2020-09-10T08:36:09 | E74: 7492 | F74: 2.1 | G74: Moyenne Tension | H74: Animal | I74: Fusible | J74: Faune | K74: Panne
A75: Arrondissement Cote st-Luc | B75: 85 | C75: 2020-09-20T09:15:14 | D75: 2020-09-20T10:34:48 | E75: 4774 | F75: 1.3 | G75: Moyenne Tension | H75: Animal | I75: Fusible | J75: Faune | K75: Panne
A76: Arrondissement Cote st-Luc | B76: 23 | C76: 2020-09-29T08:17:30 | D76: 2020-09-29T08:34:45 | E76: 1035 | F76: 0.3 | G76: Basse Tension | H76: Modification réseau | I76: Transfo. Aérien | J76: Interruptions planifiées | K76: Interruption programmée
A77: Arrondissement Cote st-Luc | B77: 1148 | C77: 2020-09-29T15:36:48 | D77: 2020-09-29T15:46:45 | E77: 597 | F77: 0.2 | G77: Moyenne Tension | H77: Surcharge | I77: Transfo. Aérien | J77: Matériel ou équipement | K77: Panne
A78: Arrondissement Cote st-Luc | B78: 1148 | C78: 2020-09-29T15:50:59 | D78: 2020-09-29T17:07:03 | E78: 4564 | F78: 1.3 | G78: Moyenne Tension | H78: Défaillance | I78: Transfo. Aérien | J78: Matériel ou équipement | K78: Panne
A79: Arrondissement Cote st-Luc | B79: 261 | C79: 2020-09-30T08:29:31 | D79: 2020-09-30T09:28:31 | E79: 3540 | F79: 1.0 | G79: Moyenne Tension | H79: Manoeuvre séc. non planif. | I79: Aucun (Aérien) | J79: Autres | K79: Panne
A80: Arrondissement Cote st-Luc | B80: 17 | C80: 2020-10-05T22:03:02 | D80: 2020-10-05T22:08:00 | E80: 298 | F80: 0.1 | G80: Moyenne Tension | H80: Manoeuvres | I80: Aucun (Aérien) | J80: Interruptions planifiées | K80: Interruption programmée
A81: Arrondissement Cote st-Luc | B81: 17 | C81: 2020-10-05T22:13:33 | D81: 2020-10-05T22:26:44 | E81: 791 | F81: 0.2 | G81: Moyenne Tension | H81: Manoeuvres | I81: Aucun (Aérien) | J81: Interruptions planifiées | K81: Interruption programmée
A82: Arrondissement Cote st-Luc | B82: 923 | C82: 2020-10-13T07:40:25 | D82: 2020-10-13T08:51:28 | E82: 4263 | F82: 1.2 | G82: Moyenne Tension | H82: Végétation | I82: Conducteur MT | J82: Végétation | K82: Panne
A83: Arrondissement Cote st-Luc | B83: 1 | C83: 2020-10-14T22:39:20 | D83: 2020-10-15T04:18:05 | E83: 20325 | F83: 5.6 | G83: Moyenne Tension | H83: Entretien | I83: Composante sout. MT | J83: Interruptions planifiées | K83: Interruption programmée
A84: Arrondissement Cote st-Luc | B84: 76 | C84: 2020-10-14T22:39:20 | D84: 2020-10-15T04:11:32 | E84: 19932 | F84: 5.5 | G84: Moyenne Tension | H84: Entretien | I84: Composante sout. MT | J84: Interruptions planifiées | K84: Interruption programmée
A85: Arrondissement Cote st-Luc | B85: 380 | C85: 2020-10-14T22:39:20 | D85: 2020-10-15T04:11:32 | E85: 19932 | F85: 5.5 | G85: Moyenne Tension | H85: Entretien | I85: Composante sout. MT | J85: Interruptions planifiées | K85: Interruption programmée
A86: Arrondissement Cote st-Luc | B86: 1571 | C86: 2020-10-15T08:52:21 | D86: 2020-10-15T08:59:34 | E86: 433 | F86: 0.1 | G86: Moyenne Tension | H86: Pannes | I86: Équipement Trans-Énergie | J86: Perte d'alimentation | K86: Perte alimentation
A87: Arrondissement Cote st-Luc | B87: 923 | C87: 2020-10-15T08:52:21 | D87: 2020-10-15T09:00:15 | E87: 474 | F87: 0.1 | G87: Moyenne Tension | H87: Pannes | I87: Équipement Trans-Énergie | J87: Perte d'alimentation | K87: Perte alimentation
A88: Arrondissement Cote st-Luc | B88: 20 | C88: 2020-10-22T07:39:11 | D88: 2020-10-22T11:35:20 | E88: 14169 | F88: 3.9 | G88: Basse Tension | H88: Entretien | I88: Poteau | J88: Interruptions planifiées | K88: Interruption programmée
A89: Arrondissement Cote st-Luc | B89: 923 | C89: 2020-10-29T10:59:32 | D89: 2020-10-29T12:16:15 | E89: 4603 | F89: 1.3 | G89: Moyenne Tension | H89: Pannes | I89: Équipement Trans-Énergie | J89: Perte d'alimentation | K89: Perte alimentation
A90: Arrondissement Cote st-Luc | B90: 1571 | C90: 2020-10-29T10:59:33 | D90: 2020-10-29T12:13:34 | E90: 4441 | F90: 1.2 | G90: Moyenne Tension | H90: Pannes | I90: Équipement Trans-Énergie | J90: Perte d'alimentation | K90: Perte alimentation
A91: Arrondissement Cote st-Luc | B91: 261 | C91: 2020-10-29T10:59:36 | D91: 2020-10-29T12:23:06 | E91: 5010 | F91: 1.4 | G91: Moyenne Tension | H91: Pannes | I91: Équipement Trans-Énergie | J91: Perte d'alimentation | K91: Perte alimentation
A92: Arrondissement Cote st-Luc | B92: 1496 | C92: 2020-10-29T10:59:36 | D92: 2020-10-29T10:59:38 | E92: 2 | F92: 0.0 | G92: Moyenne Tension | H92: Pannes | I92: Équipement Trans-Énergie | J92: Perte d'alimentation | K92: Perte alimentation
A93: Arrondissement Cote st-Luc | B93: 1496 | C93: 2020-10-29T10:59:38 | D93: 2020-10-29T10:59:41 | E93: 3 | F93: 0.0 | G93: Moyenne Tension | H93: Pannes | I93: Équipement Trans-Énergie | J93: Perte d'alimentation | K93: Perte alimentation
A94: Arrondissement Cote st-Luc | B94: 1496 | C94: 2020-10-29T10:59:41 | D94: 2020-10-29T10:59:48 | E94: 7 | F94: 0.0 | G94: Moyenne Tension | H94: Pannes | I94: Équipement Trans-Énergie | J94: Perte d'alimentation | K94: Perte alimentation
A95: Arrondissement Cote st-Luc | B95: 1219 | C95: 2020-10-29T10:59:45 | D95: 2020-10-29T12:16:32 | E95: 4607 | F95: 1.3 | G95: Moyenne Tension | H95: Pannes | I95: Équipement Trans-Énergie | J95: Perte d'alimentation | K95: Perte alimentation
A96: Arrondissement Cote st-Luc | B96: 1780 | C96: 2020-10-29T10:59:45 | D96: 2020-10-29T12:25:42 | E96: 5157 | F96: 1.4 | G96: Moyenne Tension | H96: Pannes | I96: Équipement Trans-Énergie | J96: Perte d'alimentation | K96: Perte alimentation
A97: Arrondissement Cote st-Luc | B97: 1 | C97: 2020-10-29T10:59:45 | D97: 2020-10-29T12:23:44 | E97: 5039 | F97: 1.4 | G97: Moyenne Tension | H97: Pannes | I97: Équipement Trans-Énergie | J97: Perte d'alimentation | K97: Perte alimentation
A98: Arrondissement Cote st-Luc | B98: 1246 | C98: 2020-10-29T10:59:45 | D98: 2020-10-29T12:18:06 | E98: 4701 | F98: =E98/3600 -> 1.3 | G98: Moyenne Tension | H98: Pannes | I98: Équipement Trans-Énergie | J98: Perte d'alimentation | K98: Perte alimentation
A99: Arrondissement Cote st-Luc | B99: 121 | C99: 2020-10-29T10:59:45 | D99: 2020-10-29T12:21:11 | E99: 4886 | F99: 1.4 | G99: Moyenne Tension | H99: Pannes | I99: Équipement Trans-Énergie | J99: Perte d'alimentation | K99: Perte alimentation
A100: Arrondissement Cote st-Luc | B100: 1070 | C100: 2020-10-29T10:59:45 | D100: 2020-10-29T12:14:41 | E100: 4496 | F100: 1.2 | G100: Moyenne Tension | H100: Pannes | I100: Équipement Trans-Énergie | J100: Perte d'alimentation | K100: Perte alimentation
A101: Arrondissement Cote st-Luc | B101: 1463 | C101: 2020-10-29T10:59:45 | D101: 2020-10-29T12:24:28 | E101: 5083 | F101: 1.4 | G101: Moyenne Tension | H101: Pannes | I101: Équipement Trans-Énergie | J101: Perte d'alimentation | K101: Perte alimentation
A102: Arrondissement Cote st-Luc | B102: 725 | C102: 2020-10-29T10:59:46 | D102: 2020-10-29T12:21:35 | E102: 4909 | F102: 1.4 | G102: Moyenne Tension | H102: Pannes | I102: Équipement Trans-Énergie | J102: Perte d'alimentation | K102: Perte alimentation
A103: Arrondissement Cote st-Luc | B103: 68 | C103: 2020-10-29T10:59:46 | D103: 2020-10-29T12:26:14 | E103: 5188 | F103: 1.4 | G103: Moyenne Tension | H103: Pannes | I103: Équipement Trans-Énergie | J103: Perte d'alimentation | K103: Perte alimentation
A104: Arrondissement Cote st-Luc | B104: 1069 | C104: 2020-10-29T10:59:46 | D104: 2020-10-29T12:19:08 | E104: 4762 | F104: 1.3 | G104: Moyenne Tension | H104: Pannes | I104: Équipement Trans-Énergie | J104: Perte d'alimentation | K104: Perte alimentation
A105: Arrondissement Cote st-Luc | B105: 403 | C105: 2020-10-29T10:59:47 | D105: 2020-10-29T12:12:00 | E105: 4333 | F105: 1.2 | G105: Moyenne Tension | H105: Pannes | I105: Équipement Trans-Énergie | J105: Perte d'alimentation | K105: Perte alimentation
A106: Arrondissement Cote st-Luc | B106: 1148 | C106: 2020-10-29T10:59:48 | D106: 2020-10-29T12:15:03 | E106: 4515 | F106: 1.3 | G106: Moyenne Tension | H106: Pannes | I106: Équipement Trans-Énergie | J106: Perte d'alimentation | K106: Perte alimentation
A107: Arrondissement Cote st-Luc | B107: 1496 | C107: 2020-10-29T10:59:48 | D107: 2020-10-29T12:15:39 | E107: 4551 | F107: 1.3 | G107: Moyenne Tension | H107: Pannes | I107: Équipement Trans-Énergie | J107: Perte d'alimentation | K107: Perte alimentation
A108: Arrondissement Cote st-Luc | B108: 1321 | C108: 2020-10-29T11:00:56 | D108: 2020-10-29T12:12:41 | E108: 4305 | F108: 1.2 | G108: Moyenne Tension | H108: Pannes | I108: Équipement Trans-Énergie | J108: Perte d'alimentation | K108: Perte alimentation
A109: Arrondissement Cote st-Luc | B109: 923 | C109: 2020-10-30T11:16:46 | D109: 2020-10-30T11:32:33 | E109: 947 | F109: 0.3 | G109: Moyenne Tension | H109: Pannes | I109: Équipement Trans-Énergie | J109: Perte d'alimentation | K109: Perte alimentation
A110: Arrondissement Cote st-Luc | B110: 1321 | C110: 2020-10-30T11:16:46 | D110: 2020-10-30T11:31:41 | E110: 895 | F110: 0.2 | G110: Moyenne Tension | H110: Pannes | I110: Équipement Trans-Énergie | J110: Perte d'alimentation | K110: Perte alimentation
A111: Arrondissement Cote st-Luc | B111: 1571 | C111: 2020-10-30T11:16:46 | D111: 2020-10-30T11:32:17 | E111: 931 | F111: 0.3 | G111: Moyenne Tension | H111: Pannes | I111: Équipement Trans-Énergie | J111: Perte d'alimentation | K111: Perte alimentation
A112: Arrondissement Cote st-Luc | B112: 1148 | C112: 2020-10-30T11:16:46 | D112: 2020-10-30T11:31:26 | E112: 880 | F112: 0.2 | G112: Moyenne Tension | H112: Pannes | I112: Équipement Trans-Énergie | J112: Perte d'alimentation | K112: Perte alimentation
A113: Arrondissement Cote st-Luc | B113: 403 | C113: 2020-10-30T11:16:46 | D113: 2020-10-30T11:32:05 | E113: 919 | F113: 0.3 | G113: Moyenne Tension | H113: Pannes | I113: Équipement Trans-Énergie | J113: Perte d'alimentation | K113: Perte alimentation
A114: Arrondissement Cote st-Luc | B114: 12 | C114: 2020-11-05T13:20:11 | D114: 2020-11-05T14:38:51 | E114: 4720 | F114: 1.3 | G114: Moyenne Tension | H114: Entretien | I114: Poteau | J114: Interruptions planifiées | K114: Interruption programmée
A115: Arrondissement Cote st-Luc | B115: 11 | C115: 2020-11-08T07:14:50 | D115: 2020-11-08T08:08:59 | E115: 3249 | F115: 0.9 | G115: Basse Tension | H115: Animal | I115: Aucun (Aérien) | J115: Faune | K115: Panne
A116: Arrondissement Cote st-Luc | B116: 235 | C116: 2020-11-14T10:43:37 | D116: 2020-11-14T12:01:14 | E116: 4657 | F116: 1.3 | G116: Moyenne Tension | H116: Manoeuvre séc. non planif. | I116: Aucun ( sout.) | J116: Autres | K116: Panne
A117: Arrondissement Cote st-Luc | B117: 1164 | C117: 2020-11-14T10:43:37 | D117: 2020-11-14T11:56:00 | E117: 4343 | F117: 1.2 | G117: Moyenne Tension | H117: Manoeuvre séc. non planif. | I117: Aucun ( sout.) | J117: Autres | K117: Panne
A118: Arrondissement Cote st-Luc | B118: 97 | C118: 2020-11-14T10:43:37 | D118: 2020-11-14T12:46:15 | E118: 7358 | F118: 2.0 | G118: Moyenne Tension | H118: Manoeuvre séc. non planif. | I118: Aucun ( sout.) | J118: Autres | K118: Panne
A119: Arrondissement Cote st-Luc | B119: 80 | C119: 2020-11-19T23:58:44 | D119: 2020-11-20T01:58:16 | E119: 7172 | F119: 2.0 | G119: Moyenne Tension | H119: Entretien | I119: Composante sout. MT | J119: Interruptions planifiées | K119: Interruption programmée
A120: Arrondissement Cote st-Luc | B120: 163 | C120: 2020-11-20T00:09:24 | D120: 2020-11-20T01:59:39 | E120: 6615 | F120: 1.8 | G120: Moyenne Tension | H120: Entretien | I120: Composante sout. MT | J120: Interruptions planifiées | K120: Interruption programmée
A121: Arrondissement Cote st-Luc | B121: 1261 | C121: 2020-11-25T15:35:21 | D121: 2020-11-25T15:58:12 | E121: 1371 | F121: 0.4 | G121: Moyenne Tension | H121: Montage | I121: Sectionneur | J121: Matériel ou équipement | K121: Panne
A122: Arrondissement Cote st-Luc | B122: 177 | C122: 2020-12-16T10:36:49 | D122: 2020-12-16T18:08:28 | E122: 27099 | F122: 7.5 | G122: Moyenne Tension | H122: Défaillance | I122: Poteau | J122: Matériel ou équipement | K122: Panne
A123: Arrondissement Cote st-Luc | B123: 15 | C123: 2020-12-16T10:36:49 | D123: 2020-12-16T17:54:02 | E123: 26233 | F123: 7.3 | G123: Moyenne Tension | H123: Défaillance | I123: Poteau | J123: Matériel ou équipement | K123: Panne
A124: Arrondissement Cote st-Luc | B124: 28 | C124: 2020-12-16T10:36:49 | D124: 2020-12-16T22:30:36 | E124: 42827 | F124: 11.9 | G124: Moyenne Tension | H124: Défaillance | I124: Poteau | J124: Matériel ou équipement | K124: Panne
A125: Arrondissement Cote st-Luc | B125: 1723 | C125: 2020-12-16T18:02:28 | D125: 2020-12-16T18:08:28 | E125: 360 | F125: 0.1 | G125: Moyenne Tension | H125: Défaillance | I125: Poteau | J125: Matériel ou équipement | K125: Panne
A126: Arrondissement Cote st-Luc | B126: 177 | C126: 2020-12-16T18:08:28 | D126: 2020-12-16T18:29:45 | E126: 1277 | F126: 0.4 | G126: Moyenne Tension | H126: Défaillance | I126: Poteau | J126: Matériel ou équipement | K126: Panne
A127: Arrondissement Cote st-Luc | B127: 61 | C127: 2020-12-16T18:08:28 | D127: 2020-12-16T18:23:15 | E127: 887 | F127: 0.2 | G127: Moyenne Tension | H127: Défaillance | I127: Poteau | J127: Matériel ou équipement | K127: Panne
A128: Arrondissement Cote st-Luc | B128: 443 | C128: 2020-12-16T18:08:28 | D128: 2020-12-16T18:29:45 | E128: 1277 | F128: 0.4 | G128: Moyenne Tension | H128: Défaillance | I128: Poteau | J128: Matériel ou équipement | K128: Panne
A129: Arrondissement Cote st-Luc | B129: 1219 | C129: 2020-12-16T18:08:28 | D129: 2020-12-16T18:11:02 | E129: 154 | F129: 0.0 | G129: Moyenne Tension | H129: Défaillance | I129: Poteau | J129: Matériel ou équipement | K129: Panne
A130: Arrondissement Cote st-Luc | B130: 620 | C130: 2020-12-16T18:29:45 | D130: 2020-12-16T18:41:26 | E130: 701 | F130: =E130/3600 -> 0.2 | G130: Moyenne Tension | H130: Défaillance | I130: Poteau | J130: Matériel ou équipement | K130: Panne
A131: Arrondissement Cote st-Luc | B131: 177 | C131: 2020-12-16T21:27:31 | D131: 2020-12-16T22:31:02 | E131: 3811 | F131: 1.1 | G131: Moyenne Tension | H131: Défaillance | I131: Poteau | J131: Matériel ou équipement | K131: Panne
A132: Arrondissement Cote st-Luc | B132: 15 | C132: 2020-12-16T21:43:37 | D132: 2020-12-16T22:30:36 | E132: 2819 | F132: 0.8 | G132: Moyenne Tension | H132: Défaillance | I132: Poteau | J132: Matériel ou équipement | K132: Panne
A133: Arrondissement Cote st-Luc | B133: 43 | C133: 2020-12-16T22:30:36 | D133: 2020-12-16T22:31:02 | E133: 26 | F133: 0.0 | G133: Moyenne Tension | H133: Défaillance | I133: Poteau | J133: Matériel ou équipement | K133: Panne
A134: Arrondissement Cote st-Luc | B134: 220 | C134: 2020-12-16T22:31:02 | D134: 2020-12-16T22:34:35 | E134: 213 | F134: 0.1 | G134: Moyenne Tension | H134: Défaillance | I134: Poteau | J134: Matériel ou équipement | K134: Panne

Sheet Détails_Année_2021
A1: INT_COD_CED | B1: NOMBRE_CLIENTS | C1: DATE_DEBUT_INTERRUPTION | D1: INT_DATE_FIN_INTERRUPTION | E1: DUREE (SEC) | F1: DUREE (HEURE) | G1: TYPE D'INTERRUPTION | H1: DESCRIPTION CAUSE DETAILLEE | I1: DESCRIPTION EQUIPEMENT | J1: GROUPE CAUSE | K1: CATEGORIE
A2: Arrondissement Cote st-Luc | B2: 22 | C2: 2021-01-06T13:14:43 | D2: 2021-01-06T14:16:00 | E2: 3677 | F2: =E2/3600 -> 1.0 | G2: Basse Tension | H2: Défaillance | I2: Fusible | J2: Matériel ou équipement | K2: Panne
A3: Arrondissement Cote st-Luc | B3: 5 | C3: 2021-01-08T15:41:53 | D3: 2021-01-08T16:29:10 | E3: 2837 | F3: 0.8 | G3: Basse Tension | H3: Oiseau | I3: Fusible | J3: Faune | K3: Panne
A4: Arrondissement Cote st-Luc | B4: 19 | C4: 2021-01-11T23:16:02 | D4: 2021-01-12T00:16:05 | E4: 3603 | F4: 1.0 | G4: Basse Tension | H4: Défaillance | I4: Fusible | J4: Matériel ou équipement | K4: Panne
A5: Arrondissement Cote st-Luc | B5: 5 | C5: 2021-01-21T08:15:23 | D5: 2021-01-21T10:02:00 | E5: 6397 | F5: 1.8 | G5: Basse Tension | H5: Travaux sécuritaires | I5: Transfo. Aérien | J5: Interruptions planifiées | K5: Interruption programmée
A6: Arrondissement Cote st-Luc | B6: 6 | C6: 2021-01-24T07:17:23 | D6: 2021-01-24T07:45:19 | E6: 1676 | F6: 0.5 | G6: Moyenne Tension | H6: Interruption demande client | I6: Aucun ( sout.) | J6: Interruptions planifiées | K6: Interruption programmée
A7: Arrondissement Cote st-Luc | B7: 1 | C7: 2021-01-24T08:38:07 | D7: 2021-01-24T10:43:23 | E7: 7516 | F7: 2.1 | G7: Moyenne Tension | H7: Interruption demande client | I7: Aucun ( sout.) | J7: Interruptions planifiées | K7: Interruption programmée
A8: Arrondissement Cote st-Luc | B8: 22 | C8: 2021-01-24T17:25:24 | D8: 2021-01-24T21:47:26 | E8: 15722 | F8: 4.4 | G8: Basse Tension | H8: Défaillance | I8: Fusible | J8: Matériel ou équipement | K8: Panne
A9: Arrondissement Cote st-Luc | B9: 12 | C9: 2021-01-31T10:17:28 | D9: 2021-02-01T04:16:37 | E9: 64749 | F9: 18.0 | G9: Basse Tension | H9: Défaillance | I9: Autre ( Aérien) | J9: Matériel ou équipement | K9: Panne
A10: Arrondissement Cote st-Luc | B10: 38 | C10: 2021-01-31T22:08:24 | D10: 2021-02-01T04:16:35 | E10: 22091 | F10: 6.1 | G10: Moyenne Tension | H10: Défaillance | I10: Poteau | J10: Matériel ou équipement | K10: Panne
A11: Arrondissement Cote st-Luc | B11: 243 | C11: 2021-02-10T00:27:22 | D11: 2021-02-10T01:40:22 | E11: 4380 | F11: 1.2 | G11: Moyenne Tension | H11: Entretien | I11: Fusible (Boîtier à fusible) | J11: Interruptions planifiées | K11: Interruption programmée
A12: Arrondissement Cote st-Luc | B12: 34 | C12: 2021-02-11T13:59:10 | D12: 2021-02-11T16:23:47 | E12: 8677 | F12: 2.4 | G12: Basse Tension | H12: Défaillance | I12: Fusible | J12: Matériel ou équipement | K12: Panne
A13: Arrondissement Cote st-Luc | B13: 923 | C13: 2021-02-18T07:00:18 | D13: 2021-02-18T09:02:15 | E13: 7317 | F13: 2.0 | G13: Moyenne Tension | H13: Manoeuvre séc. non planif. | I13: Aucun (Aérien) | J13: Autres | K13: Panne
A14: Arrondissement Cote st-Luc | B14: 8 | C14: 2021-02-23T09:57:48 | D14: 2021-02-23T15:22:33 | E14: 19485 | F14: 5.4 | G14: Basse Tension | H14: Défaillance | I14: Transfo. Aérien | J14: Matériel ou équipement | K14: Panne
A15: Arrondissement Cote st-Luc | B15: 63 | C15: 2021-02-24T19:00:56 | D15: 2021-02-24T20:59:01 | E15: 7085 | F15: 2.0 | G15: Moyenne Tension | H15: Entretien | I15: Transfo. Sout. | J15: Interruptions planifiées | K15: Interruption programmée
A16: Arrondissement Cote st-Luc | B16: 42 | C16: 2021-02-24T19:01:07 | D16: 2021-02-24T20:59:52 | E16: 7125 | F16: 2.0 | G16: Moyenne Tension | H16: Entretien | I16: Transfo. Sout. | J16: Interruptions planifiées | K16: Interruption programmée
A17: Arrondissement Cote st-Luc | B17: 45 | C17: 2021-02-24T19:01:15 | D17: 2021-02-24T20:59:29 | E17: 7094 | F17: 2.0 | G17: Moyenne Tension | H17: Entretien | I17: Transfo. Sout. | J17: Interruptions planifiées | K17: Interruption programmée
A18: Arrondissement Cote st-Luc | B18: 33 | C18: 2021-02-24T20:59:01 | D18: 2021-02-24T20:59:29 | E18: 28 | F18: 0.0 | G18: Moyenne Tension | H18: Entretien | I18: Transfo. Sout. | J18: Interruptions planifiées | K18: Interruption programmée
A19: Arrondissement Cote st-Luc | B19: 30 | C19: 2021-02-24T20:59:01 | D19: 2021-02-24T21:04:28 | E19: 327 | F19: 0.1 | G19: Moyenne Tension | H19: Entretien | I19: Transfo. Sout. | J19: Interruptions planifiées | K19: Interruption programmée
A20: Arrondissement Cote st-Luc | B20: 32 | C20: 2021-02-24T20:59:29 | D20: 2021-02-24T21:04:48 | E20: 319 | F20: 0.1 | G20: Moyenne Tension | H20: Entretien | I20: Transfo. Sout. | J20: Interruptions planifiées | K20: Interruption programmée
A21: Arrondissement Cote st-Luc | B21: 46 | C21: 2021-02-24T20:59:29 | D21: 2021-02-24T20:59:52 | E21: 23 | F21: 0.0 | G21: Moyenne Tension | H21: Entretien | I21: Transfo. Sout. | J21: Interruptions planifiées | K21: Interruption programmée
A22: Arrondissement Cote st-Luc | B22: 71 | C22: 2021-02-24T20:59:52 | D22: 2021-02-24T21:28:05 | E22: 1693 | F22: 0.5 | G22: Moyenne Tension | H22: Entretien | I22: Transfo. Sout. | J22: Interruptions planifiées | K22: Interruption programmée
A23: Arrondissement Cote st-Luc | B23: 17 | C23: 2021-02-24T20:59:52 | D23: 2021-02-24T21:04:39 | E23: 287 | F23: 0.1 | G23: Moyenne Tension | H23: Entretien | I23: Transfo. Sout. | J23: Interruptions planifiées | K23: Interruption programmée
A24: Arrondissement Cote st-Luc | B24: 80 | C24: 2021-02-28T07:49:26 | D24: 2021-02-28T09:07:32 | E24: 4686 | F24: 1.3 | G24: Basse Tension | H24: Animal | I24: Aucun (Aérien) | J24: Faune | K24: Panne
A25: Arrondissement Cote st-Luc | B25: 214 | C25: 2021-03-01T19:56:07 | D25: 2021-03-01T21:40:53 | E25: 6286 | F25: 1.7 | G25: Moyenne Tension | H25: Surcharge | I25: Aucun ( sout.) | J25: Matériel ou équipement | K25: Panne
A26: Arrondissement Cote st-Luc | B26: 1068 | C26: 2021-03-03T06:47:07 | D26: 2021-03-03T08:56:53 | E26: 7786 | F26: 2.2 | G26: Moyenne Tension | H26: Défaillance | I26: Boîte d'extrémité | J26: Matériel ou équipement | K26: Panne
A27: Arrondissement Cote st-Luc | B27: 173 | C27: 2021-03-03T09:10:48 | D27: 2021-03-03T09:11:33 | E27: 45 | F27: 0.0 | G27: Moyenne Tension | H27: Défaillance | I27: Boîte d'extrémité | J27: Matériel ou équipement | K27: Panne
A28: Arrondissement Cote st-Luc | B28: 333 | C28: 2021-03-03T09:29:28 | D28: 2021-03-03T09:39:56 | E28: 628 | F28: 0.2 | G28: Moyenne Tension | H28: Défaillance | I28: Boîte d'extrémité | J28: Matériel ou équipement | K28: Panne
A29: Arrondissement Cote st-Luc | B29: 387 | C29: 2021-03-03T09:29:28 | D29: 2021-03-03T10:02:39 | E29: 1991 | F29: 0.6 | G29: Moyenne Tension | H29: Défaillance | I29: Boîte d'extrémité | J29: Matériel ou équipement | K29: Panne
A30: Arrondissement Cote st-Luc | B30: 23 | C30: 2021-03-11T10:23:43 | D30: 2021-03-11T11:15:44 | E30: 3121 | F30: 0.9 | G30: Basse Tension | H30: Animal | I30: Fusible | J30: Faune | K30: Panne
A31: Arrondissement Cote st-Luc | B31: 923 | C31: 2021-03-14T06:53:30 | D31: 2021-03-14T07:54:55 | E31: 3685 | F31: 1.0 | G31: Moyenne Tension | H31: Incendie / Fuite de gaz | I31: Autre ( Aérien) | J31: Public | K31: Panne
A32: Arrondissement Cote st-Luc | B32: 11 | C32: 2021-03-15T09:05:49 | D32: 2021-03-15T14:20:13 | E32: 18864 | F32: 5.2 | G32: Basse Tension | H32: Défaillance | I32: Réseau basse tension | J32: Matériel ou équipement | K32: Panne
A33: Arrondissement Cote st-Luc | B33: 19 | C33: 2021-03-16T08:41:02 | D33: 2021-03-16T14:36:07 | E33: 21305 | F33: 5.9 | G33: Moyenne Tension | H33: Entretien | I33: Autre ( Aérien) | J33: Interruptions planifiées | K33: Interruption programmée
A34: Arrondissement Cote st-Luc | B34: 403 | C34: 2021-03-22T14:44:37 | D34: 2021-03-22T15:02:56 | E34: 1099 | F34: =E34/3600 -> 0.3 | G34: Moyenne Tension | H34: Pannes | I34: Équipement Trans-Énergie | J34: Perte d'alimentation | K34: Perte alimentation
A35: Arrondissement Cote st-Luc | B35: 1321 | C35: 2021-03-22T14:44:37 | D35: 2021-03-22T15:02:39 | E35: 1082 | F35: 0.3 | G35: Moyenne Tension | H35: Pannes | I35: Équipement Trans-Énergie | J35: Perte d'alimentation | K35: Perte alimentation
A36: Arrondissement Cote st-Luc | B36: 1571 | C36: 2021-03-24T13:19:49 | D36: 2021-03-24T15:15:35 | E36: 6946 | F36: 1.9 | G36: Moyenne Tension | H36: Manoeuvre séc. non planif. | I36: Aucun (Aérien) | J36: Autres | K36: Panne
A37: Arrondissement Cote st-Luc | B37: 923 | C37: 2021-03-24T13:53:28 | D37: 2021-03-24T15:19:09 | E37: 5141 | F37: 1.4 | G37: Moyenne Tension | H37: Manoeuvre séc. non planif. | I37: Aucun (Aérien) | J37: Autres | K37: Panne
A38: Arrondissement Cote st-Luc | B38: 2 | C38: 2021-03-28T09:15:14 | D38: 2021-03-28T10:22:36 | E38: 4042 | F38: 1.1 | G38: Basse Tension | H38: Animal | I38: Aucun (Aérien) | J38: Faune | K38: Panne
A39: Arrondissement Cote st-Luc | B39: 70 | C39: 2021-04-10T10:26:15 | D39: 2021-04-10T11:48:00 | E39: 4905 | F39: 1.4 | G39: Basse Tension | H39: Animal | I39: Réseau basse tension | J39: Faune | K39: Panne
A40: Arrondissement Cote st-Luc | B40: 1191 | C40: 2021-04-28T17:14:05 | D40: 2021-04-28T17:24:36 | E40: 631 | F40: 0.2 | G40: Moyenne Tension | H40: Défaillance | I40: Conducteur MT | J40: Matériel ou équipement | K40: Panne
A41: Arrondissement Cote st-Luc | B41: 1191 | C41: 2021-04-28T17:24:59 | D41: 2021-04-28T18:34:02 | E41: 4143 | F41: 1.2 | G41: Moyenne Tension | H41: Défaillance | I41: Conducteur MT | J41: Matériel ou équipement | K41: Panne
A42: Arrondissement Cote st-Luc | B42: 720 | C42: 2021-04-28T18:34:02 | D42: 2021-04-28T19:04:45 | E42: 1843 | F42: 0.5 | G42: Moyenne Tension | H42: Végétation | I42: Conducteur MT | J42: Végétation | K42: Panne
A43: Arrondissement Cote st-Luc | B43: 471 | C43: 2021-04-28T18:34:02 | D43: 2021-04-28T20:24:12 | E43: 6610 | F43: 1.8 | G43: Moyenne Tension | H43: Végétation | I43: Conducteur MT | J43: Végétation | K43: Panne
A44: Arrondissement Cote st-Luc | B44: 15 | C44: 2021-05-07T07:13:05 | D44: 2021-05-07T08:53:25 | E44: 6020 | F44: 1.7 | G44: Basse Tension | H44: Animal | I44: Fusible | J44: Faune | K44: Panne
A45: Arrondissement Cote st-Luc | B45: 64 | C45: 2021-05-07T13:32:15 | D45: 2021-05-07T15:31:46 | E45: 7171 | F45: 2.0 | G45: Basse Tension | H45: Modification réseau | I45: Transfo. Aérien | J45: Interruptions planifiées | K45: Interruption programmée
A46: Arrondissement Cote st-Luc | B46: 1477 | C46: 2021-05-10T05:19:24 | D46: 2021-05-10T05:29:18 | E46: 594 | F46: 0.2 | G46: Moyenne Tension | H46: Défaillance | I46: Autre ( Aérien) | J46: Matériel ou équipement | K46: Panne
A47: Arrondissement Cote st-Luc | B47: 403 | C47: 2021-05-30T15:46:04 | D47: 2021-05-30T15:59:15 | E47: 791 | F47: 0.2 | G47: Moyenne Tension | H47: Défaillance | I47: Conducteur MT | J47: Matériel ou équipement | K47: Panne
A48: Arrondissement Cote st-Luc | B48: 366 | C48: 2021-05-30T15:59:42 | D48: 2021-05-30T16:42:46 | E48: 2584 | F48: 0.7 | G48: Moyenne Tension | H48: Défaillance | I48: Conducteur MT | J48: Matériel ou équipement | K48: Panne
A49: Arrondissement Cote st-Luc | B49: 37 | C49: 2021-05-30T15:59:42 | D49: 2021-05-30T16:42:46 | E49: 2584 | F49: 0.7 | G49: Moyenne Tension | H49: Défaillance | I49: Conducteur MT | J49: Matériel ou équipement | K49: Panne
A50: Arrondissement Cote st-Luc | B50: 403 | C50: 2021-05-30T16:42:46 | D50: 2021-05-30T16:55:54 | E50: 788 | F50: 0.2 | G50: Moyenne Tension | H50: Défaillance | I50: Conducteur MT | J50: Matériel ou équipement | K50: Panne
A51: Arrondissement Cote st-Luc | B51: 1 | C51: 2021-05-30T21:45:24 | D51: 2021-05-31T00:57:19 | E51: 11515 | F51: 3.2 | G51: Moyenne Tension | H51: Travaux sécuritaires | I51: Câble et barre MT | J51: Interruptions planifiées | K51: Interruption programmée
A52: Arrondissement Cote st-Luc | B52: 348 | C52: 2021-05-30T21:52:37 | D52: 2021-05-30T22:06:41 | E52: 844 | F52: 0.2 | G52: Moyenne Tension | H52: Travaux sécuritaires | I52: Câble et barre MT | J52: Interruptions planifiées | K52: Interruption programmée
A53: Arrondissement Cote st-Luc | B53: 348 | C53: 2021-05-31T00:00:39 | D53: 2021-05-31T00:06:44 | E53: 365 | F53: 0.1 | G53: Moyenne Tension | H53: Travaux sécuritaires | I53: Câble et barre MT | J53: Interruptions planifiées | K53: Interruption programmée
A54: Arrondissement Cote st-Luc | B54: 348 | C54: 2021-05-31T00:06:44 | D54: 2021-05-31T00:06:57 | E54: 13 | F54: 0.0 | G54: Moyenne Tension | H54: Travaux sécuritaires | I54: Câble et barre MT | J54: Interruptions planifiées | K54: Interruption programmée
A55: Arrondissement Cote st-Luc | B55: 7 | C55: 2021-06-04T12:59:48 | D55: 2021-06-04T13:30:27 | E55: 1839 | F55: 0.5 | G55: Basse Tension | H55: Travaux sécuritaires | I55: Transfo. Aérien | J55: Interruptions planifiées | K55: Interruption programmée
A56: Arrondissement Cote st-Luc | B56: 7 | C56: 2021-06-05T14:28:44 | D56: 2021-06-05T15:46:38 | E56: 4674 | F56: 1.3 | G56: Basse Tension | H56: Animal | I56: Transfo. Aérien | J56: Faune | K56: Panne
A57: Arrondissement Cote st-Luc | B57: 1496 | C57: 2021-06-09T19:17:53 | D57: 2021-06-09T20:44:31 | E57: 5198 | F57: 1.4 | G57: Moyenne Tension | H57: Incendie / Fuite de gaz | I57: Aucun (Aérien) | J57: Public | K57: Panne
A58: Arrondissement Cote st-Luc | B58: 1496 | C58: 2021-06-10T04:39:21 | D58: 2021-06-10T06:14:47 | E58: 5726 | F58: 1.6 | G58: Moyenne Tension | H58: Manoeuvre séc. non planif. | I58: Aucun (Aérien) | J58: Autres | K58: Panne
A59: Arrondissement Cote st-Luc | B59: 1070 | C59: 2021-06-12T05:20:01 | D59: 2021-06-12T05:30:36 | E59: 635 | F59: 0.2 | G59: Moyenne Tension | H59: Défaillance | I59: Conducteur MT | J59: Matériel ou équipement | K59: Panne
A60: Arrondissement Cote st-Luc | B60: 1496 | C60: 2021-06-13T07:22:21 | D60: 2021-06-13T07:32:17 | E60: 596 | F60: 0.2 | G60: Moyenne Tension | H60: Végétation | I60: Aucun (Aérien) | J60: Végétation | K60: Panne
A61: Arrondissement Cote st-Luc | B61: 94 | C61: 2021-06-18T05:23:35 | D61: 2021-06-18T06:58:09 | E61: 5674 | F61: 1.6 | G61: Moyenne Tension | H61: Défaillance | I61: Conducteur MT | J61: Matériel ou équipement | K61: Panne
A62: Arrondissement Cote st-Luc | B62: 53 | C62: 2021-06-22T17:42:20 | D62: 2021-06-22T21:23:25 | E62: 13265 | F62: 3.7 | G62: Basse Tension | H62: Végétation | I62: Coupe-circuit | J62: Végétation | K62: Panne
A63: Arrondissement Cote st-Luc | B63: 12 | C63: 2021-06-23T13:12:22 | D63: 2021-06-23T13:32:37 | E63: 1215 | F63: 0.3 | G63: Basse Tension | H63: Entretien | I63: Transfo. Aérien | J63: Interruptions planifiées | K63: Interruption programmée
A64: Arrondissement Cote st-Luc | B64: 18 | C64: 2021-06-23T18:24:35 | D64: 2021-06-23T19:45:42 | E64: 4867 | F64: 1.4 | G64: Basse Tension | H64: Animal | I64: Aucun (Aérien) | J64: Faune | K64: Panne
A65: Arrondissement Cote st-Luc | B65: 403 | C65: 2021-06-25T08:49:52 | D65: 2021-06-25T08:59:24 | E65: 572 | F65: 0.2 | G65: Moyenne Tension | H65: Pannes | I65: Équipement Trans-Énergie | J65: Perte d'alimentation | K65: Perte alimentation
A66: Arrondissement Cote st-Luc | B66: 1321 | C66: 2021-06-25T08:49:52 | D66: 2021-06-25T08:59:53 | E66: 601 | F66: =E66/3600 -> 0.2 | G66: Moyenne Tension | H66: Pannes | I66: Équipement Trans-Énergie | J66: Perte d'alimentation | K66: Perte alimentation
A67: Arrondissement Cote st-Luc | B67: 1148 | C67: 2021-06-25T08:49:52 | D67: 2021-06-25T08:58:12 | E67: 500 | F67: 0.1 | G67: Moyenne Tension | H67: Pannes | I67: Équipement Trans-Énergie | J67: Perte d'alimentation | K67: Perte alimentation
A68: Arrondissement Cote st-Luc | B68: 15 | C68: 2021-06-25T19:43:21 | D68: 2021-06-25T20:43:51 | E68: 3630 | F68: 1.0 | G68: Basse Tension | H68: Animal | I68: Aucun (Aérien) | J68: Faune | K68: Panne
A69: Arrondissement Cote st-Luc | B69: 1303 | C69: 2021-06-26T08:20:21 | D69: 2021-06-26T08:24:58 | E69: 277 | F69: 0.1 | G69: Moyenne Tension | H69: Pannes | I69: Équipement Trans-Énergie | J69: Perte d'alimentation | K69: Perte alimentation
A70: Arrondissement Cote st-Luc | B70: 1191 | C70: 2021-06-26T08:20:21 | D70: 2021-06-26T08:25:31 | E70: 310 | F70: 0.1 | G70: Moyenne Tension | H70: Pannes | I70: Équipement Trans-Énergie | J70: Perte d'alimentation | K70: Perte alimentation
A71: Arrondissement Cote st-Luc | B71: 1321 | C71: 2021-06-26T15:41:09 | D71: 2021-06-26T15:48:07 | E71: 418 | F71: 0.1 | G71: Moyenne Tension | H71: Pannes | I71: Équipement Trans-Énergie | J71: Perte d'alimentation | K71: Perte alimentation
A72: Arrondissement Cote st-Luc | B72: 403 | C72: 2021-06-26T15:41:09 | D72: 2021-06-26T15:50:03 | E72: 534 | F72: 0.1 | G72: Moyenne Tension | H72: Pannes | I72: Équipement Trans-Énergie | J72: Perte d'alimentation | K72: Perte alimentation
A73: Arrondissement Cote st-Luc | B73: 1148 | C73: 2021-06-26T15:41:09 | D73: 2021-06-26T15:47:55 | E73: 406 | F73: 0.1 | G73: Moyenne Tension | H73: Pannes | I73: Équipement Trans-Énergie | J73: Perte d'alimentation | K73: Perte alimentation
A74: Arrondissement Cote st-Luc | B74: 10 | C74: 2021-07-02T08:30:22 | D74: 2021-07-02T08:40:13 | E74: 591 | F74: 0.2 | G74: Basse Tension | H74: Entretien | I74: Transfo. Aérien | J74: Interruptions planifiées | K74: Interruption programmée
A75: Arrondissement Cote st-Luc | B75: 18 | C75: 2021-07-04T06:13:42 | D75: 2021-07-04T07:59:04 | E75: 6322 | F75: 1.8 | G75: Basse Tension | H75: Animal | I75: Aucun (Aérien) | J75: Faune | K75: Panne
A76: Arrondissement Cote st-Luc | B76: 8 | C76: 2021-07-13T08:55:18 | D76: 2021-07-13T14:28:27 | E76: 19989 | F76: 5.6 | G76: Basse Tension | H76: Oiseau | I76: Fusible | J76: Faune | K76: Panne
A77: Arrondissement Cote st-Luc | B77: 9 | C77: 2021-07-15T16:47:30 | D77: 2021-07-15T17:52:56 | E77: 3926 | F77: 1.1 | G77: Moyenne Tension | H77: Défaillance | I77: Réseau basse tension | J77: Matériel ou équipement | K77: Panne
A78: Arrondissement Cote st-Luc | B78: 10 | C78: 2021-07-16T10:53:22 | D78: 2021-07-16T11:47:32 | E78: 3250 | F78: 0.9 | G78: Basse Tension | H78: Animal | I78: Fusible | J78: Faune | K78: Panne
A79: Arrondissement Cote st-Luc | B79: 64 | C79: 2021-07-17T17:26:13 | D79: 2021-07-17T21:32:42 | E79: 14789 | F79: 4.1 | G79: Basse Tension | H79: Montage | I79: Réseau basse tension | J79: Matériel ou équipement | K79: Panne
A80: Arrondissement Cote st-Luc | B80: 1219 | C80: 2021-07-22T15:23:50 | D80: 2021-07-22T15:28:21 | E80: 271 | F80: 0.1 | G80: Moyenne Tension | H80: Pannes | I80: Équipement Trans-Énergie | J80: Perte d'alimentation | K80: Perte alimentation
A81: Arrondissement Cote st-Luc | B81: 31 | C81: 2021-07-25T06:10:09 | D81: 2021-07-25T07:21:36 | E81: 4287 | F81: 1.2 | G81: Moyenne Tension | H81: Manoeuvre séc. non planif. | I81: Aucun (Aérien) | J81: Autres | K81: Panne
A82: Arrondissement Cote st-Luc | B82: 1446 | C82: 2021-07-25T06:10:09 | D82: 2021-07-25T06:51:57 | E82: 2508 | F82: 0.7 | G82: Moyenne Tension | H82: Manoeuvre séc. non planif. | I82: Aucun (Aérien) | J82: Autres | K82: Panne
A83: Arrondissement Cote st-Luc | B83: 18 | C83: 2021-08-08T01:40:49 | D83: 2021-08-08T14:45:58 | E83: 47109 | F83: 13.1 | G83: Moyenne Tension | H83: Surcharge | I83: Aucun ( sout.) | J83: Matériel ou équipement | K83: Panne
A84: Arrondissement Cote st-Luc | B84: 279 | C84: 2021-08-08T01:40:49 | D84: 2021-08-08T04:59:33 | E84: 11924 | F84: 3.3 | G84: Moyenne Tension | H84: Surcharge | I84: Aucun ( sout.) | J84: Matériel ou équipement | K84: Panne
A85: Arrondissement Cote st-Luc | B85: 8 | C85: 2021-08-08T05:09:52 | D85: 2021-08-08T05:27:18 | E85: 1046 | F85: 0.3 | G85: Moyenne Tension | H85: Surcharge | I85: Aucun ( sout.) | J85: Matériel ou équipement | K85: Panne
A86: Arrondissement Cote st-Luc | B86: 7 | C86: 2021-08-13T05:39:16 | D86: 2021-08-13T09:07:23 | E86: 12487 | F86: 3.5 | G86: Basse Tension | H86: Animal | I86: Fusible | J86: Faune | K86: Panne
A87: Arrondissement Cote st-Luc | B87: 16 | C87: 2021-08-18T10:06:50 | D87: 2021-08-18T16:05:14 | E87: 21504 | F87: 6.0 | G87: Basse Tension | H87: Montage | I87: Réseau basse tension | J87: Matériel ou équipement | K87: Panne
A88: Arrondissement Cote st-Luc | B88: 17 | C88: 2021-08-19T13:03:03 | D88: 2021-08-19T15:10:25 | E88: 7642 | F88: 2.1 | G88: Basse Tension | H88: Entretien | I88: Transfo. Aérien | J88: Interruptions planifiées | K88: Interruption programmée
A89: Arrondissement Cote st-Luc | B89: 35 | C89: 2021-08-31T07:15:20 | D89: 2021-08-31T09:39:32 | E89: 8652 | F89: 2.4 | G89: Basse Tension | H89: Animal | I89: Fusible | J89: Faune | K89: Panne
A90: Arrondissement Cote st-Luc | B90: 1571 | C90: 2021-09-08T17:43:56 | D90: 2021-09-08T18:30:06 | E90: 2770 | F90: 0.8 | G90: Moyenne Tension | H90: Manoeuvre séc. non planif. | I90: Autre (sout.) | J90: Autres | K90: Panne
A91: Arrondissement Cote st-Luc | B91: 1219 | C91: 2021-09-10T08:50:20 | D91: 2021-09-10T09:43:10 | E91: 3170 | F91: 0.9 | G91: Moyenne Tension | H91: Manoeuvre séc. non planif. | I91: Aucun (Aérien) | J91: Autres | K91: Panne
A92: Arrondissement Cote st-Luc | B92: 17 | C92: 2021-09-15T13:01:33 | D92: 2021-09-15T13:40:17 | E92: 2324 | F92: 0.6 | G92: Basse Tension | H92: Entretien | I92: Transfo. Aérien | J92: Interruptions planifiées | K92: Interruption programmée
A93: Arrondissement Cote st-Luc | B93: 24 | C93: 2021-09-16T00:01:40 | D93: 2021-09-16T01:21:19 | E93: 4779 | F93: 1.3 | G93: Moyenne Tension | H93: Entretien | I93: Jonction MT | J93: Interruptions planifiées | K93: Interruption programmée
A94: Arrondissement Cote st-Luc | B94: 1148 | C94: 2021-09-29T07:53:21 | D94: 2021-09-29T08:08:30 | E94: 909 | F94: 0.3 | G94: Moyenne Tension | H94: Pannes | I94: Équipement Trans-Énergie | J94: Perte d'alimentation | K94: Perte alimentation
A95: Arrondissement Cote st-Luc | B95: 403 | C95: 2021-09-29T07:53:21 | D95: 2021-09-29T08:10:08 | E95: 1007 | F95: 0.3 | G95: Moyenne Tension | H95: Pannes | I95: Équipement Trans-Énergie | J95: Perte d'alimentation | K95: Perte alimentation
A96: Arrondissement Cote st-Luc | B96: 1321 | C96: 2021-09-29T07:53:21 | D96: 2021-09-29T08:08:42 | E96: 921 | F96: 0.3 | G96: Moyenne Tension | H96: Pannes | I96: Équipement Trans-Énergie | J96: Perte d'alimentation | K96: Perte alimentation
A97: Arrondissement Cote st-Luc | B97: 351 | C97: 2021-10-15T09:30:38 | D97: 2021-10-15T15:09:19 | E97: 20321 | F97: 5.6 | G97: Moyenne Tension | H97: Entretien | I97: Jonction MT | J97: Interruptions planifiées | K97: Interruption programmée
A98: Arrondissement Cote st-Luc | B98: 49 | C98: 2021-10-22T15:08:17 | D98: 2021-10-22T17:00:16 | E98: 6719 | F98: =E98/3600 -> 1.9 | G98: Moyenne Tension | H98: Défaillance | I98: Autre ( Aérien) | J98: Matériel ou équipement | K98: Panne
A99: Arrondissement Cote st-Luc | B99: 68 | C99: 2021-10-23T10:34:42 | D99: 2021-10-23T11:59:54 | E99: 5112 | F99: 1.4 | G99: Moyenne Tension | H99: Incendie / Fuite de gaz | I99: Aucun (Aérien) | J99: Public | K99: Panne
A100: Arrondissement Cote st-Luc | B100: 1 | C100: 2021-10-28T17:30:28 | D100: 2021-10-28T21:20:32 | E100: 13804 | F100: 3.8 | G100: Moyenne Tension | H100: Animal | I100: Fusible | J100: Faune | K100: Panne
A101: Arrondissement Cote st-Luc | B101: 216 | C101: 2021-11-01T04:48:28 | D101: 2021-11-01T09:09:57 | E101: 15689 | F101: 4.4 | G101: Moyenne Tension | H101: Défaillance | I101: Jonction MT | J101: Matériel ou équipement | K101: Panne
A102: Arrondissement Cote st-Luc | B102: 323 | C102: 2021-11-01T04:48:28 | D102: 2021-11-01T06:49:50 | E102: 7282 | F102: 2.0 | G102: Moyenne Tension | H102: Défaillance | I102: Jonction MT | J102: Matériel ou équipement | K102: Panne
A103: Arrondissement Cote st-Luc | B103: 712 | C103: 2021-11-01T04:48:28 | D103: 2021-11-01T15:54:16 | E103: 39948 | F103: 11.1 | G103: Moyenne Tension | H103: Défaillance | I103: Jonction MT | J103: Matériel ou équipement | K103: Panne
A104: Arrondissement Cote st-Luc | B104: 732 | C104: 2021-11-01T06:47:10 | D104: 2021-11-01T06:49:15 | E104: 125 | F104: 0.0 | G104: Moyenne Tension | H104: Défaillance | I104: Composante sout. MT | J104: Matériel ou équipement | K104: Panne
A105: Arrondissement Cote st-Luc | B105: 214 | C105: 2021-11-01T15:54:16 | D105: 2021-11-01T20:16:36 | E105: 15740 | F105: 4.4 | G105: Moyenne Tension | H105: Défaillance | I105: Jonction MT | J105: Matériel ou équipement | K105: Panne
A106: Arrondissement Cote st-Luc | B106: 360 | C106: 2021-11-01T15:54:16 | D106: 2021-11-01T23:43:52 | E106: 28176 | F106: 7.8 | G106: Moyenne Tension | H106: Défaillance | I106: Jonction MT | J106: Matériel ou équipement | K106: Panne
A107: Arrondissement Cote st-Luc | B107: 42 | C107: 2021-11-01T15:54:16 | D107: 2021-11-01T23:43:52 | E107: 28176 | F107: 7.8 | G107: Moyenne Tension | H107: Défaillance | I107: Jonction MT | J107: Matériel ou équipement | K107: Panne
A108: Arrondissement Cote st-Luc | B108: 96 | C108: 2021-11-01T15:54:16 | D108: 2021-11-01T20:31:47 | E108: 16651 | F108: 4.6 | G108: Moyenne Tension | H108: Défaillance | I108: Jonction MT | J108: Matériel ou équipement | K108: Panne
A109: Arrondissement Cote st-Luc | B109: 214 | C109: 2021-11-01T20:16:36 | D109: 2021-11-01T21:52:49 | E109: 5773 | F109: 1.6 | G109: Moyenne Tension | H109: Défaillance | I109: Jonction MT | J109: Matériel ou équipement | K109: Panne
A110: Arrondissement Cote st-Luc | B110: 96 | C110: 2021-11-01T20:31:47 | D110: 2021-11-01T21:52:08 | E110: 4821 | F110: 1.3 | G110: Moyenne Tension | H110: Défaillance | I110: Jonction MT | J110: Matériel ou équipement | K110: Panne
A111: Arrondissement Cote st-Luc | B111: 323 | C111: 2021-11-01T21:40:24 | D111: 2021-11-01T21:49:29 | E111: 545 | F111: 0.2 | G111: Moyenne Tension | H111: Défaillance | I111: Composante sout. MT | J111: Matériel ou équipement | K111: Panne
A112: Arrondissement Cote st-Luc | B112: 370 | C112: 2021-11-01T23:43:52 | D112: 2021-11-01T23:44:25 | E112: 33 | F112: 0.0 | G112: Moyenne Tension | H112: Défaillance | I112: Jonction MT | J112: Matériel ou équipement | K112: Panne
A113: Arrondissement Cote st-Luc | B113: 32 | C113: 2021-11-01T23:43:52 | D113: 2021-11-01T23:44:25 | E113: 33 | F113: 0.0 | G113: Moyenne Tension | H113: Défaillance | I113: Jonction MT | J113: Matériel ou équipement | K113: Panne
A114: Arrondissement Cote st-Luc | B114: 2 | C114: 2021-11-01T23:44:25 | D114: 2021-11-02T03:45:09 | E114: 14444 | F114: 4.0 | G114: Basse Tension | H114: Défaillance | I114: Composante sout. MT | J114: Matériel ou équipement | K114: Panne
A115: Arrondissement Cote st-Luc | B115: 181 | C115: 2021-11-01T23:44:25 | D115: 2021-11-02T03:52:28 | E115: 14883 | F115: 4.1 | G115: Moyenne Tension | H115: Défaillance | I115: Jonction MT | J115: Matériel ou équipement | K115: Panne
A116: Arrondissement Cote st-Luc | B116: 219 | C116: 2021-11-01T23:44:25 | D116: 2021-11-02T03:53:48 | E116: 14963 | F116: 4.2 | G116: Moyenne Tension | H116: Défaillance | I116: Jonction MT | J116: Matériel ou équipement | K116: Panne
A117: Arrondissement Cote st-Luc | B117: 96 | C117: 2021-11-01T23:59:08 | D117: 2021-11-02T00:42:56 | E117: 2628 | F117: 0.7 | G117: Moyenne Tension | H117: Défaillance | I117: Jonction MT | J117: Matériel ou équipement | K117: Panne
A118: Arrondissement Cote st-Luc | B118: 611 | C118: 2021-11-02T00:00:24 | D118: 2021-11-02T02:59:19 | E118: 10735 | F118: 3.0 | G118: Moyenne Tension | H118: Entretien | I118: Transfo. Sout. | J118: Interruptions planifiées | K118: Interruption programmée
A119: Arrondissement Cote st-Luc | B119: 24 | C119: 2021-11-06T09:42:25 | D119: 2021-11-06T12:18:03 | E119: 9338 | F119: 2.6 | G119: Basse Tension | H119: Animal | I119: Coupe-circuit | J119: Faune | K119: Panne
A120: Arrondissement Cote st-Luc | B120: 157 | C120: 2021-11-07T23:38:10 | D120: 2021-11-07T23:49:27 | E120: 677 | F120: 0.2 | G120: Moyenne Tension | H120: Entretien | I120: Autre (sout.) | J120: Interruptions planifiées | K120: Interruption programmée
A121: Arrondissement Cote st-Luc | B121: 62 | C121: 2021-11-07T23:56:06 | D121: 2021-11-08T05:28:18 | E121: 19932 | F121: 5.5 | G121: Moyenne Tension | H121: Entretien | I121: Autre (sout.) | J121: Interruptions planifiées | K121: Interruption programmée
A122: Arrondissement Cote st-Luc | B122: 62 | C122: 2021-11-08T05:28:18 | D122: 2021-11-08T05:29:43 | E122: 85 | F122: 0.0 | G122: Moyenne Tension | H122: Entretien | I122: Autre (sout.) | J122: Interruptions planifiées | K122: Interruption programmée
A123: Arrondissement Cote st-Luc | B123: 62 | C123: 2021-11-08T05:29:43 | D123: 2021-11-08T05:30:06 | E123: 23 | F123: 0.0 | G123: Moyenne Tension | H123: Entretien | I123: Autre (sout.) | J123: Interruptions planifiées | K123: Interruption programmée
A124: Arrondissement Cote st-Luc | B124: 2 | C124: 2021-11-08T05:30:01 | D124: 2021-11-08T05:30:06 | E124: 5 | F124: 0.0 | G124: Basse Tension | H124: Défaillance | I124: Composante sout. MT | J124: Matériel ou équipement | K124: Panne
A125: Arrondissement Cote st-Luc | B125: 64 | C125: 2021-11-08T05:30:06 | D125: 2021-11-08T05:32:52 | E125: 166 | F125: 0.0 | G125: Moyenne Tension | H125: Entretien | I125: Autre (sout.) | J125: Interruptions planifiées | K125: Interruption programmée
A126: Arrondissement Cote st-Luc | B126: 22 | C126: 2021-11-12T20:26:21 | D126: 2021-11-12T20:45:26 | E126: 1145 | F126: 0.3 | G126: Basse Tension | H126: Montage | I126: Réseau basse tension | J126: Matériel ou équipement | K126: Panne
A127: Arrondissement Cote st-Luc | B127: 3 | C127: 2021-12-01T15:09:28 | D127: 2021-12-01T15:19:54 | E127: 626 | F127: 0.2 | G127: Moyenne Tension | H127: Défaillance | I127: Fusible (Boîtier à fusible) | J127: Matériel ou équipement | K127: Panne
A128: Arrondissement Cote st-Luc | B128: 3 | C128: 2021-12-01T15:20:06 | D128: 2021-12-01T16:17:24 | E128: 3438 | F128: 1.0 | G128: Moyenne Tension | H128: Défaillance | I128: Fusible (Boîtier à fusible) | J128: Matériel ou équipement | K128: Panne
A129: Arrondissement Cote st-Luc | B129: 3 | C129: 2021-12-01T16:18:00 | D129: 2021-12-01T16:39:03 | E129: 1263 | F129: 0.4 | G129: Moyenne Tension | H129: Surcharge | I129: Fusible (Boîtier à fusible) | J129: Matériel ou équipement | K129: Panne
A130: Arrondissement Cote st-Luc | B130: 3 | C130: 2021-12-01T16:39:03 | D130: 2021-12-01T16:39:11 | E130: 8 | F130: =E130/3600 -> 0.0 | G130: Moyenne Tension | H130: Surcharge | I130: Fusible (Boîtier à fusible) | J130: Matériel ou équipement | K130: Panne
A131: Arrondissement Cote st-Luc | B131: 3 | C131: 2021-12-01T16:39:11 | D131: 2021-12-01T19:53:25 | E131: 11654 | F131: 3.2 | G131: Moyenne Tension | H131: Indéterminé | I131: Aucun (Aérien) | J131: Inconnues | K131: Panne
A132: Arrondissement Cote st-Luc | B132: 1496 | C132: 2021-12-06T10:56:09 | D132: 2021-12-06T11:56:04 | E132: 3595 | F132: 1.0 | G132: Moyenne Tension | H132: Manoeuvre séc. non planif. | I132: Aucun (Aérien) | J132: Autres | K132: Panne
A133: Arrondissement Cote st-Luc | B133: 15 | C133: 2021-12-07T07:10:14 | D133: 2021-12-07T10:50:16 | E133: 13202 | F133: 3.7 | G133: Moyenne Tension | H133: Défaillance | I133: Transfo. Sout. | J133: Matériel ou équipement | K133: Panne
A134: Arrondissement Cote st-Luc | B134: 24 | C134: 2021-12-07T09:53:49 | D134: 2021-12-07T10:50:16 | E134: 3387 | F134: 0.9 | G134: Moyenne Tension | H134: Défaillance | I134: Transfo. Sout. | J134: Matériel ou équipement | K134: Panne
A135: Arrondissement Cote st-Luc | B135: 32 | C135: 2021-12-07T10:50:16 | D135: 2021-12-07T10:52:13 | E135: 117 | F135: 0.0 | G135: Moyenne Tension | H135: Défaillance | I135: Transfo. Sout. | J135: Matériel ou équipement | K135: Panne
A136: Arrondissement Cote st-Luc | B136: 7 | C136: 2021-12-07T10:50:16 | D136: 2021-12-07T16:57:59 | E136: 22063 | F136: 6.1 | G136: Moyenne Tension | H136: Défaillance | I136: Transfo. Sout. | J136: Matériel ou équipement | K136: Panne
A137: Arrondissement Cote st-Luc | B137: 261 | C137: 2021-12-08T21:04:09 | D137: 2021-12-08T21:17:10 | E137: 781 | F137: 0.2 | G137: Moyenne Tension | H137: Manoeuvres | I137: Aucun ( sout.) | J137: Interruptions planifiées | K137: Interruption programmée
A138: Arrondissement Cote st-Luc | B138: 261 | C138: 2021-12-08T21:29:55 | D138: 2021-12-08T21:48:35 | E138: 1120 | F138: 0.3 | G138: Moyenne Tension | H138: Manoeuvres | I138: Aucun ( sout.) | J138: Interruptions planifiées | K138: Interruption programmée
A139: Arrondissement Cote st-Luc | B139: 261 | C139: 2021-12-08T21:52:00 | D139: 2021-12-08T22:16:55 | E139: 1495 | F139: 0.4 | G139: Moyenne Tension | H139: Manoeuvres | I139: Aucun ( sout.) | J139: Interruptions planifiées | K139: Interruption programmée
A140: Arrondissement Cote st-Luc | B140: 261 | C140: 2021-12-08T22:16:55 | D140: 2021-12-08T22:17:15 | E140: 20 | F140: 0.0 | G140: Moyenne Tension | H140: Manoeuvres | I140: Aucun ( sout.) | J140: Interruptions planifiées | K140: Interruption programmée
A141: Arrondissement Cote st-Luc | B141: 261 | C141: 2021-12-08T22:17:15 | D141: 2021-12-08T22:32:14 | E141: 899 | F141: 0.2 | G141: Moyenne Tension | H141: Manoeuvres | I141: Aucun ( sout.) | J141: Interruptions planifiées | K141: Interruption programmée
A142: Arrondissement Cote st-Luc | B142: 261 | C142: 2021-12-08T22:34:52 | D142: 2021-12-08T22:47:12 | E142: 740 | F142: 0.2 | G142: Moyenne Tension | H142: Manoeuvres | I142: Aucun ( sout.) | J142: Interruptions planifiées | K142: Interruption programmée
A143: Arrondissement Cote st-Luc | B143: 261 | C143: 2021-12-08T23:47:24 | D143: 2021-12-08T23:56:42 | E143: 558 | F143: 0.2 | G143: Moyenne Tension | H143: Manoeuvres | I143: Aucun ( sout.) | J143: Interruptions planifiées | K143: Interruption programmée
A144: Arrondissement Cote st-Luc | B144: 923 | C144: 2021-12-11T20:34:49 | D144: 2021-12-11T20:47:01 | E144: 732 | F144: 0.2 | G144: Moyenne Tension | H144: Vent | I144: Aucun (Aérien) | J144: Conditions atmosphériques | K144: Panne
A145: Arrondissement Cote st-Luc | B145: 1070 | C145: 2021-12-11T21:19:51 | D145: 2021-12-11T21:56:38 | E145: 2207 | F145: 0.6 | G145: Moyenne Tension | H145: Vent | I145: Aucun (Aérien) | J145: Conditions atmosphériques | K145: Panne
A146: Arrondissement Cote st-Luc | B146: 1070 | C146: 2021-12-11T22:00:27 | D146: 2021-12-12T03:00:41 | E146: 18014 | F146: 5.0 | G146: Moyenne Tension | H146: Vent | I146: Aucun (Aérien) | J146: Conditions atmosphériques | K146: Panne
A147: Arrondissement Cote st-Luc | B147: 1077 | C147: 2021-12-11T23:00:00 | D147: 2021-12-12T00:19:55 | E147: 4795 | F147: 1.3 | G147: Moyenne Tension | H147: Manoeuvre séc. non planif. | I147: Aucun (Aérien) | J147: Autres | K147: Panne
A148: Arrondissement Cote st-Luc | B148: 121 | C148: 2021-12-11T23:02:04 | D148: 2021-12-12T01:45:06 | E148: 9782 | F148: 2.7 | G148: Moyenne Tension | H148: Vent | I148: Aucun (Aérien) | J148: Conditions atmosphériques | K148: Panne
A149: Arrondissement Cote st-Luc | B149: 403 | C149: 2021-12-11T23:29:23 | D149: 2021-12-12T01:00:20 | E149: 5457 | F149: 1.5 | G149: Moyenne Tension | H149: Manoeuvre séc. non planif. | I149: Aucun (Aérien) | J149: Autres | K149: Panne
A150: Arrondissement Cote st-Luc | B150: 1070 | C150: 2021-12-12T03:01:01 | D150: 2021-12-12T03:01:03 | E150: 2 | F150: 0.0 | G150: Moyenne Tension | H150: Végétation | I150: Aucun (Aérien) | J150: Végétation | K150: Panne
A151: Arrondissement Cote st-Luc | B151: 1077 | C151: 2021-12-21T13:22:01 | D151: 2021-12-21T13:31:56 | E151: 595 | F151: 0.2 | G151: Moyenne Tension | H151: Indéterminé | I151: Aucun (Aérien) | J151: Inconnues | K151: Panne
A152: Arrondissement Cote st-Luc | B152: 51 | C152: 2021-12-21T14:23:22 | D152: 2021-12-21T14:23:35 | E152: 13 | F152: 0.0 | G152: Basse Tension | H152: Animal | I152: Parafoudre | J152: Faune | K152: Panne
A153: Arrondissement Cote st-Luc | B153: 94 | C153: 2021-12-24T08:44:11 | D153: 2021-12-24T11:24:18 | E153: 9607 | F153: 2.7 | G153: Moyenne Tension | H153: Défaillance | I153: Fusible | J153: Matériel ou équipement | K153: Panne
A154: Arrondissement Cote st-Luc | B154: 23 | C154: 2021-12-24T17:20:02 | D154: 2021-12-24T22:17:21 | E154: 17839 | F154: 5.0 | G154: Basse Tension | H154: Défaillance | I154: Transfo. Aérien | J154: Matériel ou équipement | K154: Panne
A155: Arrondissement Cote st-Luc | B155: 12 | C155: 2021-12-26T08:24:18 | D155: 2021-12-26T19:50:39 | E155: 41181 | F155: 11.4 | G155: Basse Tension | H155: Défaillance | I155: Transfo. Aérien | J155: Matériel ou équipement | K155: Panne
A156: Arrondissement Cote st-Luc | B156: 923 | C156: 2021-12-26T10:20:52 | D156: 2021-12-26T10:30:25 | E156: 573 | F156: 0.2 | G156: Moyenne Tension | H156: Surcharge | I156: Composante sout. MT | J156: Matériel ou équipement | K156: Panne
A157: Arrondissement Cote st-Luc | B157: 923 | C157: 2021-12-26T10:30:36 | D157: 2021-12-26T12:01:27 | E157: 5451 | F157: 1.5 | G157: Moyenne Tension | H157: Surcharge | I157: Composante sout. MT | J157: Matériel ou équipement | K157: Panne
A158: Arrondissement Cote st-Luc | B158: 923 | C158: 2021-12-26T12:01:27 | D158: 2021-12-26T12:02:00 | E158: 33 | F158: 0.0 | G158: Moyenne Tension | H158: Surcharge | I158: Composante sout. MT | J158: Matériel ou équipement | K158: Panne
A159: Arrondissement Cote st-Luc | B159: 109 | C159: 2021-12-28T07:41:05 | D159: 2021-12-28T12:33:07 | E159: 17522 | F159: 4.9 | G159: Moyenne Tension | H159: Défaillance | I159: Coupe-circuit | J159: Matériel ou équipement | K159: Panne

Sheet Détails_Année_2022
A1: INT_COD_CED | B1: NOMBRE_CLIENTS | C1: DATE_DEBUT_INTERRUPTION | D1: INT_DATE_FIN_INTERRUPTION | E1: DUREE (SEC) | F1: DUREE (HEURE) | G1: TYPE D'INTERRUPTION | H1: DESCRIPTION CAUSE DETAILLEE | I1: DESCRIPTION EQUIPEMENT | J1: GROUPECAUSE | K1: CATEGORIE
A2: Arrondissement Cote st-Luc | B2: 71 | C2: 2022-01-11T21:24:07 | D2: 2022-01-12T05:00:26 | E2: 27379 | F2: =E2/3600 -> 7.6 | G2: Moyenne Tension | H2: Défaillance | I2: Transfo. Sout. | J2: Matériel ou équipement | K2: Panne
A3: Arrondissement Cote st-Luc | B3: 2 | C3: 2022-01-12T00:13:58 | D3: 2022-01-12T02:55:31 | E3: 9693 | F3: 2.7 | G3: Moyenne Tension | H3: Entretien | I3: Composante sout. MT | J3: Interruptions planifiées | K3: Interruption programmée
A4: Arrondissement Cote st-Luc | B4: 32 | C4: 2022-01-12T03:34:28 | D4: 2022-01-12T05:00:57 | E4: 5189 | F4: 1.4 | G4: Moyenne Tension | H4: Défaillance | I4: Transfo. Sout. | J4: Matériel ou équipement | K4: Panne
A5: Arrondissement Cote st-Luc | B5: 17 | C5: 2022-01-12T03:34:36 | D5: 2022-01-12T05:00:41 | E5: 5165 | F5: 1.4 | G5: Moyenne Tension | H5: Défaillance | I5: Transfo. Sout. | J5: Matériel ou équipement | K5: Panne
A6: Arrondissement Cote st-Luc | B6: 30 | C6: 2022-01-12T03:34:44 | D6: 2022-01-12T05:00:33 | E6: 5149 | F6: 1.4 | G6: Moyenne Tension | H6: Défaillance | I6: Transfo. Sout. | J6: Matériel ou équipement | K6: Panne
A7: Arrondissement Cote st-Luc | B7: 2 | C7: 2022-01-12T09:17:19 | D7: 2022-01-12T12:55:26 | E7: 13087 | F7: 3.6 | G7: Moyenne Tension | H7: Défaillance | I7: Jonction MT | J7: Matériel ou équipement | K7: Panne
A8: Arrondissement Cote st-Luc | B8: 2 | C8: 2022-01-12T12:55:26 | D8: 2022-01-12T12:55:42 | E8: 16 | F8: 0.0 | G8: Moyenne Tension | H8: Défaillance | I8: Jonction MT | J8: Matériel ou équipement | K8: Panne
A9: Arrondissement Cote st-Luc | B9: 67 | C9: 2022-01-12T13:21:08 | D9: 2022-01-12T14:00:29 | E9: 2361 | F9: 0.7 | G9: Moyenne Tension | H9: Surcharge | I9: Aucun (Aérien) | J9: Matériel ou équipement | K9: Panne
A10: Arrondissement Cote st-Luc | B10: 15 | C10: 2022-01-12T14:18:37 | D10: 2022-01-12T15:27:30 | E10: 4133 | F10: 1.1 | G10: Basse Tension | H10: Surcharge | I10: Fusible | J10: Matériel ou équipement | K10: Panne
A11: Arrondissement Cote st-Luc | B11: 338 | C11: 2022-01-13T08:33:54 | D11: 2022-01-13T16:44:48 | E11: 29454 | F11: 8.2 | G11: Moyenne Tension | H11: Entretien | I11: Jonction MT | J11: Interruptions planifiées | K11: Interruption programmée
A12: Arrondissement Cote st-Luc | B12: 62 | C12: 2022-01-13T08:37:57 | D12: 2022-01-13T16:44:48 | E12: 29211 | F12: 8.1 | G12: Moyenne Tension | H12: Entretien | I12: Jonction MT | J12: Interruptions planifiées | K12: Interruption programmée
A13: Arrondissement Cote st-Luc | B13: 2 | C13: 2022-01-13T08:37:57 | D13: 2022-01-13T16:44:48 | E13: 29211 | F13: 8.1 | G13: Moyenne Tension | H13: Entretien | I13: Jonction MT | J13: Interruptions planifiées | K13: Interruption programmée
A14: Arrondissement Cote st-Luc | B14: 32 | C14: 2022-01-13T16:44:48 | D14: 2022-01-13T16:45:34 | E14: 46 | F14: 0.0 | G14: Moyenne Tension | H14: Entretien | I14: Jonction MT | J14: Interruptions planifiées | K14: Interruption programmée
A15: Arrondissement Cote st-Luc | B15: 173 | C15: 2022-01-13T16:45:34 | D15: 2022-01-13T16:48:31 | E15: 177 | F15: 0.0 | G15: Moyenne Tension | H15: Entretien | I15: Jonction MT | J15: Interruptions planifiées | K15: Interruption programmée
A16: Arrondissement Cote st-Luc | B16: 72 | C16: 2022-01-13T16:45:34 | D16: 2022-01-13T16:46:00 | E16: 26 | F16: 0.0 | G16: Moyenne Tension | H16: Entretien | I16: Jonction MT | J16: Interruptions planifiées | K16: Interruption programmée
A17: Arrondissement Cote st-Luc | B17: 157 | C17: 2022-01-13T16:45:34 | D17: 2022-01-13T16:46:00 | E17: 26 | F17: 0.0 | G17: Moyenne Tension | H17: Entretien | I17: Jonction MT | J17: Interruptions planifiées | K17: Interruption programmée
A18: Arrondissement Cote st-Luc | B18: 229 | C18: 2022-01-13T16:46:00 | D18: 2022-01-13T16:50:16 | E18: 256 | F18: 0.1 | G18: Moyenne Tension | H18: Entretien | I18: Jonction MT | J18: Interruptions planifiées | K18: Interruption programmée
A19: Arrondissement Cote st-Luc | B19: 16 | C19: 2022-01-17T10:47:01 | D19: 2022-01-17T21:27:46 | E19: 38445 | F19: 10.7 | G19: Moyenne Tension | H19: Défaillance | I19: Composante sout. MT | J19: Matériel ou équipement | K19: Panne
A20: Arrondissement Cote st-Luc | B20: 14 | C20: 2022-01-17T10:47:01 | D20: 2022-01-17T21:27:46 | E20: 38445 | F20: 10.7 | G20: Moyenne Tension | H20: Défaillance | I20: Composante sout. MT | J20: Matériel ou équipement | K20: Panne
A21: Arrondissement Cote st-Luc | B21: 17 | C21: 2022-01-17T13:42:55 | D21: 2022-01-17T15:46:47 | E21: 7432 | F21: 2.1 | G21: Basse Tension | H21: Défaillance | I21: Fusible | J21: Matériel ou équipement | K21: Panne
A22: Arrondissement Cote st-Luc | B22: 17 | C22: 2022-01-17T17:17:52 | D22: 2022-01-18T01:14:52 | E22: 28620 | F22: 8.0 | G22: Basse Tension | H22: Surcharge | I22: Transfo. Aérien | J22: Matériel ou équipement | K22: Panne
A23: Arrondissement Cote st-Luc | B23: 30 | C23: 2022-01-17T21:27:46 | D23: 2022-01-17T21:29:03 | E23: 77 | F23: 0.0 | G23: Moyenne Tension | H23: Défaillance | I23: Composante sout. MT | J23: Matériel ou équipement | K23: Panne
A24: Arrondissement Cote st-Luc | B24: 16 | C24: 2022-01-17T21:36:25 | D24: 2022-01-18T01:17:25 | E24: 13260 | F24: 3.7 | G24: Basse Tension | H24: Surcharge | I24: Transfo. Sout. | J24: Matériel ou équipement | K24: Panne
A25: Arrondissement Cote st-Luc | B25: 35 | C25: 2022-01-18T09:08:44 | D25: 2022-01-18T11:18:42 | E25: 7798 | F25: 2.2 | G25: Basse Tension | H25: Travaux sécuritaires | I25: Transfo. Aérien | J25: Interruptions planifiées | K25: Interruption programmée
A26: Arrondissement Cote st-Luc | B26: 1477 | C26: 2022-01-22T00:58:42 | D26: 2022-01-22T01:29:34 | E26: 1852 | F26: 0.5 | G26: Moyenne Tension | H26: Manoeuvre séc. non planif. | I26: Aucun (Aérien) | J26: Autres | K26: Panne
A27: Arrondissement Cote st-Luc | B27: 1017 | C27: 2022-01-22T01:32:39 | D27: 2022-01-22T01:35:48 | E27: 189 | F27: 0.1 | G27: Moyenne Tension | H27: Manoeuvre séc. non planif. | I27: Aucun (Aérien) | J27: Autres | K27: Panne
A28: Arrondissement Cote st-Luc | B28: 288 | C28: 2022-01-22T01:32:39 | D28: 2022-01-22T02:14:44 | E28: 2525 | F28: 0.7 | G28: Moyenne Tension | H28: Manoeuvre séc. non planif. | I28: Aucun (Aérien) | J28: Autres | K28: Panne
A29: Arrondissement Cote st-Luc | B29: 172 | C29: 2022-01-22T01:32:39 | D29: 2022-01-22T01:49:17 | E29: 998 | F29: 0.3 | G29: Moyenne Tension | H29: Manoeuvre séc. non planif. | I29: Aucun (Aérien) | J29: Autres | K29: Panne
A30: Arrondissement Cote st-Luc | B30: 45 | C30: 2022-01-22T01:44:23 | D30: 2022-01-22T08:34:22 | E30: 24599 | F30: 6.8 | G30: Basse Tension | H30: Surcharge | I30: Transfo. Aérien | J30: Matériel ou équipement | K30: Panne
A31: Arrondissement Cote st-Luc | B31: 1703 | C31: 2022-01-22T02:17:24 | D31: 2022-01-22T02:22:19 | E31: 295 | F31: 0.1 | G31: Moyenne Tension | H31: Manoeuvre séc. non planif. | I31: Aucun (Aérien) | J31: Autres | K31: Panne
A32: Arrondissement Cote st-Luc | B32: 288 | C32: 2022-01-22T02:17:24 | D32: 2022-01-22T02:31:38 | E32: 854 | F32: 0.2 | G32: Moyenne Tension | H32: Manoeuvre séc. non planif. | I32: Aucun (Aérien) | J32: Autres | K32: Panne
A33: Arrondissement Cote st-Luc | B33: 23 | C33: 2022-01-31T08:38:33 | D33: 2022-01-31T13:19:00 | E33: 16827 | F33: 4.7 | G33: Moyenne Tension | H33: Travaux sécuritaires | I33: Accessoire sout. | J33: Interruptions planifiées | K33: Interruption programmée
A34: Arrondissement Cote st-Luc | B34: 17 | C34: 2022-01-31T10:10:43 | D34: 2022-01-31T13:06:57 | E34: 10574 | F34: =E34/3600 -> 2.9 | G34: Moyenne Tension | H34: Entretien | I34: Autre (sout.) | J34: Interruptions planifiées | K34: Interruption programmée
A35: Arrondissement Cote st-Luc | B35: 49 | C35: 2022-02-09T13:01:06 | D35: 2022-02-09T14:27:35 | E35: 5189 | F35: 1.4 | G35: Moyenne Tension | H35: Entretien | I35: Composante sout. MT | J35: Interruptions planifiées | K35: Interruption programmée
A36: Arrondissement Cote st-Luc | B36: 351 | C36: 2022-02-16T22:06:17 | D36: 2022-02-17T00:03:15 | E36: 7018 | F36: 1.9 | G36: Moyenne Tension | H36: Défaillance | I36: Câble et barre MT | J36: Matériel ou équipement | K36: Panne
A37: Arrondissement Cote st-Luc | B37: 52 | C37: 2022-02-16T22:06:17 | D37: 2022-02-16T23:01:48 | E37: 3331 | F37: 0.9 | G37: Moyenne Tension | H37: Défaillance | I37: Câble et barre MT | J37: Matériel ou équipement | K37: Panne
A38: Arrondissement Cote st-Luc | B38: 52 | C38: 2022-02-16T23:47:01 | D38: 2022-02-16T23:50:43 | E38: 222 | F38: 0.1 | G38: Moyenne Tension | H38: Défaillance | I38: Câble et barre MT | J38: Matériel ou équipement | K38: Panne
A39: Arrondissement Cote st-Luc | B39: 52 | C39: 2022-02-16T23:50:43 | D39: 2022-02-16T23:52:17 | E39: 94 | F39: 0.0 | G39: Moyenne Tension | H39: Défaillance | I39: Câble et barre MT | J39: Matériel ou équipement | K39: Panne
A40: Arrondissement Cote st-Luc | B40: 351 | C40: 2022-02-17T00:03:42 | D40: 2022-02-17T00:08:29 | E40: 287 | F40: 0.1 | G40: Moyenne Tension | H40: Défaillance | I40: Câble et barre MT | J40: Matériel ou équipement | K40: Panne
A41: Arrondissement Cote st-Luc | B41: 889 | C41: 2022-02-17T00:03:42 | D41: 2022-02-17T00:08:29 | E41: 287 | F41: 0.1 | G41: Moyenne Tension | H41: Défaillance | I41: Câble et barre MT | J41: Matériel ou équipement | K41: Panne
A42: Arrondissement Cote st-Luc | B42: 1240 | C42: 2022-02-17T00:08:29 | D42: 2022-02-17T00:10:46 | E42: 137 | F42: 0.0 | G42: Moyenne Tension | H42: Défaillance | I42: Câble et barre MT | J42: Matériel ou équipement | K42: Panne
A43: Arrondissement Cote st-Luc | B43: 1240 | C43: 2022-02-17T01:29:39 | D43: 2022-02-17T01:34:48 | E43: 309 | F43: 0.1 | G43: Moyenne Tension | H43: Défaillance | I43: Câble et barre MT | J43: Matériel ou équipement | K43: Panne
A44: Arrondissement Cote st-Luc | B44: 1240 | C44: 2022-02-17T01:34:48 | D44: 2022-02-17T01:35:26 | E44: 38 | F44: 0.0 | G44: Moyenne Tension | H44: Défaillance | I44: Câble et barre MT | J44: Matériel ou équipement | K44: Panne
A45: Arrondissement Cote st-Luc | B45: 1240 | C45: 2022-02-17T01:35:26 | D45: 2022-02-17T01:42:39 | E45: 433 | F45: 0.1 | G45: Moyenne Tension | H45: Défaillance | I45: Câble et barre MT | J45: Matériel ou équipement | K45: Panne
A46: Arrondissement Cote st-Luc | B46: 10 | C46: 2022-02-17T07:46:50 | D46: 2022-02-17T10:34:47 | E46: 10077 | F46: 2.8 | G46: Basse Tension | H46: Animal | I46: Fusible | J46: Faune | K46: Panne
A47: Arrondissement Cote st-Luc | B47: 1148 | C47: 2022-02-17T10:56:37 | D47: 2022-02-17T11:03:26 | E47: 409 | F47: 0.1 | G47: Moyenne Tension | H47: Manoeuvre séc. non planif. | I47: Aucun (Aérien) | J47: Autres | K47: Panne
A48: Arrondissement Cote st-Luc | B48: 187 | C48: 2022-02-22T00:04:16 | D48: 2022-02-22T02:05:00 | E48: 7244 | F48: 2.0 | G48: Moyenne Tension | H48: Entretien | I48: Composante sout. MT | J48: Interruptions planifiées | K48: Interruption programmée
A49: Arrondissement Cote st-Luc | B49: 15 | C49: 2022-02-22T13:09:40 | D49: 2022-02-22T14:14:27 | E49: 3887 | F49: 1.1 | G49: Basse Tension | H49: Modification réseau | I49: Transfo. Aérien | J49: Interruptions planifiées | K49: Interruption programmée
A50: Arrondissement Cote st-Luc | B50: 22 | C50: 2022-02-26T01:04:32 | D50: 2022-02-26T02:15:52 | E50: 4280 | F50: 1.2 | G50: Basse Tension | H50: Défaillance | I50: Réseau basse tension | J50: Matériel ou équipement | K50: Panne
A51: Arrondissement Cote st-Luc | B51: 173 | C51: 2022-03-01T14:09:11 | D51: 2022-03-01T14:17:15 | E51: 484 | F51: 0.1 | G51: Moyenne Tension | H51: Équipement client(e) | I51: Aucun ( sout.) | J51: Matériel ou équipement | K51: Panne
A52: Arrondissement Cote st-Luc | B52: 175 | C52: 2022-03-01T14:19:00 | D52: 2022-03-01T14:24:43 | E52: 343 | F52: 0.1 | G52: Moyenne Tension | H52: Équipement client(e) | I52: Aucun ( sout.) | J52: Matériel ou équipement | K52: Panne
A53: Arrondissement Cote st-Luc | B53: 80 | C53: 2022-03-01T21:04:20 | D53: 2022-03-01T22:07:32 | E53: 3792 | F53: 1.1 | G53: Moyenne Tension | H53: Entretien | I53: Autre (sout.) | J53: Interruptions planifiées | K53: Interruption programmée
A54: Arrondissement Cote st-Luc | B54: 35 | C54: 2022-03-01T21:04:20 | D54: 2022-03-01T22:07:32 | E54: 3792 | F54: 1.1 | G54: Moyenne Tension | H54: Entretien | I54: Autre (sout.) | J54: Interruptions planifiées | K54: Interruption programmée
A55: Arrondissement Cote st-Luc | B55: 12 | C55: 2022-03-01T21:18:03 | D55: 2022-03-01T22:07:56 | E55: 2993 | F55: 0.8 | G55: Moyenne Tension | H55: Entretien | I55: Autre (sout.) | J55: Interruptions planifiées | K55: Interruption programmée
A56: Arrondissement Cote st-Luc | B56: 21 | C56: 2022-03-01T21:18:17 | D56: 2022-03-01T22:08:17 | E56: 3000 | F56: 0.8 | G56: Moyenne Tension | H56: Entretien | I56: Autre (sout.) | J56: Interruptions planifiées | K56: Interruption programmée
A57: Arrondissement Cote st-Luc | B57: 115 | C57: 2022-03-01T22:07:32 | D57: 2022-03-01T22:07:56 | E57: 24 | F57: 0.0 | G57: Moyenne Tension | H57: Entretien | I57: Autre (sout.) | J57: Interruptions planifiées | K57: Interruption programmée
A58: Arrondissement Cote st-Luc | B58: 127 | C58: 2022-03-01T22:07:56 | D58: 2022-03-01T22:08:17 | E58: 21 | F58: 0.0 | G58: Moyenne Tension | H58: Entretien | I58: Autre (sout.) | J58: Interruptions planifiées | K58: Interruption programmée
A59: Arrondissement Cote st-Luc | B59: 148 | C59: 2022-03-01T22:08:17 | D59: 2022-03-01T22:26:42 | E59: 1105 | F59: 0.3 | G59: Moyenne Tension | H59: Entretien | I59: Autre (sout.) | J59: Interruptions planifiées | K59: Interruption programmée
A60: Arrondissement Cote st-Luc | B60: 103 | C60: 2022-03-01T22:26:42 | D60: 2022-03-01T22:26:55 | E60: 13 | F60: 0.0 | G60: Moyenne Tension | H60: Entretien | I60: Autre (sout.) | J60: Interruptions planifiées | K60: Interruption programmée
A61: Arrondissement Cote st-Luc | B61: 26 | C61: 2022-03-01T22:26:55 | D61: 2022-03-01T22:27:08 | E61: 13 | F61: 0.0 | G61: Moyenne Tension | H61: Entretien | I61: Autre (sout.) | J61: Interruptions planifiées | K61: Interruption programmée
A62: Arrondissement Cote st-Luc | B62: 15 | C62: 2022-03-07T02:57:50 | D62: 2022-03-07T13:45:37 | E62: 38867 | F62: 10.8 | G62: Basse Tension | H62: Défaillance | I62: Transfo. Aérien | J62: Matériel ou équipement | K62: Panne
A63: Arrondissement Cote st-Luc | B63: 43 | C63: 2022-03-09T08:46:07 | D63: 2022-03-09T11:33:12 | E63: 10025 | F63: 2.8 | G63: Moyenne Tension | H63: Entretien | I63: Poteau | J63: Interruptions planifiées | K63: Interruption programmée
A64: Arrondissement Cote st-Luc | B64: 10 | C64: 2022-03-09T08:46:07 | D64: 2022-03-09T13:50:45 | E64: 18278 | F64: 5.1 | G64: Basse Tension | H64: Entretien | I64: Poteau | J64: Interruptions planifiées | K64: Interruption programmée
A65: Arrondissement Cote st-Luc | B65: 17 | C65: 2022-03-10T09:45:20 | D65: 2022-03-10T22:19:27 | E65: 45247 | F65: 12.6 | G65: Moyenne Tension | H65: Défaillance | I65: Transfo. Sout. | J65: Matériel ou équipement | K65: Panne
A66: Arrondissement Cote st-Luc | B66: 1321 | C66: 2022-03-20T08:15:08 | D66: 2022-03-20T08:21:42 | E66: 394 | F66: =E66/3600 -> 0.1 | G66: Moyenne Tension | H66: Pannes | I66: Équipement Trans-Énergie | J66: Perte d'alimentation | K66: Perte alimentation
A67: Arrondissement Cote st-Luc | B67: 403 | C67: 2022-03-20T08:15:08 | D67: 2022-03-20T08:22:57 | E67: 469 | F67: 0.1 | G67: Moyenne Tension | H67: Pannes | I67: Équipement Trans-Énergie | J67: Perte d'alimentation | K67: Perte alimentation
A68: Arrondissement Cote st-Luc | B68: 1353 | C68: 2022-03-20T21:45:00 | D68: 2022-03-20T21:58:46 | E68: 826 | F68: 0.2 | G68: Moyenne Tension | H68: Incendie / Fuite de gaz | I68: Réseau basse tension | J68: Public | K68: Panne
A69: Arrondissement Cote st-Luc | B69: 148 | C69: 2022-03-21T21:55:38 | D69: 2022-03-21T22:37:55 | E69: 2537 | F69: 0.7 | G69: Moyenne Tension | H69: Entretien | I69: Autre (sout.) | J69: Interruptions planifiées | K69: Interruption programmée
A70: Arrondissement Cote st-Luc | B70: 35 | C70: 2022-03-21T22:37:55 | D70: 2022-03-21T22:40:04 | E70: 129 | F70: 0.0 | G70: Moyenne Tension | H70: Entretien | I70: Autre (sout.) | J70: Interruptions planifiées | K70: Interruption programmée
A71: Arrondissement Cote st-Luc | B71: 92 | C71: 2022-03-21T22:37:55 | D71: 2022-03-21T22:46:40 | E71: 525 | F71: 0.1 | G71: Moyenne Tension | H71: Entretien | I71: Autre (sout.) | J71: Interruptions planifiées | K71: Interruption programmée
A72: Arrondissement Cote st-Luc | B72: 21 | C72: 2022-03-21T22:37:55 | D72: 2022-03-21T22:40:38 | E72: 163 | F72: 0.0 | G72: Moyenne Tension | H72: Entretien | I72: Autre (sout.) | J72: Interruptions planifiées | K72: Interruption programmée
A73: Arrondissement Cote st-Luc | B73: 68 | C73: 2022-04-06T02:23:41 | D73: 2022-04-06T03:00:43 | E73: 2222 | F73: 0.6 | G73: Moyenne Tension | H73: Manoeuvre séc. non planif. | I73: Aucun (Aérien) | J73: Autres | K73: Panne
A74: Arrondissement Cote st-Luc | B74: 101 | C74: 2022-04-12T09:31:06 | D74: 2022-04-12T11:51:37 | E74: 8431 | F74: 2.3 | G74: Moyenne Tension | H74: Entretien | I74: Boîte d'extrémité | J74: Interruptions planifiées | K74: Interruption programmée
A75: Arrondissement Cote st-Luc | B75: 12 | C75: 2022-04-20T08:03:48 | D75: 2022-04-20T10:07:04 | E75: 7396 | F75: 2.1 | G75: Basse Tension | H75: Entretien | I75: Transfo. Aérien | J75: Interruptions planifiées | K75: Interruption programmée
A76: Arrondissement Cote st-Luc | B76: 40 | C76: 2022-04-26T09:13:24 | D76: 2022-04-26T10:07:27 | E76: 3243 | F76: 0.9 | G76: Basse Tension | H76: Animal | I76: Aucun (Aérien) | J76: Faune | K76: Panne
A77: Arrondissement Cote st-Luc | B77: 1 | C77: 2022-04-29T10:14:57 | D77: 2022-04-29T17:12:20 | E77: 25043 | F77: 7.0 | G77: Moyenne Tension | H77: Défaillance | I77: Transfo. Aérien | J77: Matériel ou équipement | K77: Panne
A78: Arrondissement Cote st-Luc | B78: 682 | C78: 2022-04-29T15:08:20 | D78: 2022-04-29T16:42:05 | E78: 5625 | F78: 1.6 | G78: Moyenne Tension | H78: Manoeuvre séc. non planif. | I78: Aucun (Aérien) | J78: Autres | K78: Panne
A79: Arrondissement Cote st-Luc | B79: 51 | C79: 2022-05-07T01:18:53 | D79: 2022-05-07T02:12:51 | E79: 3238 | F79: 0.9 | G79: Basse Tension | H79: Animal | I79: Conducteur MT | J79: Faune | K79: Panne
A80: Arrondissement Cote st-Luc | B80: 1477 | C80: 2022-05-10T05:19:31 | D80: 2022-05-10T05:29:41 | E80: 610 | F80: 0.2 | G80: Moyenne Tension | H80: Indéterminé | I80: Aucun (Aérien) | J80: Inconnues | K80: Panne
A81: Arrondissement Cote st-Luc | B81: 9 | C81: 2022-05-15T10:12:49 | D81: 2022-05-15T17:18:16 | E81: 25527 | F81: 7.1 | G81: Basse Tension | H81: Défaillance | I81: Transfo. Aérien | J81: Matériel ou équipement | K81: Panne
A82: Arrondissement Cote st-Luc | B82: 261 | C82: 2022-05-24T20:20:37 | D82: 2022-05-24T20:31:04 | E82: 627 | F82: 0.2 | G82: Moyenne Tension | H82: Indéterminé | I82: Aucun (Aérien) | J82: Inconnues | K82: Panne
A83: Arrondissement Cote st-Luc | B83: 923 | C83: 2022-05-26T06:00:49 | D83: 2022-05-26T06:10:32 | E83: 583 | F83: 0.2 | G83: Moyenne Tension | H83: Indéterminé | I83: Aucun (Aérien) | J83: Inconnues | K83: Panne
A84: Arrondissement Cote st-Luc | B84: 889 | C84: 2022-05-26T06:00:49 | D84: 2022-05-26T06:11:10 | E84: 621 | F84: 0.2 | G84: Moyenne Tension | H84: Indéterminé | I84: Aucun (Aérien) | J84: Inconnues | K84: Panne
A85: Arrondissement Cote st-Luc | B85: 923 | C85: 2022-05-31T06:57:04 | D85: 2022-05-31T08:28:17 | E85: 5473 | F85: 1.5 | G85: Moyenne Tension | H85: Pannes | I85: Équipement Trans-Énergie | J85: Perte d'alimentation | K85: Perte alimentation
A86: Arrondissement Cote st-Luc | B86: 889 | C86: 2022-05-31T06:57:04 | D86: 2022-05-31T10:07:06 | E86: 11402 | F86: 3.2 | G86: Moyenne Tension | H86: Indéterminé | I86: Aucun (Aérien) | J86: Inconnues | K86: Panne
A87: Arrondissement Cote st-Luc | B87: 923 | C87: 2022-05-31T08:28:27 | D87: 2022-05-31T11:53:15 | E87: 12288 | F87: 3.4 | G87: Moyenne Tension | H87: Pannes | I87: Équipement Trans-Énergie | J87: Perte d'alimentation | K87: Perte alimentation
A88: Arrondissement Cote st-Luc | B88: 682 | C88: 2022-05-31T08:28:27 | D88: 2022-05-31T08:45:39 | E88: 1032 | F88: 0.3 | G88: Moyenne Tension | H88: Pannes | I88: Équipement Trans-Énergie | J88: Perte d'alimentation | K88: Perte alimentation
A89: Arrondissement Cote st-Luc | B89: 889 | C89: 2022-05-31T11:15:41 | D89: 2022-05-31T11:23:27 | E89: 466 | F89: 0.1 | G89: Moyenne Tension | H89: Pannes | I89: Équipement Trans-Énergie | J89: Perte d'alimentation | K89: Perte alimentation
A90: Arrondissement Cote st-Luc | B90: 744 | C90: 2022-06-03T05:06:00 | D90: 2022-06-03T05:20:18 | E90: 858 | F90: 0.2 | G90: Moyenne Tension | H90: Indéterminé | I90: Aucun (Aérien) | J90: Inconnues | K90: Panne
A91: Arrondissement Cote st-Luc | B91: 1070 | C91: 2022-06-03T05:06:00 | D91: 2022-06-03T05:18:22 | E91: 742 | F91: 0.2 | G91: Moyenne Tension | H91: Indéterminé | I91: Aucun (Aérien) | J91: Inconnues | K91: Panne
A92: Arrondissement Cote st-Luc | B92: 1070 | C92: 2022-06-03T05:18:49 | D92: 2022-06-03T05:18:51 | E92: 2 | F92: 0.0 | G92: Moyenne Tension | H92: Indéterminé | I92: Aucun (Aérien) | J92: Inconnues | K92: Panne
A93: Arrondissement Cote st-Luc | B93: 3 | C93: 2022-06-14T16:48:23 | D93: 2022-06-15T01:59:17 | E93: 33054 | F93: 9.2 | G93: Basse Tension | H93: Défaillance | I93: Autre (sout.) | J93: Matériel ou équipement | K93: Panne
A94: Arrondissement Cote st-Luc | B94: 18 | C94: 2022-06-18T14:16:44 | D94: 2022-06-18T16:27:52 | E94: 7868 | F94: 2.2 | G94: Basse Tension | H94: Défaillance | I94: Réseau basse tension | J94: Matériel ou équipement | K94: Panne
A95: Arrondissement Cote st-Luc | B95: 1477 | C95: 2022-06-21T05:19:26 | D95: 2022-06-21T05:31:23 | E95: 717 | F95: 0.2 | G95: Moyenne Tension | H95: Indéterminé | I95: Aucun (Aérien) | J95: Inconnues | K95: Panne
A96: Arrondissement Cote st-Luc | B96: 1812 | C96: 2022-06-21T17:10:17 | D96: 2022-06-21T17:11:56 | E96: 99 | F96: 0.0 | G96: Moyenne Tension | H96: Pannes | I96: Équipement Trans-Énergie | J96: Perte d'alimentation | K96: Perte alimentation
A97: Arrondissement Cote st-Luc | B97: 80 | C97: 2022-06-23T08:56:13 | D97: 2022-06-23T09:53:01 | E97: 3408 | F97: 0.9 | G97: Moyenne Tension | H97: Entretien | I97: Autre (sout.) | J97: Interruptions planifiées | K97: Interruption programmée
A98: Arrondissement Cote st-Luc | B98: 12 | C98: 2022-06-23T08:56:13 | D98: 2022-06-23T09:51:17 | E98: 3304 | F98: =E98/3600 -> 0.9 | G98: Moyenne Tension | H98: Entretien | I98: Autre (sout.) | J98: Interruptions planifiées | K98: Interruption programmée
A99: Arrondissement Cote st-Luc | B99: 21 | C99: 2022-06-23T08:56:13 | D99: 2022-06-23T09:50:39 | E99: 3266 | F99: 0.9 | G99: Moyenne Tension | H99: Entretien | I99: Autre (sout.) | J99: Interruptions planifiées | K99: Interruption programmée
A100: Arrondissement Cote st-Luc | B100: 35 | C100: 2022-06-23T08:56:13 | D100: 2022-06-23T09:50:38 | E100: 3265 | F100: 0.9 | G100: Moyenne Tension | H100: Entretien | I100: Autre (sout.) | J100: Interruptions planifiées | K100: Interruption programmée
A101: Arrondissement Cote st-Luc | B101: 923 | C101: 2022-06-25T06:12:54 | D101: 2022-06-25T06:22:14 | E101: 560 | F101: 0.2 | G101: Moyenne Tension | H101: Indéterminé | I101: Aucun (Aérien) | J101: Inconnues | K101: Panne
A102: Arrondissement Cote st-Luc | B102: 36 | C102: 2022-06-29T16:28:19 | D102: 2022-06-30T05:16:38 | E102: 46099 | F102: 12.8 | G102: Moyenne Tension | H102: Défaillance | I102: Transfo. Aérien | J102: Matériel ou équipement | K102: Panne
A103: Arrondissement Cote st-Luc | B103: 30 | C103: 2022-06-30T08:28:29 | D103: 2022-06-30T09:36:51 | E103: 4102 | F103: 1.1 | G103: Basse Tension | H103: Défaillance | I103: Coupe-circuit | J103: Matériel ou équipement | K103: Panne
A104: Arrondissement Cote st-Luc | B104: 1477 | C104: 2022-07-01T05:46:55 | D104: 2022-07-01T05:53:35 | E104: 400 | F104: 0.1 | G104: Moyenne Tension | H104: Défaillance | I104: Conducteur MT | J104: Matériel ou équipement | K104: Panne
A105: Arrondissement Cote st-Luc | B105: 1477 | C105: 2022-07-01T16:50:28 | D105: 2022-07-01T17:00:49 | E105: 621 | F105: 0.2 | G105: Moyenne Tension | H105: Défaillance | I105: Conducteur MT | J105: Matériel ou équipement | K105: Panne
A106: Arrondissement Cote st-Luc | B106: 8 | C106: 2022-07-03T06:50:38 | D106: 2022-07-03T08:52:06 | E106: 7288 | F106: 2.0 | G106: Basse Tension | H106: Animal | I106: Fusible | J106: Faune | K106: Panne
A107: Arrondissement Cote st-Luc | B107: 7 | C107: 2022-07-03T07:06:45 | D107: 2022-07-03T08:44:14 | E107: 5849 | F107: 1.6 | G107: Basse Tension | H107: Animal | I107: Fusible | J107: Faune | K107: Panne
A108: Arrondissement Cote st-Luc | B108: 1 | C108: 2022-07-04T10:28:14 | D108: 2022-07-04T11:15:57 | E108: 2863 | F108: 0.8 | G108: Basse Tension | H108: Interruption demande client | I108: Génératrice (aérien) | J108: Interruptions planifiées | K108: Interruption programmée
A109: Arrondissement Cote st-Luc | B109: 9 | C109: 2022-07-07T08:32:13 | D109: 2022-07-07T14:40:40 | E109: 22107 | F109: 6.1 | G109: Basse Tension | H109: Modification réseau | I109: Transfo. Sout. | J109: Interruptions planifiées | K109: Interruption programmée
A110: Arrondissement Cote st-Luc | B110: 1 | C110: 2022-07-11T14:55:50 | D110: 2022-07-11T14:56:04 | E110: 14 | F110: 0.0 | G110: Basse Tension | H110: Travaux sécuritaires | I110: Conducteur MT | J110: Interruptions planifiées | K110: Interruption programmée
A111: Arrondissement Cote st-Luc | B111: 9 | C111: 2022-07-12T14:40:50 | D111: 2022-07-12T15:55:50 | E111: 4500 | F111: 1.3 | G111: Basse Tension | H111: Végétation | I111: Aucun (Aérien) | J111: Végétation | K111: Panne
A112: Arrondissement Cote st-Luc | B112: 403 | C112: 2022-07-12T15:40:30 | D112: 2022-07-12T16:23:58 | E112: 2608 | F112: 0.7 | G112: Moyenne Tension | H112: Végétation | I112: Traverse | J112: Végétation | K112: Panne
A113: Arrondissement Cote st-Luc | B113: 1477 | C113: 2022-07-12T23:35:25 | D113: 2022-07-12T23:44:57 | E113: 572 | F113: 0.2 | G113: Moyenne Tension | H113: Indéterminé | I113: Aucun (Aérien) | J113: Inconnues | K113: Panne
A114: Arrondissement Cote st-Luc | B114: 1477 | C114: 2022-07-13T15:24:31 | D114: 2022-07-13T15:33:15 | E114: 524 | F114: 0.1 | G114: Moyenne Tension | H114: Incendie / Fuite de gaz | I114: Aucun (Aérien) | J114: Public | K114: Panne
A115: Arrondissement Cote st-Luc | B115: 1070 | C115: 2022-07-13T15:44:07 | D115: 2022-07-13T16:49:23 | E115: 3916 | F115: 1.1 | G115: Moyenne Tension | H115: Incendie / Fuite de gaz | I115: Aucun (Aérien) | J115: Public | K115: Panne
A116: Arrondissement Cote st-Luc | B116: 1477 | C116: 2022-07-13T15:45:00 | D116: 2022-07-13T16:50:22 | E116: 3922 | F116: 1.1 | G116: Moyenne Tension | H116: Incendie / Fuite de gaz | I116: Aucun (Aérien) | J116: Public | K116: Panne
A117: Arrondissement Cote st-Luc | B117: 23 | C117: 2022-07-17T05:20:46 | D117: 2022-07-17T07:00:49 | E117: 6003 | F117: 1.7 | G117: Basse Tension | H117: Animal | I117: Fusible | J117: Faune | K117: Panne
A118: Arrondissement Cote st-Luc | B118: 682 | C118: 2022-07-24T17:19:57 | D118: 2022-07-24T17:35:52 | E118: 955 | F118: 0.3 | G118: Moyenne Tension | H118: Indéterminé | I118: Aucun (Aérien) | J118: Inconnues | K118: Panne
A119: Arrondissement Cote st-Luc | B119: 403 | C119: 2022-07-25T14:36:16 | D119: 2022-07-25T14:56:50 | E119: 1234 | F119: 0.3 | G119: Moyenne Tension | H119: Végétation | I119: Conducteur MT | J119: Végétation | K119: Panne
A120: Arrondissement Cote st-Luc | B120: 889 | C120: 2022-07-25T14:36:16 | D120: 2022-07-25T14:51:59 | E120: 943 | F120: 0.3 | G120: Moyenne Tension | H120: Indéterminé | I120: Aucun (Aérien) | J120: Inconnues | K120: Panne
A121: Arrondissement Cote st-Luc | B121: 403 | C121: 2022-07-25T15:06:17 | D121: 2022-07-25T17:16:00 | E121: 7783 | F121: 2.2 | G121: Moyenne Tension | H121: Végétation | I121: Conducteur MT | J121: Végétation | K121: Panne
A122: Arrondissement Cote st-Luc | B122: 23 | C122: 2022-08-03T05:31:02 | D122: 2022-08-03T06:27:05 | E122: 3363 | F122: 0.9 | G122: Basse Tension | H122: Animal | I122: Fusible | J122: Faune | K122: Panne
A123: Arrondissement Cote st-Luc | B123: 10 | C123: 2022-08-03T08:23:19 | D123: 2022-08-03T09:32:16 | E123: 4137 | F123: 1.1 | G123: Basse Tension | H123: Animal | I123: Coupe-circuit | J123: Faune | K123: Panne
A124: Arrondissement Cote st-Luc | B124: 141 | C124: 2022-08-09T10:38:13 | D124: 2022-08-09T12:36:43 | E124: 7110 | F124: 2.0 | G124: Basse Tension | H124: Équipement client(e) | I124: Aucun (Aérien) | J124: Matériel ou équipement | K124: Panne
A125: Arrondissement Cote st-Luc | B125: 522 | C125: 2022-08-09T20:01:36 | D125: 2022-08-09T21:15:01 | E125: 4405 | F125: 1.2 | G125: Moyenne Tension | H125: Défaillance | I125: Poteau | J125: Matériel ou équipement | K125: Panne
A126: Arrondissement Cote st-Luc | B126: 7 | C126: 2022-08-11T07:12:39 | D126: 2022-08-11T09:54:19 | E126: 9700 | F126: 2.7 | G126: Basse Tension | H126: Défaillance | I126: Fusible | J126: Matériel ou équipement | K126: Panne
A127: Arrondissement Cote st-Luc | B127: 15 | C127: 2022-08-11T07:47:07 | D127: 2022-08-11T10:31:51 | E127: 9884 | F127: 2.7 | G127: Basse Tension | H127: Végétation | I127: Aucun (Aérien) | J127: Végétation | K127: Panne
A128: Arrondissement Cote st-Luc | B128: 403 | C128: 2022-08-17T15:27:27 | D128: 2022-08-17T16:18:27 | E128: 3060 | F128: 0.9 | G128: Moyenne Tension | H128: Incendie / Fuite de gaz | I128: Aucun ( sout.) | J128: Public | K128: Panne
A129: Arrondissement Cote st-Luc | B129: 1219 | C129: 2022-08-18T10:39:17 | D129: 2022-08-18T11:43:30 | E129: 3853 | F129: 1.1 | G129: Moyenne Tension | H129: Incendie / Fuite de gaz | I129: Aucun (Aérien) | J129: Public | K129: Panne
A130: Arrondissement Cote st-Luc | B130: 65 | C130: 2022-08-18T10:45:09 | D130: 2022-08-18T11:44:12 | E130: 3543 | F130: =E130/3600 -> 1.0 | G130: Basse Tension | H130: Équipement client(e) | I130: Aucun (Aérien) | J130: Matériel ou équipement | K130: Panne
A131: Arrondissement Cote st-Luc | B131: 35 | C131: 2022-08-25T12:30:35 | D131: 2022-08-25T15:25:19 | E131: 10484 | F131: 2.9 | G131: Moyenne Tension | H131: Indéterminé | I131: Composante sout. MT | J131: Inconnues | K131: Panne
A132: Arrondissement Cote st-Luc | B132: 403 | C132: 2022-08-29T23:07:19 | D132: 2022-08-29T23:41:29 | E132: 2050 | F132: 0.6 | G132: Moyenne Tension | H132: Manoeuvre séc. non planif. | I132: Aucun (Aérien) | J132: Autres | K132: Panne
A133: Arrondissement Cote st-Luc | B133: 11 | C133: 2022-09-02T00:02:30 | D133: 2022-09-02T03:17:33 | E133: 11703 | F133: 3.3 | G133: Moyenne Tension | H133: Entretien | I133: Transfo. Sout. | J133: Interruptions planifiées | K133: Interruption programmée
A134: Arrondissement Cote st-Luc | B134: 11 | C134: 2022-09-02T00:03:15 | D134: 2022-09-02T03:17:54 | E134: 11679 | F134: 3.2 | G134: Moyenne Tension | H134: Entretien | I134: Transfo. Sout. | J134: Interruptions planifiées | K134: Interruption programmée
A135: Arrondissement Cote st-Luc | B135: 1496 | C135: 2022-09-07T13:50:45 | D135: 2022-09-07T14:04:47 | E135: 842 | F135: 0.2 | G135: Moyenne Tension | H135: Défaillance | I135: Câble et barre MT | J135: Matériel ou équipement | K135: Panne
A136: Arrondissement Cote st-Luc | B136: 1496 | C136: 2022-09-07T14:05:13 | D136: 2022-09-07T14:55:55 | E136: 3042 | F136: 0.8 | G136: Moyenne Tension | H136: Défaillance | I136: Câble et barre MT | J136: Matériel ou équipement | K136: Panne
A137: Arrondissement Cote st-Luc | B137: 1496 | C137: 2022-09-07T16:06:05 | D137: 2022-09-07T16:11:00 | E137: 295 | F137: 0.1 | G137: Moyenne Tension | H137: Défaillance | I137: Câble et barre MT | J137: Matériel ou équipement | K137: Panne
A138: Arrondissement Cote st-Luc | B138: 1496 | C138: 2022-09-07T16:11:00 | D138: 2022-09-07T16:12:34 | E138: 94 | F138: 0.0 | G138: Moyenne Tension | H138: Défaillance | I138: Câble et barre MT | J138: Matériel ou équipement | K138: Panne
A139: Arrondissement Cote st-Luc | B139: 1496 | C139: 2022-09-07T16:16:02 | D139: 2022-09-07T16:28:55 | E139: 773 | F139: 0.2 | G139: Moyenne Tension | H139: Défaillance | I139: Interrupteur sout. | J139: Matériel ou équipement | K139: Panne
A140: Arrondissement Cote st-Luc | B140: 1496 | C140: 2022-09-07T16:57:08 | D140: 2022-09-07T16:57:54 | E140: 46 | F140: 0.0 | G140: Moyenne Tension | H140: Défaillance | I140: Câble et barre MT | J140: Matériel ou équipement | K140: Panne
A141: Arrondissement Cote st-Luc | B141: 1496 | C141: 2022-09-07T16:57:54 | D141: 2022-09-07T16:58:53 | E141: 59 | F141: 0.0 | G141: Moyenne Tension | H141: Défaillance | I141: Câble et barre MT | J141: Matériel ou équipement | K141: Panne
A142: Arrondissement Cote st-Luc | B142: 403 | C142: 2022-09-07T17:14:24 | D142: 2022-09-07T17:16:13 | E142: 109 | F142: 0.0 | G142: Moyenne Tension | H142: Défaillance | I142: Câble et barre MT | J142: Matériel ou équipement | K142: Panne
A143: Arrondissement Cote st-Luc | B143: 403 | C143: 2022-09-07T17:16:13 | D143: 2022-09-07T17:18:53 | E143: 160 | F143: 0.0 | G143: Moyenne Tension | H143: Défaillance | I143: Câble et barre MT | J143: Matériel ou équipement | K143: Panne
A144: Arrondissement Cote st-Luc | B144: 682 | C144: 2022-09-10T08:53:18 | D144: 2022-09-10T09:03:07 | E144: 589 | F144: 0.2 | G144: Moyenne Tension | H144: Indéterminé | I144: Aucun (Aérien) | J144: Inconnues | K144: Panne
A145: Arrondissement Cote st-Luc | B145: 1245 | C145: 2022-09-11T13:08:31 | D145: 2022-09-11T14:52:20 | E145: 6229 | F145: 1.7 | G145: Moyenne Tension | H145: Manoeuvre séc. non planif. | I145: Aucun (Aérien) | J145: Autres | K145: Panne
A146: Arrondissement Cote st-Luc | B146: 403 | C146: 2022-09-18T17:37:35 | D146: 2022-09-18T18:26:34 | E146: 2939 | F146: 0.8 | G146: Moyenne Tension | H146: Végétation | I146: Aucun (Aérien) | J146: Végétation | K146: Panne
A147: Arrondissement Cote st-Luc | B147: 38 | C147: 2022-09-20T15:55:23 | D147: 2022-09-20T17:05:36 | E147: 4213 | F147: 1.2 | G147: Basse Tension | H147: Indéterminé | I147: Aucun (Aérien) | J147: Inconnues | K147: Panne
A148: Arrondissement Cote st-Luc | B148: 38 | C148: 2022-09-22T01:11:20 | D148: 2022-09-22T02:53:58 | E148: 6158 | F148: 1.7 | G148: Moyenne Tension | H148: Foudre | I148: Conducteur MT | J148: Conditions atmosphériques | K148: Panne
A149: Arrondissement Cote st-Luc | B149: 923 | C149: 2022-09-24T22:20:22 | D149: 2022-09-24T22:48:58 | E149: 1716 | F149: 0.5 | G149: Moyenne Tension | H149: Télédélestage | I149: Équipement Trans-Énergie | J149: Perte d'alimentation | K149: Perte alimentation
A150: Arrondissement Cote st-Luc | B150: 1245 | C150: 2022-09-24T22:20:22 | D150: 2022-09-24T22:51:15 | E150: 1853 | F150: 0.5 | G150: Moyenne Tension | H150: Télédélestage | I150: Équipement Trans-Énergie | J150: Perte d'alimentation | K150: Perte alimentation
A151: Arrondissement Cote st-Luc | B151: 403 | C151: 2022-09-24T22:20:22 | D151: 2022-09-24T22:48:15 | E151: 1673 | F151: 0.5 | G151: Moyenne Tension | H151: Télédélestage | I151: Équipement Trans-Énergie | J151: Perte d'alimentation | K151: Perte alimentation
A152: Arrondissement Cote st-Luc | B152: 2221 | C152: 2022-09-24T22:20:22 | D152: 2022-09-24T22:50:58 | E152: 1836 | F152: 0.5 | G152: Moyenne Tension | H152: Télédélestage | I152: Équipement Trans-Énergie | J152: Perte d'alimentation | K152: Perte alimentation
A153: Arrondissement Cote st-Luc | B153: 682 | C153: 2022-09-24T22:20:22 | D153: 2022-09-24T22:48:32 | E153: 1690 | F153: 0.5 | G153: Moyenne Tension | H153: Télédélestage | I153: Équipement Trans-Énergie | J153: Perte d'alimentation | K153: Perte alimentation
A154: Arrondissement Cote st-Luc | B154: 121 | C154: 2022-09-24T22:20:22 | D154: 2022-09-24T22:50:20 | E154: 1798 | F154: 0.5 | G154: Moyenne Tension | H154: Télédélestage | I154: Équipement Trans-Énergie | J154: Perte d'alimentation | K154: Perte alimentation
A155: Arrondissement Cote st-Luc | B155: 261 | C155: 2022-09-24T22:20:22 | D155: 2022-09-24T22:50:05 | E155: 1783 | F155: 0.5 | G155: Moyenne Tension | H155: Télédélestage | I155: Équipement Trans-Énergie | J155: Perte d'alimentation | K155: Perte alimentation
A156: Arrondissement Cote st-Luc | B156: 1496 | C156: 2022-09-24T22:20:22 | D156: 2022-09-24T22:49:17 | E156: 1735 | F156: 0.5 | G156: Moyenne Tension | H156: Télédélestage | I156: Équipement Trans-Énergie | J156: Perte d'alimentation | K156: Perte alimentation
A157: Arrondissement Cote st-Luc | B157: 23 | C157: 2022-09-28T09:00:22 | D157: 2022-09-28T15:29:48 | E157: 23366 | F157: 6.5 | G157: Basse Tension | H157: Modification réseau | I157: Transfo. Aérien | J157: Interruptions planifiées | K157: Interruption programmée
A158: Arrondissement Cote st-Luc | B158: 22 | C158: 2022-09-30T08:38:53 | D158: 2022-09-30T10:12:52 | E158: 5639 | F158: 1.6 | G158: Basse Tension | H158: Animal | I158: Aucun (Aérien) | J158: Faune | K158: Panne
A159: Arrondissement Cote st-Luc | B159: 1125 | C159: 2022-10-03T19:04:44 | D159: 2022-10-04T04:28:07 | E159: 33803 | F159: 9.4 | G159: Moyenne Tension | H159: Manoeuvre séc. non planif. | I159: Aucun ( sout.) | J159: Autres | K159: Panne
A160: Arrondissement Cote st-Luc | B160: 261 | C160: 2022-10-03T19:04:44 | D160: 2022-10-03T21:14:12 | E160: 7768 | F160: 2.2 | G160: Moyenne Tension | H160: Manoeuvre séc. non planif. | I160: Aucun ( sout.) | J160: Autres | K160: Panne
A161: Arrondissement Cote st-Luc | B161: 655 | C161: 2022-10-03T19:04:44 | D161: 2022-10-03T21:53:37 | E161: 10133 | F161: 2.8 | G161: Moyenne Tension | H161: Manoeuvre séc. non planif. | I161: Aucun ( sout.) | J161: Autres | K161: Panne
A162: Arrondissement Cote st-Luc | B162: 10 | C162: 2022-10-07T09:42:06 | D162: 2022-10-07T12:08:15 | E162: 8769 | F162: =E162/3600 -> 2.4 | G162: Basse Tension | H162: Végétation | I162: Aucun (Aérien) | J162: Végétation | K162: Panne
A163: Arrondissement Cote st-Luc | B163: 1496 | C163: 2022-10-11T12:18:53 | D163: 2022-10-11T13:22:22 | E163: 3809 | F163: 1.1 | G163: Moyenne Tension | H163: Incendie / Fuite de gaz | I163: Aucun ( sout.) | J163: Public | K163: Panne
A164: Arrondissement Cote st-Luc | B164: 923 | C164: 2022-10-13T12:48:00 | D164: 2022-10-13T13:06:50 | E164: 1130 | F164: 0.3 | G164: Moyenne Tension | H164: Vent | I164: Aucun (Aérien) | J164: Conditions atmosphériques | K164: Panne
A165: Arrondissement Cote st-Luc | B165: 1068 | C165: 2022-10-15T14:28:06 | D165: 2022-10-15T14:39:38 | E165: 692 | F165: 0.2 | G165: Moyenne Tension | H165: Pannes | I165: Équipement Trans-Énergie | J165: Perte d'alimentation | K165: Perte alimentation
A166: Arrondissement Cote st-Luc | B166: 744 | C166: 2022-10-15T14:28:06 | D166: 2022-10-15T14:39:12 | E166: 666 | F166: 0.2 | G166: Moyenne Tension | H166: Pannes | I166: Équipement Trans-Énergie | J166: Perte d'alimentation | K166: Perte alimentation
A167: Arrondissement Cote st-Luc | B167: 384 | C167: 2022-10-15T14:28:06 | D167: 2022-10-15T14:38:46 | E167: 640 | F167: 0.2 | G167: Moyenne Tension | H167: Pannes | I167: Équipement Trans-Énergie | J167: Perte d'alimentation | K167: Perte alimentation
A168: Arrondissement Cote st-Luc | B168: 1477 | C168: 2022-10-16T09:02:51 | D168: 2022-10-16T09:12:17 | E168: 566 | F168: 0.2 | G168: Moyenne Tension | H168: Indéterminé | I168: Aucun (Aérien) | J168: Inconnues | K168: Panne
A169: Arrondissement Cote st-Luc | B169: 18 | C169: 2022-10-29T08:57:10 | D169: 2022-10-29T10:43:27 | E169: 6377 | F169: 1.8 | G169: Basse Tension | H169: Animal | I169: Aucun (Aérien) | J169: Faune | K169: Panne
A170: Arrondissement Cote st-Luc | B170: 18 | C170: 2022-10-29T10:48:02 | D170: 2022-10-29T11:14:02 | E170: 1560 | F170: 0.4 | G170: Basse Tension | H170: Protection | I170: Fusible | J170: Matériel ou équipement | K170: Panne
A171: Arrondissement Cote st-Luc | B171: 403 | C171: 2022-10-30T05:22:49 | D171: 2022-10-30T06:03:25 | E171: 2436 | F171: 0.7 | G171: Moyenne Tension | H171: Incendie / Fuite de gaz | I171: Aucun (Aérien) | J171: Public | K171: Panne
A172: Arrondissement Cote st-Luc | B172: 20 | C172: 2022-10-30T10:59:06 | D172: 2022-10-30T10:59:24 | E172: 18 | F172: 0.0 | G172: Basse Tension | H172: Animal | I172: Aucun (Aérien) | J172: Faune | K172: Panne

Sheet Sommaire
B1: TYPE D'INTERRUPTION | C1: (Tous) | F1: TYPE D'INTERRUPTION | G1: (Tous) | J1: TYPE D'INTERRUPTION | K1: (Tous)
B2: DESCRIPTION CAUSE DETAILLEE | C2: (Tous) | F2: DESCRIPTION CAUSE DETAILLEE | G2: (Tous) | J2: DESCRIPTION CAUSE DETAILLEE | K2: (Tous)
B3: DESCRIPTION EQUIPEMENT | C3: (Tous) | F3: DESCRIPTION EQUIPEMENT | G3: (Tous) | J3: DESCRIPTION EQUIPEMENT | K3: (Tous)
B4: GROUPECAUSE | C4: (Tous) | F4: GROUPE CAUSE | G4: (Tous) | J4: GROUPECAUSE | K4: (Tous)
B5: Année 2020 | F5: Année 2021 | J5: Année 2022
B6: Étiquettes de lignes | C6: Somme de NOMBRE_CLIENTS | D6: Somme de DUREE (HEURE) | F6: Étiquettes de lignes | G6: Somme de NOMBRE_CLIENTS | H6: Somme de DUREE (HEURE) | J6: Étiquettes de lignes | K6: Somme de NOMBRE_CLIENTS | L6: Somme de DUREE (HEURE)
B7: Arrondissement Cote st-Luc | C7: 61583 | D7: 249.5 | F7: Arrondissement Cote st-Luc | G7: 58569 | H7: 294.5 | J7: Arrondissement Cote st-Luc | K7: 79081 | L7: 293.0
B8: janv | C8: 2471 | D8: 31.0 | F8: janv | G8: 130 | H8: 35.6 | J8: janv | K8: 6478 | L8: 98.2
B9: févr | C9: 2081 | D9: 36.3 | F9: févr | G9: 1667 | H9: 19.0 | J9: févr | K9: 8138 | L9: 12.0
B10: mars | C10: 1913 | D10: 12.9 | F10: mars | G10: 7371 | H10: 22.8 | J10: mars | K10: 4473 | L10: 37.0
B11: avr | C11: 17 | D11: 1.6 | F11: avr | G11: 3643 | H11: 5.0 | J11: avr | K11: 904 | L11: 14.4
B12: mai | C12: 1629 | D12: 18.3 | F12: mai | G12: 3810 | H12: 9.2 | J12: mai | K12: 7916 | L12: 17.2
B13: juin | C13: 4446 | D13: 4.0 | F13: juin | G13: 14002 | H13: 14.1 | J13: juin | K13: 7331 | L13: 29.8
B14: juil | C14: 4502 | D14: 26.3 | F14: juil | G14: 2815 | H14: 15.5 | J14: juil | K14: 11293 | L14: 20.0
B15: août | C15: 3224 | D15: 16.2 | F15: août | G15: 380 | H15: 30.7 | J15: août | K15: 2843 | L15: 17.1
B16: sept | C16: 3692 | D16: 16.2 | F16: sept | G16: 5703 | H16: 4.4 | J16: sept | K16: 21103 | L16: 25.6
B17: oct | C17: 29667 | D17: 46.1 | F17: oct | G17: 469 | H17: 12.8 | J17: oct | K17: 8602 | L17: 21.8
B18: nov | C18: 3023 | D18: 11.0 | F18: nov | G18: 5294 | H18: 70.0 | J18: Total général | K18: 79081 | L18: 293.0
B19: déc | C19: 4918 | D19: 29.9 | F19: déc | G19: 13285 | H19: 55.2
B20: Total général | C20: 61583 | D20: 249.5 | F20: Total général | G20: 58569 | H20: 294.5
